{"text_format":"1","workbook":"xlsx","n_sheets":6,"sheets":["説明","基本情報登録","取得者情報入力","健保正","健保副","年金正"],"not_rendered":{"charts":0,"images":1,"macros":1,"external_links":0,"defined_names":0,"comments":0,"pivot_tables":0},"unopened":[],"bounds":{"document_bytes":16777216,"sheet_cells":100000,"rows_first":2000,"rows_last":500,"rows_between":2000,"halvings":0,"cell_chars":16384,"cell_head_chars":4096},"cells_cut":0,"cells_raw":0,"read":"whole","date_system":"1900"}

{"sheet":"説明","index":0,"n_rows":11,"n_cols":3,"rows_kept":11,"cut":false,"hidden":false,"merged":[]}
[]
["１．","シート「基本情報登録」で事業所の基本情報を入力してください。"]
["２．","シート「取得者情報入力」で、入力欄を備考を参考に入力してください。"]
[null,"下に進めば４人まで入力できます。"]
[null,"１人目のところには記入例をのせているので、クリアして入力するか、上書きしてください"]
["３．","入力欄は漢字入力等は自動でオン・オフします。"]
["４．","数値のみを入力する欄は日本語入力がオフになっています。"]
[null,null,"欄は必須項目です。"]
[null,null,"欄は該当する場合入力して下さい。"]
["５．","入力が終わったらシート「取得者情報入力」の［印刷］ボタンを押してください。"]
[null,"シート「健保正」・「健保副」・「年金正」の3枚が印刷されます。"]

{"sheet":"基本情報登録","index":1,"n_rows":11,"n_cols":5,"rows_kept":11,"cut":false,"hidden":false,"merged":[[6,4,6,11],[7,4,7,11],[8,4,8,11],[9,4,9,11],[10,4,10,11],[5,4,5,11],[1,4,1,11],[2,1,3,1],[2,4,2,11],[3,4,3,11],[4,4,4,11]]}
[]
[null,"提出年月日",{"$f":"TODAY()","v":"2023-12-06"},null,"TODAY関数が入力されています。提出日を変更する場合のみ入力してください。"]
[null,"年金整理記号","南",null,"年金記号の「南」、「北」、「豊中」を入力してください。"]
[null,null,"ＷＥＤ",null,"年金記号の「ＷＥＤ」、「ＳＦＨ」を入力してください"]
[null,"年金納入告知書番号",null,null,"「00687」のように必ず５ケタの数字を入力してください。"]
[null,"健康保険記号","532",null,"健康保険の記号を入力してください。"]
[null,"郵便番号","542-0066",null,"「542-0066」と－（ハイフン）を入力してください。"]
[null,"事業所所在地","大阪府大阪市中央区瓦屋町2-3-1",null,"住所が長い場合は、Alt+Enterで折り返してください。"]
[null,"事業所名称","大阪自動車整備健康保険組合",null,"事業所名を入力してください。"]
[null,"事業主氏名","理事長　健保　太郎",null,"代表者名を入力してください。"]
[null,"電話番号","06-6762-6371",null,"「06-6762-6371」と－（ハイフン)を入力してください。"]

{"sheet":"取得者情報入力","index":2,"n_rows":149,"n_cols":10,"rows_kept":149,"cut":false,"hidden":false,"merged":[[21,2,22,2],[1,1,1,2],[2,0,22,0],[10,1,11,1],[14,1,15,1],[17,1,22,1],[43,1,43,2],[44,0,64,0],[52,1,53,1],[56,1,57,1],[59,1,64,1],[63,2,64,2],[85,1,85,2],[86,0,106,0],[94,1,95,1],[98,1,99,1],[101,1,106,1],[105,2,106,2],[127,1,127,2],[128,0,148,0],[136,1,137,1],[140,1,141,1],[143,1,148,1],[147,2,148,2]]}
[]
[null,"入力項目",null,"入力欄","備考"]
[1,"番号",null,"551","新規取得者の番号を入力",null,null,null,{"$f":"IF(ISNUMBER(D11),D11+D12,0)","v":1800000},{"$f":"IF(AND(1<=I3,93000>I3),IF(AND(1<=I3,63000>I3),58,IF(AND(63000<=I3,73000>I3),68,IF(AND(73000<=I3,83000>I3),78,IF(AND(83000<=I3,93000>I3),88)))),\"\")","v":""}]
[null,"氏名(漢字)",null,"健保　華子","氏名（漢字）を入力",null,null,"健保",{"$f":"IF(AND(1<=I3,93000>I3),J3,IF(AND(93000<=I3,175000>I3),J4,IF(AND(175000<=I3,350000>I3),J5,IF(AND(350000<=I3,635000>I3),J6,IF(AND(635000<=I3,1005000>I3),J7,IF(AND(1005000<=I3),J8,\"\"))))))","v":1390},{"$f":"IF(AND(93000<=I3,130000>I3),IF(AND(93000<=I3,101000>I3),98,IF(AND(101000<=I3,107000>I3),104,IF(AND(107000<=I3,114000>I3),110,IF(AND(114000<=I3,122000>I3),118,IF(AND(122000<=I3,130000>I3),126,\"\"))))),IF(AND(130000<=I3,138000>I3),134,IF(AND(138000<=I3,146000>I3),142,IF(AND(146000<=I3,155000>I3),150,IF(AND(155000<=I3,165000>I3),160,IF(AND(165000<=I3,175000>I3),170,\"\"))))))","v":""}]
[null,"氏名(カナ)",null,"ケンポ　ハナコ","氏名（カナ）を入力",null,null,"年金",{"$f":"IF(AND(1<=I3,175000>I3),J9,IF(AND(175000<=I3,350000>I3),J10,IF(AND(350000<=I3,635000>I3),J11,IF(635000<=I3,650,\"\"))))","v":650},{"$f":"IF(AND(175000<=I3,250000>I3),IF(AND(175000<=I3,185000>I3),180,IF(AND(185000<=I3,195000>I3),190,IF(AND(195000<=I3,210000>I3),200,IF(AND(210000<=I3,230000>I3),220,IF(AND(230000<=I3,250000>I3),240,\"\"))))),IF(AND(250000<=I3,270000>I3),260,IF(AND(270000<=I3,290000>I3),280,IF(AND(290000<=I3,310000>I3),300,IF(AND(310000<=I3,330000>I3),320,IF(AND(330000<=I3,350000>I3),340,\"\"))))))","v":""}]
[null,"生年月日",null,"2003-12-25","「H15.12.25」のように和暦で入力してください。",null,null,null,null,{"$f":"IF(AND(350000<=I3,485000>I3),IF(AND(350000<=I3,370000>I3),360,IF(AND(370000<=I3,395000>I3),380,IF(AND(395000<=I3,425000>I3),410,IF(AND(425000<=I3,455000>I3),440,IF(AND(455000<=I3,485000>I3),470,\"\"))))),IF(AND(485000<=I3,515000>I3),500,IF(AND(515000<=I3,545000>I3),530,IF(AND(545000<=I3,575000>I3),560,IF(AND(575000<=I3,605000>I3),590,IF(AND(605000<=I3,635000>I3),620,\"\"))))))","v":""}]
[null,"性別",null,"2","男性は「1」、女性は「2」を入力",null,null,null,null,{"$f":"IF(AND(635000<=I3,810000>I3),IF(AND(635000<=I3,665000>I3),650,IF(AND(665000<=I3,695000>I3),680,IF(AND(695000<=I3,730000>I3),710,IF(AND(730000<=I3,770000>I3),750,IF(AND(770000<=I3,810000>I3),790,\"\"))))),IF(AND(810000<=I3,855000>I3),830,IF(AND(855000<=I3,905000>I3),880,IF(AND(905000<=I3,955000>I3),930,IF(AND(955000<=I3,1005000>I3),980,\"\")))))","v":""}]
[null,"個人番号",null,"123456789012","個人番号(マイナンバー)12桁を入力",null,null,null,null,{"$f":"IF(AND(1005000<=I3,1055000>I3),1030,IF(AND(1055000<=I3,1115000>I3),1090,IF(AND(1115000<=I3,1175000>I3),1150,IF(AND(1175000<=I3,1235000>I3),1210,(IF(AND(1235000<=I3,1295000>I3),1270,IF(AND(1295000<=I3,1355000>I3),1330,IF(1355000<=I3,1390,\"\"))))))))","v":1390}]
[null,"基礎年金番号",null,null,"個人番号を入力した場合は不要です。",null,null,null,null,{"$f":"IF(AND(1<=I3,130000>I3),IF(AND(1<=I3,93000>I3),88,IF(AND(1<=I3,101000>I3),98,IF(AND(101000<=I3,107000>I3),104,IF(AND(107000<=I3,114000>I3),110,IF(AND(114000<=I3,122000>I3),118,IF(AND(122000<=I3,130000>I3),126,\"\")))))),IF(AND(130000<=I3,138000>I3),134,IF(AND(138000<=I3,146000>I3),142,IF(AND(146000<=I3,155000>I3),150,IF(AND(155000<=I3,165000>I3),\"160\",IF(AND(165000<=I3,175000>I3),170,\"\"))))))","v":""}]
[null,"取得年月日",null,"2022-11-01","「R4.11.1」のように和暦で入力してください。",null,null,null,null,{"$f":"IF(AND(175000<=I3,250000>I3),IF(AND(175000<=I3,185000>I3),180,IF(AND(185000<=I3,195000>I3),190,IF(AND(195000<=I3,210000>I3),200,IF(AND(210000<=I3,230000>I3),220,IF(AND(230000<=I3,250000>I3),240,\"\"))))),IF(AND(250000<=I3,270000>I3),260,IF(AND(270000<=I3,290000>I3),280,IF(AND(290000<=I3,310000>I3),300,IF(AND(310000<=I3,330000>I3),320,IF(AND(330000<=I3,350000>I3),340,\"\"))))))","v":""}]
[null,"報酬月額","金銭による額",1500000,"金銭による報酬を入力",null,null,null,null,{"$f":"IF(AND(350000<=I3,485000>I3),IF(AND(350000<=I3,370000>I3),360,IF(AND(370000<=I3,395000>I3),380,IF(AND(395000<=I3,425000>I3),410,IF(AND(425000<=I3,455000>I3),440,IF(AND(455000<=I3,485000>I3),470,\"\"))))),IF(AND(485000<=I3,515000>I3),500,IF(AND(515000<=I3,545000>I3),530,IF(AND(545000<=I3,575000>I3),560,IF(AND(575000<=I3,605000>I3),590,IF(AND(605000<=I3,635000>I3),620,\"\"))))))","v":""}]
[null,null,"現物による額",300000,"現物による報酬を入力",null,null,"備考",null,{"$f":"IF(635000<=I3,650,\"\")","v":650}]
[null,"郵便番号",null,"542-0066","「542-0066」のように郵便番号を入力して下さい。",null,null,1,"70歳以上被用者該当"]
[null,"住民票住所",null,"大阪府大阪市中央区瓦屋町2-3-1","住民票住所を入力",null,null,2,"二以上事業所勤務者の取得"]
[null,"理由",null,null,"1.海外在住・2.短期在留・3.その他",null,null,3,"短時間労働者の取得(特定適用事業所等)"]
[null,null,"その他",null,"3.その他の場合入力して下さい。",null,null,4,"退職後の継続再雇用者の取得"]
[null,"扶養家族種別",null,"1","扶養家族がいる場合「1」を入力して下さい。",null,null,5,{"$f":"D23","v":0}]
[null,"備考","該当する場合",null,"1.70歳以上被用者該当の場合「1」を入力してください。",null,null,"理由"]
[null,null,"該当する場合",null,"2.二以上事業所勤務者の取得の場合「2」を入力してください。",null,null,1,"海外在住"]
[null,null,"該当する場合",null,"3.短時間労働者の取得(特定適用事業所等)の場合「3」を入力してください。",null,null,2,"短期在留"]
[null,null,"該当する場合",null,"4.退職後の継続再雇用者の取得の場合「4」を入力してください。",null,null,3,{"$f":"D16","v":0}]
[null,null,"その他",null,"5.その他の場合「5」を入力してください。"]
[null,null,null,null,"5.その他の場合入力して下さい。"]
[]
[]
[]
[]
[]
[]
[]
[]
[]
[]
[]
[]
[]
[]
[]
[]
[]
[]
[]
[]
[null,"入力項目",null,"入力欄","備考"]
[2,"番号",null,null,"新規取得者の番号を入力",null,null,null,{"$f":"IF(ISNUMBER(D53),D53+D54,0)","v":0},{"$f":"IF(AND(1<=I45,93000>I45),IF(AND(1<=I45,63000>I45),58,IF(AND(63000<=I45,73000>I45),68,IF(AND(73000<=I45,83000>I45),78,IF(AND(83000<=I45,93000>I45),88)))),\"\")","v":""}]
[null,"氏名(漢字)",null,null,"氏名（漢字）を入力",null,null,"健保",{"$f":"IF(AND(1<=I45,93000>I45),J45,IF(AND(93000<=I45,175000>I45),J46,IF(AND(175000<=I45,350000>I45),J47,IF(AND(350000<=I45,635000>I45),J48,IF(AND(635000<=I45,1005000>I45),J49,IF(AND(1005000<=I45),J50,\"\"))))))","v":""},{"$f":"IF(AND(93000<=I45,130000>I45),IF(AND(93000<=I45,101000>I45),98,IF(AND(101000<=I45,107000>I45),104,IF(AND(107000<=I45,114000>I45),110,IF(AND(114000<=I45,122000>I45),118,IF(AND(122000<=I45,130000>I45),126,\"\"))))),IF(AND(130000<=I45,138000>I45),134,IF(AND(138000<=I45,146000>I45),142,IF(AND(146000<=I45,155000>I45),150,IF(AND(155000<=I45,165000>I45),160,IF(AND(165000<=I45,175000>I45),170,\"\"))))))","v":""}]
[null,"氏名(カナ)",null,null,"氏名（カナ）を入力",null,null,"年金",{"$f":"IF(AND(1<=I45,175000>I45),J51,IF(AND(175000<=I45,350000>I45),J52,IF(AND(350000<=I45,635000>I45),J53,IF(635000<=I45,650,\"\"))))","v":""},{"$f":"IF(AND(175000<=I45,250000>I45),IF(AND(175000<=I45,185000>I45),180,IF(AND(185000<=I45,195000>I45),190,IF(AND(195000<=I45,210000>I45),200,IF(AND(210000<=I45,230000>I45),220,IF(AND(230000<=I45,250000>I45),240,\"\"))))),IF(AND(250000<=I45,270000>I45),260,IF(AND(270000<=I45,290000>I45),280,IF(AND(290000<=I45,310000>I45),300,IF(AND(310000<=I45,330000>I45),320,IF(AND(330000<=I45,350000>I45),340,\"\"))))))","v":""}]
[null,"生年月日",null,null,"「H15.12.25」のように和暦で入力してください。",null,null,null,null,{"$f":"IF(AND(350000<=I45,485000>I45),IF(AND(350000<=I45,370000>I45),360,IF(AND(370000<=I45,395000>I45),380,IF(AND(395000<=I45,425000>I45),410,IF(AND(425000<=I45,455000>I45),440,IF(AND(455000<=I45,485000>I45),470,\"\"))))),IF(AND(485000<=I45,515000>I45),500,IF(AND(515000<=I45,545000>I45),530,IF(AND(545000<=I45,575000>I45),560,IF(AND(575000<=I45,605000>I45),590,IF(AND(605000<=I45,635000>I45),620,\"\"))))))","v":""}]
[null,"性別",null,null,"男性は「1」、女性は「2」を入力",null,null,null,null,{"$f":"IF(AND(635000<=I45,810000>I45),IF(AND(635000<=I45,665000>I45),650,IF(AND(665000<=I45,695000>I45),680,IF(AND(695000<=I45,730000>I45),710,IF(AND(730000<=I45,770000>I45),750,IF(AND(770000<=I45,810000>I45),790,\"\"))))),IF(AND(810000<=I45,855000>I45),830,IF(AND(855000<=I45,905000>I45),880,IF(AND(905000<=I45,955000>I45),930,IF(AND(955000<=I45,1005000>I45),980,\"\")))))","v":""}]
[null,"個人番号",null,null,"個人番号(マイナンバー)12桁を入力",null,null,null,null,{"$f":"IF(AND(1005000<=I45,1055000>I45),1030,IF(AND(1055000<=I45,1115000>I45),1090,IF(AND(1115000<=I45,1175000>I45),1150,IF(AND(1175000<=I45,1235000>I45),1210,(IF(AND(1235000<=I45,1295000>I45),1270,IF(AND(1295000<=I45,1355000>I45),1330,IF(1355000<=I45,1390,\"\"))))))))","v":""}]
[null,"基礎年金番号",null,null,"個人番号を入力した場合は不要です。",null,null,null,null,{"$f":"IF(AND(1<=I45,130000>I45),IF(AND(1<=I45,93000>I45),88,IF(AND(1<=I45,101000>I45),98,IF(AND(101000<=I45,107000>I45),104,IF(AND(107000<=I45,114000>I45),110,IF(AND(114000<=I45,122000>I45),118,IF(AND(122000<=I45,130000>I45),126,\"\")))))),IF(AND(130000<=I45,138000>I45),134,IF(AND(138000<=I45,146000>I45),142,IF(AND(146000<=I45,155000>I45),150,IF(AND(155000<=I45,165000>I45),\"160\",IF(AND(165000<=I45,175000>I45),170,\"\"))))))","v":""}]
[null,"取得年月日",null,null,"「R4.11.1」のように和暦で入力してください。",null,null,null,null,{"$f":"IF(AND(175000<=I45,250000>I45),IF(AND(175000<=I45,185000>I45),180,IF(AND(185000<=I45,195000>I45),190,IF(AND(195000<=I45,210000>I45),200,IF(AND(210000<=I45,230000>I45),220,IF(AND(230000<=I45,250000>I45),240,\"\"))))),IF(AND(250000<=I45,270000>I45),260,IF(AND(270000<=I45,290000>I45),280,IF(AND(290000<=I45,310000>I45),300,IF(AND(310000<=I45,330000>I45),320,IF(AND(330000<=I45,350000>I45),340,\"\"))))))","v":""}]
[null,"報酬月額","金銭による額",null,"金銭による報酬を入力",null,null,null,null,{"$f":"IF(AND(350000<=I45,485000>I45),IF(AND(350000<=I45,370000>I45),360,IF(AND(370000<=I45,395000>I45),380,IF(AND(395000<=I45,425000>I45),410,IF(AND(425000<=I45,455000>I45),440,IF(AND(455000<=I45,485000>I45),470,\"\"))))),IF(AND(485000<=I45,515000>I45),500,IF(AND(515000<=I45,545000>I45),530,IF(AND(545000<=I45,575000>I45),560,IF(AND(575000<=I45,605000>I45),590,IF(AND(605000<=I45,635000>I45),620,\"\"))))))","v":""}]
[null,null,"現物による額",null,"現物による報酬を入力",null,null,"備考",null,{"$f":"IF(635000<=I45,650,\"\")","v":""}]
[null,"郵便番号",null,null,"「542-0066」のように郵便番号を入力して下さい。",null,null,1,"70歳以上被用者該当"]
[null,"住民票住所",null,null,"住民票住所を入力",null,null,2,"二以上事業所勤務者の取得"]
[null,"理由",null,null,"1.海外在住・2.短期在留・3.その他",null,null,3,"短時間労働者の取得(特定適用事業所等)"]
[null,null,"その他",null,"3.その他の場合入力して下さい。",null,null,4,"退職後の継続再雇用者の取得"]
[null,"扶養家族種別",null,null,"扶養家族がいる場合「1」を入力して下さい。",null,null,5,{"$f":"D65","v":0}]
[null,"備考","該当する場合",null,"1.70歳以上被用者該当の場合「1」を入力してください。",null,null,"理由"]
[null,null,"該当する場合",null,"2.二以上事業所勤務者の取得の場合「2」を入力してください。",null,null,1,"海外在住"]
[null,null,"該当する場合",null,"3.短時間労働者の取得(特定適用事業所等)の場合「3」を入力してください。",null,null,2,"短期在留"]
[null,null,"該当する場合",null,"4.退職後の継続再雇用者の取得の場合「4」を入力してください。",null,null,3,{"$f":"D58","v":0}]
[null,null,"その他",null,"5.その他の場合「5」を入力してください。"]
[null,null,null,null,"5.その他の場合入力して下さい。"]
[]
[]
[]
[]
[]
[]
[]
[]
[]
[]
[]
[]
[]
[]
[]
[]
[]
[]
[]
[]
[null,"入力項目",null,"入力欄","備考"]
[3,"番号",null,null,"新規取得者の番号を入力",null,null,null,{"$f":"IF(ISNUMBER(D95),D95+D96,0)","v":0},{"$f":"IF(AND(1<=I87,93000>I87),IF(AND(1<=I87,63000>I87),58,IF(AND(63000<=I87,73000>I87),68,IF(AND(73000<=I87,83000>I87),78,IF(AND(83000<=I87,93000>I87),88)))),\"\")","v":""}]
[null,"氏名(漢字)",null,null,"氏名（漢字）を入力",null,null,"健保",{"$f":"IF(AND(1<=I87,93000>I87),J87,IF(AND(93000<=I87,175000>I87),J88,IF(AND(175000<=I87,350000>I87),J89,IF(AND(350000<=I87,635000>I87),J90,IF(AND(635000<=I87,1005000>I87),J91,IF(AND(1005000<=I87),J92,\"\"))))))","v":""},{"$f":"IF(AND(93000<=I87,130000>I87),IF(AND(93000<=I87,101000>I87),98,IF(AND(101000<=I87,107000>I87),104,IF(AND(107000<=I87,114000>I87),110,IF(AND(114000<=I87,122000>I87),118,IF(AND(122000<=I87,130000>I87),126,\"\"))))),IF(AND(130000<=I87,138000>I87),134,IF(AND(138000<=I87,146000>I87),142,IF(AND(146000<=I87,155000>I87),150,IF(AND(155000<=I87,165000>I87),160,IF(AND(165000<=I87,175000>I87),170,\"\"))))))","v":""}]
[null,"氏名(カナ)",null,null,"氏名（カナ）を入力",null,null,"年金",{"$f":"IF(AND(1<=I87,175000>I87),J93,IF(AND(175000<=I87,350000>I87),J94,IF(AND(350000<=I87,635000>I87),J95,IF(635000<=I87,650,\"\"))))","v":""},{"$f":"IF(AND(175000<=I87,250000>I87),IF(AND(175000<=I87,185000>I87),180,IF(AND(185000<=I87,195000>I87),190,IF(AND(195000<=I87,210000>I87),200,IF(AND(210000<=I87,230000>I87),220,IF(AND(230000<=I87,250000>I87),240,\"\"))))),IF(AND(250000<=I87,270000>I87),260,IF(AND(270000<=I87,290000>I87),280,IF(AND(290000<=I87,310000>I87),300,IF(AND(310000<=I87,330000>I87),320,IF(AND(330000<=I87,350000>I87),340,\"\"))))))","v":""}]
[null,"生年月日",null,null,"「H15.12.25」のように和暦で入力してください。",null,null,null,null,{"$f":"IF(AND(350000<=I87,485000>I87),IF(AND(350000<=I87,370000>I87),360,IF(AND(370000<=I87,395000>I87),380,IF(AND(395000<=I87,425000>I87),410,IF(AND(425000<=I87,455000>I87),440,IF(AND(455000<=I87,485000>I87),470,\"\"))))),IF(AND(485000<=I87,515000>I87),500,IF(AND(515000<=I87,545000>I87),530,IF(AND(545000<=I87,575000>I87),560,IF(AND(575000<=I87,605000>I87),590,IF(AND(605000<=I87,635000>I87),620,\"\"))))))","v":""}]
[null,"性別",null,null,"男性は「1」、女性は「2」を入力",null,null,null,null,{"$f":"IF(AND(635000<=I87,810000>I87),IF(AND(635000<=I87,665000>I87),650,IF(AND(665000<=I87,695000>I87),680,IF(AND(695000<=I87,730000>I87),710,IF(AND(730000<=I87,770000>I87),750,IF(AND(770000<=I87,810000>I87),790,\"\"))))),IF(AND(810000<=I87,855000>I87),830,IF(AND(855000<=I87,905000>I87),880,IF(AND(905000<=I87,955000>I87),930,IF(AND(955000<=I87,1005000>I87),980,\"\")))))","v":""}]
[null,"個人番号",null,null,"個人番号(マイナンバー)12桁を入力",null,null,null,null,{"$f":"IF(AND(1005000<=I87,1055000>I87),1030,IF(AND(1055000<=I87,1115000>I87),1090,IF(AND(1115000<=I87,1175000>I87),1150,IF(AND(1175000<=I87,1235000>I87),1210,(IF(AND(1235000<=I87,1295000>I87),1270,IF(AND(1295000<=I87,1355000>I87),1330,IF(1355000<=I87,1390,\"\"))))))))","v":""}]
[null,"基礎年金番号",null,null,"個人番号を入力した場合は不要です。",null,null,null,null,{"$f":"IF(AND(1<=I87,130000>I87),IF(AND(1<=I87,93000>I87),88,IF(AND(1<=I87,101000>I87),98,IF(AND(101000<=I87,107000>I87),104,IF(AND(107000<=I87,114000>I87),110,IF(AND(114000<=I87,122000>I87),118,IF(AND(122000<=I87,130000>I87),126,\"\")))))),IF(AND(130000<=I87,138000>I87),134,IF(AND(138000<=I87,146000>I87),142,IF(AND(146000<=I87,155000>I87),150,IF(AND(155000<=I87,165000>I87),\"160\",IF(AND(165000<=I87,175000>I87),170,\"\"))))))","v":""}]
[null,"取得年月日",null,null,"「R4.11.1」のように和暦で入力してください。",null,null,null,null,{"$f":"IF(AND(175000<=I87,250000>I87),IF(AND(175000<=I87,185000>I87),180,IF(AND(185000<=I87,195000>I87),190,IF(AND(195000<=I87,210000>I87),200,IF(AND(210000<=I87,230000>I87),220,IF(AND(230000<=I87,250000>I87),240,\"\"))))),IF(AND(250000<=I87,270000>I87),260,IF(AND(270000<=I87,290000>I87),280,IF(AND(290000<=I87,310000>I87),300,IF(AND(310000<=I87,330000>I87),320,IF(AND(330000<=I87,350000>I87),340,\"\"))))))","v":""}]
[null,"報酬月額","金銭による額",null,"金銭による報酬を入力",null,null,null,null,{"$f":"IF(AND(350000<=I87,485000>I87),IF(AND(350000<=I87,370000>I87),360,IF(AND(370000<=I87,395000>I87),380,IF(AND(395000<=I87,425000>I87),410,IF(AND(425000<=I87,455000>I87),440,IF(AND(455000<=I87,485000>I87),470,\"\"))))),IF(AND(485000<=I87,515000>I87),500,IF(AND(515000<=I87,545000>I87),530,IF(AND(545000<=I87,575000>I87),560,IF(AND(575000<=I87,605000>I87),590,IF(AND(605000<=I87,635000>I87),620,\"\"))))))","v":""}]
[null,null,"現物による額",null,"現物による報酬を入力",null,null,"備考",null,{"$f":"IF(635000<=I87,650,\"\")","v":""}]
[null,"郵便番号",null,null,"「542-0066」のように郵便番号を入力して下さい。",null,null,1,"70歳以上被用者該当"]
[null,"住民票住所",null,null,"住民票住所を入力",null,null,2,"二以上事業所勤務者の取得"]
[null,"理由",null,null,"1.海外在住・2.短期在留・3.その他",null,null,3,"短時間労働者の取得(特定適用事業所等)"]
[null,null,"その他",null,"3.その他の場合入力して下さい。",null,null,4,"退職後の継続再雇用者の取得"]
[null,"扶養家族種別",null,null,"扶養家族がいる場合「1」を入力して下さい。",null,null,5,{"$f":"D107","v":0}]
[null,"備考","該当する場合",null,"1.70歳以上被用者該当の場合「1」を入力してください。",null,null,"理由"]
[null,null,"該当する場合",null,"2.二以上事業所勤務者の取得の場合「2」を入力してください。",null,null,1,"海外在住"]
[null,null,"該当する場合",null,"3.短時間労働者の取得(特定適用事業所等)の場合「3」を入力してください。",null,null,2,"短期在留"]
[null,null,"該当する場合",null,"4.退職後の継続再雇用者の取得の場合「4」を入力してください。",null,null,3,{"$f":"D100","v":0}]
[null,null,"その他",null,"5.その他の場合「5」を入力してください。"]
[null,null,null,null,"5.その他の場合入力して下さい。"]
[]
[]
[]
[]
[]
[]
[]
[]
[]
[]
[]
[]
[]
[]
[]
[]
[]
[]
[]
[]
[null,"入力項目",null,"入力欄","備考"]
[4,"番号",null,null,"新規取得者の番号を入力",null,null,null,{"$f":"IF(ISNUMBER(D137),D137+D138,0)","v":0},{"$f":"IF(AND(1<=I129,93000>I129),IF(AND(1<=I129,63000>I129),58,IF(AND(63000<=I129,73000>I129),68,IF(AND(73000<=I129,83000>I129),78,IF(AND(83000<=I129,93000>I129),88)))),\"\")","v":""}]
[null,"氏名(漢字)",null,null,"氏名（漢字）を入力",null,null,"健保",{"$f":"IF(AND(1<=I129,93000>I129),J129,IF(AND(93000<=I129,175000>I129),J130,IF(AND(175000<=I129,350000>I129),J131,IF(AND(350000<=I129,635000>I129),J132,IF(AND(635000<=I129,1005000>I129),J133,IF(AND(1005000<=I129),J134,\"\"))))))","v":""},{"$f":"IF(AND(93000<=I129,130000>I129),IF(AND(93000<=I129,101000>I129),98,IF(AND(101000<=I129,107000>I129),104,IF(AND(107000<=I129,114000>I129),110,IF(AND(114000<=I129,122000>I129),118,IF(AND(122000<=I129,130000>I129),126,\"\"))))),IF(AND(130000<=I129,138000>I129),134,IF(AND(138000<=I129,146000>I129),142,IF(AND(146000<=I129,155000>I129),150,IF(AND(155000<=I129,165000>I129),160,IF(AND(165000<=I129,175000>I129),170,\"\"))))))","v":""}]
[null,"氏名(カナ)",null,null,"氏名（カナ）を入力",null,null,"年金",{"$f":"IF(AND(1<=I129,175000>I129),J135,IF(AND(175000<=I129,350000>I129),J136,IF(AND(350000<=I129,635000>I129),J137,IF(635000<=I129,650,\"\"))))","v":""},{"$f":"IF(AND(175000<=I129,250000>I129),IF(AND(175000<=I129,185000>I129),180,IF(AND(185000<=I129,195000>I129),190,IF(AND(195000<=I129,210000>I129),200,IF(AND(210000<=I129,230000>I129),220,IF(AND(230000<=I129,250000>I129),240,\"\"))))),IF(AND(250000<=I129,270000>I129),260,IF(AND(270000<=I129,290000>I129),280,IF(AND(290000<=I129,310000>I129),300,IF(AND(310000<=I129,330000>I129),320,IF(AND(330000<=I129,350000>I129),340,\"\"))))))","v":""}]
[null,"生年月日",null,null,"「H15.12.25」のように和暦で入力してください。",null,null,null,null,{"$f":"IF(AND(350000<=I129,485000>I129),IF(AND(350000<=I129,370000>I129),360,IF(AND(370000<=I129,395000>I129),380,IF(AND(395000<=I129,425000>I129),410,IF(AND(425000<=I129,455000>I129),440,IF(AND(455000<=I129,485000>I129),470,\"\"))))),IF(AND(485000<=I129,515000>I129),500,IF(AND(515000<=I129,545000>I129),530,IF(AND(545000<=I129,575000>I129),560,IF(AND(575000<=I129,605000>I129),590,IF(AND(605000<=I129,635000>I129),620,\"\"))))))","v":""}]
[null,"性別",null,null,"男性は「1」、女性は「2」を入力",null,null,null,null,{"$f":"IF(AND(635000<=I129,810000>I129),IF(AND(635000<=I129,665000>I129),650,IF(AND(665000<=I129,695000>I129),680,IF(AND(695000<=I129,730000>I129),710,IF(AND(730000<=I129,770000>I129),750,IF(AND(770000<=I129,810000>I129),790,\"\"))))),IF(AND(810000<=I129,855000>I129),830,IF(AND(855000<=I129,905000>I129),880,IF(AND(905000<=I129,955000>I129),930,IF(AND(955000<=I129,1005000>I129),980,\"\")))))","v":""}]
[null,"個人番号",null,null,"個人番号(マイナンバー)12桁を入力",null,null,null,null,{"$f":"IF(AND(1005000<=I129,1055000>I129),1030,IF(AND(1055000<=I129,1115000>I129),1090,IF(AND(1115000<=I129,1175000>I129),1150,IF(AND(1175000<=I129,1235000>I129),1210,(IF(AND(1235000<=I129,1295000>I129),1270,IF(AND(1295000<=I129,1355000>I129),1330,IF(1355000<=I129,1390,\"\"))))))))","v":""}]
[null,"基礎年金番号",null,null,"個人番号を入力した場合は不要です。",null,null,null,null,{"$f":"IF(AND(1<=I129,130000>I129),IF(AND(1<=I129,93000>I129),88,IF(AND(1<=I129,101000>I129),98,IF(AND(101000<=I129,107000>I129),104,IF(AND(107000<=I129,114000>I129),110,IF(AND(114000<=I129,122000>I129),118,IF(AND(122000<=I129,130000>I129),126,\"\")))))),IF(AND(130000<=I129,138000>I129),134,IF(AND(138000<=I129,146000>I129),142,IF(AND(146000<=I129,155000>I129),150,IF(AND(155000<=I129,165000>I129),\"160\",IF(AND(165000<=I129,175000>I129),170,\"\"))))))","v":""}]
[null,"取得年月日",null,null,"「R4.11.1」のように和暦で入力してください。",null,null,null,null,{"$f":"IF(AND(175000<=I129,250000>I129),IF(AND(175000<=I129,185000>I129),180,IF(AND(185000<=I129,195000>I129),190,IF(AND(195000<=I129,210000>I129),200,IF(AND(210000<=I129,230000>I129),220,IF(AND(230000<=I129,250000>I129),240,\"\"))))),IF(AND(250000<=I129,270000>I129),260,IF(AND(270000<=I129,290000>I129),280,IF(AND(290000<=I129,310000>I129),300,IF(AND(310000<=I129,330000>I129),320,IF(AND(330000<=I129,350000>I129),340,\"\"))))))","v":""}]
[null,"報酬月額","金銭による額",null,"金銭による報酬を入力",null,null,null,null,{"$f":"IF(AND(350000<=I129,485000>I129),IF(AND(350000<=I129,370000>I129),360,IF(AND(370000<=I129,395000>I129),380,IF(AND(395000<=I129,425000>I129),410,IF(AND(425000<=I129,455000>I129),440,IF(AND(455000<=I129,485000>I129),470,\"\"))))),IF(AND(485000<=I129,515000>I129),500,IF(AND(515000<=I129,545000>I129),530,IF(AND(545000<=I129,575000>I129),560,IF(AND(575000<=I129,605000>I129),590,IF(AND(605000<=I129,635000>I129),620,\"\"))))))","v":""}]
[null,null,"現物による額",null,"現物による報酬を入力",null,null,"備考",null,{"$f":"IF(635000<=I129,650,\"\")","v":""}]
[null,"郵便番号",null,null,"「542-0066」のように郵便番号を入力して下さい。",null,null,1,"70歳以上被用者該当"]
[null,"住民票住所",null,null,"住民票住所を入力",null,null,2,"二以上事業所勤務者の取得"]
[null,"理由",null,null,"1.海外在住・2.短期在留・3.その他",null,null,3,"短時間労働者の取得(特定適用事業所等)"]
[null,null,"その他",null,"3.その他の場合入力して下さい。",null,null,4,"退職後の継続再雇用者の取得"]
[null,"扶養家族種別",null,null,"扶養家族がいる場合「1」を入力して下さい。",null,null,5,{"$f":"D149","v":0}]
[null,"備考","該当する場合",null,"1.70歳以上被用者該当の場合「1」を入力してください。",null,null,"理由"]
[null,null,"該当する場合",null,"2.二以上事業所勤務者の取得の場合「2」を入力してください。",null,null,1,"海外在住"]
[null,null,"該当する場合",null,"3.短時間労働者の取得(特定適用事業所等)の場合「3」を入力してください。",null,null,2,"短期在留"]
[null,null,"該当する場合",null,"4.退職後の継続再雇用者の取得の場合「4」を入力してください。",null,null,3,{"$f":"D142","v":0}]
[null,null,"その他",null,"5.その他の場合「5」を入力してください。"]
[null,null,null,null,"5.その他の場合入力して下さい。"]

{"sheet":"健保正","index":3,"n_rows":234,"n_cols":132,"rows_kept":234,"cut":false,"hidden":false,"merged":[[77,60,86,63],[77,12,86,23],[67,12,76,23],[77,24,79,26],[80,24,86,31],[100,5,106,11],[77,27,79,31],[67,32,70,39],[71,32,76,39],[67,40,70,79],[71,40,76,79],[77,40,86,43],[77,44,86,47],[77,48,86,51],[77,52,86,55],[77,56,86,59],[77,32,86,35],[77,76,86,79],[77,36,86,39],[67,0,106,4],[87,12,91,15],[92,12,96,15],[87,16,91,23],[92,16,96,23],[70,5,76,11],[77,5,79,7],[77,8,79,11],[80,5,86,11],[87,5,89,7],[87,8,89,11],[90,5,96,11],[97,5,99,11],[97,16,100,27],[97,12,100,15],[101,12,106,27],[67,5,69,7],[67,8,69,11],[67,24,69,26],[67,27,69,31],[70,24,76,31],[3,131,12,141],[0,76,2,86],[0,87,2,97],[0,98,2,108],[0,109,2,119],[0,120,2,130],[0,131,2,141],[3,76,12,86],[3,87,12,97],[3,98,12,108],[3,109,12,119],[3,120,12,130],[15,0,53,4],[1,14,7,73],[20,5,24,15],[20,16,22,69],[23,16,25,18],[23,19,25,31],[23,32,25,69],[25,5,30,15],[26,16,32,69],[31,5,33,15],[33,16,33,69],[9,0,12,27],[20,105,23,139],[24,105,52,139],[15,5,18,15],[15,16,18,23],[34,5,39,15],[34,16,39,69],[40,5,40,15],[40,16,40,69],[41,5,46,15],[41,16,46,61],[41,62,46,69],[47,5,47,15],[47,16,47,69],[48,5,53,15],[48,16,53,69],[50,71,54,101],[55,131,64,139],[55,71,64,130],[77,88,86,118],[77,80,79,82],[77,83,79,87],[80,80,86,87],[77,64,86,67],[77,68,86,71],[77,72,86,75],[67,88,76,118],[67,119,69,121],[67,122,69,126],[70,119,76,126],[67,80,69,82],[67,83,69,87],[70,80,76,87],[67,127,76,141],[77,127,86,141],[87,107,89,111],[90,104,101,111],[87,80,96,87],[87,88,91,95],[92,88,96,95],[87,96,91,103],[92,96,96,103],[77,119,79,121],[77,122,79,126],[80,119,86,126],[102,115,106,141],[87,112,89,113],[90,112,92,113],[93,112,95,113],[96,112,98,113],[99,112,101,113],[102,104,106,111],[97,28,106,30],[97,31,106,103],[87,44,91,47],[87,24,91,43],[92,24,96,43],[92,44,96,47],[87,76,91,79],[92,76,96,79],[87,48,91,75],[92,48,96,75],[102,112,106,114],[93,114,95,141],[90,114,92,141],[87,114,89,141],[96,114,98,141],[99,114,101,141],[87,104,89,106],[109,0,148,4],[109,5,111,7],[109,8,111,11],[109,12,118,23],[109,24,111,26],[109,27,111,31],[109,32,112,39],[109,40,112,79],[109,80,111,82],[119,5,121,7],[119,8,121,11],[119,12,128,23],[119,24,121,26],[119,27,121,31],[119,32,128,35],[119,36,128,39],[119,40,128,43],[119,44,128,47],[119,48,128,51],[119,52,128,55],[119,56,128,59],[119,60,128,63],[119,64,128,67],[119,68,128,71],[109,83,111,87],[109,88,118,118],[109,119,111,121],[109,122,111,126],[109,127,118,141],[112,5,118,11],[112,24,118,31],[112,80,118,87],[112,119,118,126],[113,32,118,39],[113,40,118,79],[119,72,128,75],[119,76,128,79],[119,80,121,82],[119,83,121,87],[119,88,128,118],[119,119,121,121],[119,122,121,126],[119,127,128,141],[122,5,128,11],[122,24,128,31],[122,80,128,87],[122,119,128,126],[129,5,131,7],[129,8,131,11],[129,12,133,15],[129,16,133,23],[129,24,133,43],[129,44,133,47],[129,48,133,75],[129,76,133,79],[129,80,138,87],[129,88,133,95],[129,96,133,103],[129,104,131,106],[129,107,131,111],[129,112,131,113],[129,114,131,141],[132,5,138,11],[132,104,143,111],[132,112,134,113],[132,114,134,141],[134,12,138,15],[134,16,138,23],[134,24,138,43],[134,44,138,47],[134,48,138,75],[134,76,138,79],[134,88,138,95],[134,96,138,103],[135,112,137,113],[135,114,137,141],[138,112,140,113],[138,114,140,141],[139,5,141,11],[139,12,142,15],[139,16,142,27],[139,28,148,30],[139,31,148,103],[141,112,143,113],[141,114,143,141],[142,5,148,11],[143,12,148,27],[144,104,148,111],[144,112,148,114],[144,115,148,141],[151,0,190,4],[151,5,153,7],[151,8,153,11],[151,12,160,23],[151,24,153,26],[151,27,153,31],[151,32,154,39],[151,40,154,79],[151,80,153,82],[161,5,163,7],[161,8,163,11],[161,12,170,23],[161,24,163,26],[161,27,163,31],[161,32,170,35],[161,36,170,39],[161,40,170,43],[161,44,170,47],[161,48,170,51],[161,52,170,55],[161,56,170,59],[161,60,170,63],[161,64,170,67],[161,68,170,71],[151,83,153,87],[151,88,160,118],[151,119,153,121],[151,122,153,126],[151,127,160,141],[154,5,160,11],[154,24,160,31],[154,80,160,87],[154,119,160,126],[155,32,160,39],[155,40,160,79],[161,72,170,75],[161,76,170,79],[161,80,163,82],[161,83,163,87],[161,88,170,118],[161,119,163,121],[161,122,163,126],[161,127,170,141],[164,5,170,11],[164,24,170,31],[164,80,170,87],[164,119,170,126],[171,5,173,7],[171,8,173,11],[171,12,175,15],[171,16,175,23],[171,24,175,43],[171,44,175,47],[171,48,175,75],[171,76,175,79],[171,80,180,87],[171,88,175,95],[171,96,175,103],[171,104,173,106],[171,107,173,111],[171,112,173,113],[171,114,173,141],[174,5,180,11],[174,104,185,111],[174,112,176,113],[174,114,176,141],[176,12,180,15],[176,16,180,23],[176,24,180,43],[176,44,180,47],[176,48,180,75],[176,76,180,79],[176,88,180,95],[176,96,180,103],[177,112,179,113],[177,114,179,141],[180,112,182,113],[180,114,182,141],[181,5,183,11],[181,12,184,15],[181,16,184,27],[181,28,190,30],[181,31,190,103],[183,112,185,113],[183,114,185,141],[184,5,190,11],[185,12,190,27],[186,104,190,111],[186,112,190,114],[186,115,190,141],[193,0,232,4],[193,5,195,7],[193,8,195,11],[193,12,202,23],[193,24,195,26],[193,27,195,31],[193,32,196,39],[193,40,196,79],[193,80,195,82],[203,5,205,7],[203,8,205,11],[203,12,212,23],[203,24,205,26],[203,27,205,31],[203,32,212,35],[203,36,212,39],[203,40,212,43],[203,44,212,47],[203,48,212,51],[203,52,212,55],[203,56,212,59],[203,60,212,63],[203,64,212,67],[203,68,212,71],[193,83,195,87],[193,88,202,118],[193,119,195,121],[193,122,195,126],[193,127,202,141],[196,5,202,11],[196,24,202,31],[196,80,202,87],[196,119,202,126],[197,32,202,39],[197,40,202,79],[203,72,212,75],[203,76,212,79],[203,80,205,82],[203,83,205,87],[203,88,212,118],[203,119,205,121],[203,122,205,126],[203,127,212,141],[206,5,212,11],[206,24,212,31],[206,80,212,87],[206,119,212,126],[213,5,215,7],[213,8,215,11],[213,12,217,15],[213,16,217,23],[213,24,217,43],[213,44,217,47],[213,48,217,75],[213,76,217,79],[213,80,222,87],[213,88,217,95],[213,96,217,103],[213,104,215,106],[213,107,215,111],[213,112,215,113],[213,114,215,141],[216,5,222,11],[216,104,227,111],[216,112,218,113],[216,114,218,141],[218,12,222,15],[218,16,222,23],[218,24,222,43],[218,44,222,47],[218,48,222,75],[218,76,222,79],[218,88,222,95],[218,96,222,103],[219,112,221,113],[219,114,221,141],[222,112,224,113],[222,114,224,141],[223,5,225,11],[223,12,226,15],[233,108,235,141],[223,16,226,27],[223,28,232,30],[223,31,232,103],[225,112,227,113],[225,114,227,141],[226,5,232,11],[227,12,232,27],[228,104,232,111],[228,112,232,114],[228,115,232,141]]}
[null,null,null,null,null,null,null,null,null,null,null,null,null,null,null,null,null,null,null,null,null,null,null,null,null,null,null,null,null,null,null,null,null,null,null,null,null,null,null,null,null,null,null,null,null,null,null,null,null,null,null,null,null,null,null,null,null,null,null,null,null,null,null,null,null,null,null,null,null,null,null,null,null,null,null,null,"常務理事",null,null,null,null,null,null,null,null,null,null,"事務長",null,null,null,null,null,null,null,null,null,null,"部長",null,null,null,null,null,null,null,null,null,null,"課長",null,null,null,null,null,null,null,null,null,null,"係長",null,null,null,null,null,null,null,null,null,null,"係"]
[null,null,null,null,null,null,null,null,null,null,null,null,null,null,"健康保険　被保険者資格取得届\n70歳以上被用者該当届"]
[]
[]
[]
[]
[]
[]
[]
[{"$f":"基本情報登録!C2","v":"2023-12-06"}]
[]
[]
[]
[]
[]
["事業主記入欄",null,null,null,null,"記号",null,null,null,null,null,null,null,null,null,null,{"$f":"基本情報登録!C6","v":"532"}]
[]
[]
[]
[]
[null,null,null,null,null,null,null,null,null,null,null,null,null,null,null,null,"届書記入の個人番号に誤りがないことを確認しました。",null,null,null,null,null,null,null,null,null,null,null,null,null,null,null,null,null,null,null,null,null,null,null,null,null,null,null,null,null,null,null,null,null,null,null,null,null,null,null,null,null,null,null,null,null,null,null,null,null,null,null,null,null,null,null,null,null,null,null,null,null,null,null,null,null,null,null,null,null,null,null,null,null,null,null,null,null,null,null,null,null,null,null,null,null,null,null,null,"受付印"]
[]
[]
[null,null,null,null,null,null,null,null,null,null,null,null,null,null,null,null,"〒",null,null,{"$f":"基本情報登録!C7","v":"542-0066"}]
[]
[null,null,null,null,null,"事業所\n所在地"]
[null,null,null,null,null,null,null,null,null,null,null,null,null,null,null,null,{"$f":"基本情報登録!C8","v":"大阪府大阪市中央区瓦屋町2-3-1"}]
[]
[]
[]
[]
[]
[]
[]
[null,null,null,null,null,"事業所\n名称",null,null,null,null,null,null,null,null,null,null,{"$f":"基本情報登録!C9","v":"大阪自動車整備健康保険組合"}]
[]
[]
[]
[]
[]
[]
[null,null,null,null,null,"事業主\n氏名",null,null,null,null,null,null,null,null,null,null,{"$f":"基本情報登録!C10","v":"理事長　健保　太郎"}]
[]
[]
[]
[]
[]
[]
[null,null,null,null,null,"電話番号",null,null,null,null,null,null,null,null,null,null,{"$f":"基本情報登録!C11","v":"06-6762-6371"}]
[]
[null,null,null,null,null,null,null,null,null,null,null,null,null,null,null,null,null,null,null,null,null,null,null,null,null,null,null,null,null,null,null,null,null,null,null,null,null,null,null,null,null,null,null,null,null,null,null,null,null,null,null,null,null,null,null,null,null,null,null,null,null,null,null,null,null,null,null,null,null,null,null,"社会保険労務士記載欄"]
[]
[]
[]
[]
[]
[]
[]
[]
[]
[]
[]
[]
[]
[]
[]
[]
["被保険者１",null,null,null,null,1,null,null,null,null,null,null,{"$f":"IF(ISTEXT(取得者情報入力!D3),取得者情報入力!D3,\"\")","v":"551"},null,null,null,null,null,null,null,null,null,null,null,2,null,null,null,null,null,null,null,"(ﾌﾘｶﾞﾅ)",null,null,null,null,null,null,null,{"$f":"IF(ISTEXT(取得者情報入力!D5),取得者情報入力!D5,\"\")","v":"ケンポ　ハナコ"},null,null,null,null,null,null,null,null,null,null,null,null,null,null,null,null,null,null,null,null,null,null,null,null,null,null,null,null,null,null,null,null,null,null,null,null,null,null,null,3,null,null,null,null,null,null,null,{"$f":"IF(ISNUMBER(取得者情報入力!D6),取得者情報入力!D6,\"\")","v":"2003-12-25"},null,null,null,null,null,null,null,null,null,null,null,null,null,null,null,null,null,null,null,null,null,null,null,null,null,null,null,null,null,null,4,null,null,null,null,null,null,null,{"$f":"IF(ISTEXT(取得者情報入力!D7),IF(取得者情報入力!D7=\"1\",\"男\",IF(取得者情報入力!D7=\"2\",\"女\",\"１男・２女\")),\"１男・２女\")","v":"女"}]
[]
[]
[null,null,null,null,null,"番号",null,null,null,null,null,null,null,null,null,null,null,null,null,null,null,null,null,null,"氏名",null,null,null,null,null,null,null,null,null,null,null,null,null,null,null,null,null,null,null,null,null,null,null,null,null,null,null,null,null,null,null,null,null,null,null,null,null,null,null,null,null,null,null,null,null,null,null,null,null,null,null,null,null,null,null,"生年\n月日",null,null,null,null,null,null,null,null,null,null,null,null,null,null,null,null,null,null,null,null,null,null,null,null,null,null,null,null,null,null,null,null,null,null,null,null,null,null,"種別"]
[null,null,null,null,null,null,null,null,null,null,null,null,null,null,null,null,null,null,null,null,null,null,null,null,null,null,null,null,null,null,null,null,"(氏名)",null,null,null,null,null,null,null,{"$f":"IF(ISTEXT(取得者情報入力!D4),取得者情報入力!D4,\"\")","v":"健保　華子"}]
[]
[]
[]
[]
[]
[null,null,null,null,null,5,null,null,null,null,null,null,"1.健保・厚年",null,null,null,null,null,null,null,null,null,null,null,6,null,null,null,null,null,null,null,{"$f":"IF(ISTEXT(取得者情報入力!D8),MID(取得者情報入力!D8,1,1),IF(ISTEXT(取得者情報入力!D9),MID(取得者情報入力!D9,1,1),\"\"))","v":"1"},null,null,null,{"$f":"IF(ISTEXT(取得者情報入力!D8),MID(取得者情報入力!D8,2,1),IF(ISTEXT(取得者情報入力!D9),MID(取得者情報入力!D9,2,1),\"\"))","v":"2"},null,null,null,{"$f":"IF(ISTEXT(取得者情報入力!D8),MID(取得者情報入力!D8,3,1),IF(ISTEXT(取得者情報入力!D9),MID(取得者情報入力!D9,3,1),\"\"))","v":"3"},null,null,null,{"$f":"IF(ISTEXT(取得者情報入力!D8),MID(取得者情報入力!D8,4,1),IF(ISTEXT(取得者情報入力!D9),MID(取得者情報入力!D9,4,1),\"\"))","v":"4"},null,null,null,{"$f":"IF(ISTEXT(取得者情報入力!D8),MID(取得者情報入力!D8,5,1),IF(ISTEXT(取得者情報入力!D9),MID(取得者情報入力!D9,5,1),\"\"))","v":"5"},null,null,null,{"$f":"IF(ISTEXT(取得者情報入力!D8),MID(取得者情報入力!D8,6,1),IF(ISTEXT(取得者情報入力!D9),MID(取得者情報入力!D9,6,1),\"\"))","v":"6"},null,null,null,{"$f":"IF(ISTEXT(取得者情報入力!D8),MID(取得者情報入力!D8,7,1),IF(ISTEXT(取得者情報入力!D9),MID(取得者情報入力!D9,7,1),\"\"))","v":"7"},null,null,null,{"$f":"IF(ISTEXT(取得者情報入力!D8),MID(取得者情報入力!D8,8,1),IF(ISTEXT(取得者情報入力!D9),MID(取得者情報入力!D9,8,1),\"\"))","v":"8"},null,null,null,{"$f":"IF(ISTEXT(取得者情報入力!D8),MID(取得者情報入力!D8,9,1),IF(ISTEXT(取得者情報入力!D9),MID(取得者情報入力!D9,9,1),\"\"))","v":"9"},null,null,null,{"$f":"IF(ISTEXT(取得者情報入力!D8),MID(取得者情報入力!D8,10,1),IF(ISTEXT(取得者情報入力!D9),MID(取得者情報入力!D9,10,1),\"\"))","v":"0"},null,null,null,{"$f":"IF(ISTEXT(取得者情報入力!D8),MID(取得者情報入力!D8,11,1),IF(ISTEXT(取得者情報入力!D9),MID(取得者情報入力!D9,11,1),\"\"))","v":"1"},null,null,null,{"$f":"IF(ISTEXT(取得者情報入力!D8),MID(取得者情報入力!D8,12,1),IF(ISTEXT(取得者情報入力!D9),MID(取得者情報入力!D9,12,1),\"\"))","v":"2"},null,null,null,7,null,null,null,null,null,null,null,{"$f":"IF(ISNUMBER(取得者情報入力!D10),取得者情報入力!D10,\"\")","v":"2022-11-01"},null,null,null,null,null,null,null,null,null,null,null,null,null,null,null,null,null,null,null,null,null,null,null,null,null,null,null,null,null,null,8,null,null,null,null,null,null,null,{"$f":"IF(ISTEXT(取得者情報入力!D7),IF(取得者情報入力!D17=\"1\",\"有\",\"無\"),\"０無・１有\")","v":"有"}]
[]
[]
[null,null,null,null,null,"取得区分",null,null,null,null,null,null,null,null,null,null,null,null,null,null,null,null,null,null,"個人番号(基礎年金番号)",null,null,null,null,null,null,null,null,null,null,null,null,null,null,null,null,null,null,null,null,null,null,null,null,null,null,null,null,null,null,null,null,null,null,null,null,null,null,null,null,null,null,null,null,null,null,null,null,null,null,null,null,null,null,null,"取得\n(該当)\n年月日",null,null,null,null,null,null,null,null,null,null,null,null,null,null,null,null,null,null,null,null,null,null,null,null,null,null,null,null,null,null,null,null,null,null,null,null,null,null,"被扶\n養者"]
[]
[]
[]
[]
[]
[]
[null,null,null,null,null,9,null,null,null,null,null,null,"ｱ",null,null,null,"(通貨)",null,null,null,null,null,null,null,{"$f":"IF(ISNUMBER(取得者情報入力!D11),取得者情報入力!D11,\"\")","v":1500000},null,null,null,null,null,null,null,null,null,null,null,null,null,null,null,null,null,null,null,"円",null,null,null,"ｳ（合計ｱ+ｲ）",null,null,null,null,null,null,null,null,null,null,null,null,null,null,null,null,null,null,null,null,null,null,null,null,null,null,null,null,null,null,null,"標準\n報酬\n月額",null,null,null,null,null,null,null,"健保",null,null,null,null,null,null,null,{"$f":"IF(ISNUMBER(Y88),取得者情報入力!I4,\"\")","v":1390},null,null,null,null,null,null,null,10,null,null,null,null,null,null,null,{"$f":"IF(ISNUMBER(取得者情報入力!D18),(取得者情報入力!D18),\"\")","v":""},null,{"$f":"IF(ISNUMBER(取得者情報入力!D18),(取得者情報入力!I13),\"\")","v":""}]
[]
[]
[null,null,null,null,null,"報酬月額",null,null,null,null,null,null,null,null,null,null,null,null,null,null,null,null,null,null,null,null,null,null,null,null,null,null,null,null,null,null,null,null,null,null,null,null,null,null,null,null,null,null,null,null,null,null,null,null,null,null,null,null,null,null,null,null,null,null,null,null,null,null,null,null,null,null,null,null,null,null,null,null,null,null,null,null,null,null,null,null,null,null,null,null,null,null,null,null,null,null,null,null,null,null,null,null,null,null,"備考",null,null,null,null,null,null,null,{"$f":"IF(ISNUMBER(取得者情報入力!D19),(取得者情報入力!D19),\"\")","v":""},null,{"$f":"IF(ISNUMBER(取得者情報入力!D19),(取得者情報入力!I14),\"\")","v":""}]
[]
[null,null,null,null,null,null,null,null,null,null,null,null,"ｲ",null,null,null,"(現物)",null,null,null,null,null,null,null,{"$f":"IF(ISNUMBER(取得者情報入力!D12),取得者情報入力!D12,\"\")","v":300000},null,null,null,null,null,null,null,null,null,null,null,null,null,null,null,null,null,null,null,"円",null,null,null,{"$f":"IF(ISNUMBER(Y88),IF(Y93=\"\",Y88,Y88+Y93),\"\")","v":1800000},null,null,null,null,null,null,null,null,null,null,null,null,null,null,null,null,null,null,null,null,null,null,null,null,null,null,null,"円",null,null,null,null,null,null,null,null,null,null,null,"年金",null,null,null,null,null,null,null,{"$f":"IF(ISNUMBER(Y88),取得者情報入力!I5,\"\")","v":650}]
[null,null,null,null,null,null,null,null,null,null,null,null,null,null,null,null,null,null,null,null,null,null,null,null,null,null,null,null,null,null,null,null,null,null,null,null,null,null,null,null,null,null,null,null,null,null,null,null,null,null,null,null,null,null,null,null,null,null,null,null,null,null,null,null,null,null,null,null,null,null,null,null,null,null,null,null,null,null,null,null,null,null,null,null,null,null,null,null,null,null,null,null,null,null,null,null,null,null,null,null,null,null,null,null,null,null,null,null,null,null,null,null,{"$f":"IF(ISNUMBER(取得者情報入力!D20),(取得者情報入力!D20),\"\")","v":""},null,{"$f":"IF(ISNUMBER(取得者情報入力!D20),(取得者情報入力!I15),\"\")","v":""}]
[]
[]
[null,null,null,null,null,null,null,null,null,null,null,null,null,null,null,null,null,null,null,null,null,null,null,null,null,null,null,null,null,null,null,null,null,null,null,null,null,null,null,null,null,null,null,null,null,null,null,null,null,null,null,null,null,null,null,null,null,null,null,null,null,null,null,null,null,null,null,null,null,null,null,null,null,null,null,null,null,null,null,null,null,null,null,null,null,null,null,null,null,null,null,null,null,null,null,null,null,null,null,null,null,null,null,null,null,null,null,null,null,null,null,null,{"$f":"IF(ISNUMBER(取得者情報入力!D21),(取得者情報入力!D21),\"\")","v":""},null,{"$f":"IF(ISNUMBER(取得者情報入力!D21),(取得者情報入力!I16),\"\")","v":""}]
[null,null,null,null,null,11,null,null,null,null,null,null,"〒",null,null,null,{"$f":"IF(ISTEXT(取得者情報入力!D13),取得者情報入力!D13,\"\")","v":"542-0066"},null,null,null,null,null,null,null,null,null,null,null,null,null,null,{"$f":"IF(ISTEXT(取得者情報入力!D14),取得者情報入力!D14,\"\")","v":"大阪府大阪市中央区瓦屋町2-3-1"}]
[]
[null,null,null,null,null,null,null,null,null,null,null,null,null,null,null,null,null,null,null,null,null,null,null,null,null,null,null,null,null,null,null,null,null,null,null,null,null,null,null,null,null,null,null,null,null,null,null,null,null,null,null,null,null,null,null,null,null,null,null,null,null,null,null,null,null,null,null,null,null,null,null,null,null,null,null,null,null,null,null,null,null,null,null,null,null,null,null,null,null,null,null,null,null,null,null,null,null,null,null,null,null,null,null,null,null,null,null,null,null,null,null,null,{"$f":"IF(ISNUMBER(取得者情報入力!D22),(取得者情報入力!D22),\"\")","v":""},null,{"$f":"IF(ISNUMBER(取得者情報入力!D22),(取得者情報入力!I17),\"\")","v":""}]
[null,null,null,null,null,"住民票\n住所"]
[]
[null,null,null,null,null,null,null,null,null,null,null,null,null,null,null,null,null,null,null,null,null,null,null,null,null,null,null,null,null,null,null,null,null,null,null,null,null,null,null,null,null,null,null,null,null,null,null,null,null,null,null,null,null,null,null,null,null,null,null,null,null,null,null,null,null,null,null,null,null,null,null,null,null,null,null,null,null,null,null,null,null,null,null,null,null,null,null,null,null,null,null,null,null,null,null,null,null,null,null,null,null,null,null,null,"理由",null,null,null,null,null,null,null,{"$f":"IF(ISNUMBER(取得者情報入力!D15),(取得者情報入力!D15),\"\")","v":""},null,null,{"$f":"IF(ISNUMBER(取得者情報入力!D15),VLOOKUP(取得者情報入力!D15,取得者情報入力!H19:I21,2,0),\"\")","v":""}]
[]
[]
[]
[]
[]
[]
["被保険者２",null,null,null,null,1,null,null,null,null,null,null,{"$f":"IF(ISTEXT(取得者情報入力!D45),取得者情報入力!D45,\"\")","v":""},null,null,null,null,null,null,null,null,null,null,null,2,null,null,null,null,null,null,null,"(ﾌﾘｶﾞﾅ)",null,null,null,null,null,null,null,{"$f":"IF(ISTEXT(取得者情報入力!D47),取得者情報入力!D47,\"\")","v":""},null,null,null,null,null,null,null,null,null,null,null,null,null,null,null,null,null,null,null,null,null,null,null,null,null,null,null,null,null,null,null,null,null,null,null,null,null,null,null,3,null,null,null,null,null,null,null,{"$f":"IF(ISNUMBER(取得者情報入力!D48),取得者情報入力!D48,\"\")","v":""},null,null,null,null,null,null,null,null,null,null,null,null,null,null,null,null,null,null,null,null,null,null,null,null,null,null,null,null,null,null,4,null,null,null,null,null,null,null,{"$f":"IF(ISTEXT(取得者情報入力!D49),IF(取得者情報入力!D49=\"1\",\"男\",IF(取得者情報入力!D49=\"2\",\"女\",\"１男・２女\")),\"１男・２女\")","v":"１男・２女"}]
[]
[]
[null,null,null,null,null,"番号",null,null,null,null,null,null,null,null,null,null,null,null,null,null,null,null,null,null,"氏名",null,null,null,null,null,null,null,null,null,null,null,null,null,null,null,null,null,null,null,null,null,null,null,null,null,null,null,null,null,null,null,null,null,null,null,null,null,null,null,null,null,null,null,null,null,null,null,null,null,null,null,null,null,null,null,"生年\n月日",null,null,null,null,null,null,null,null,null,null,null,null,null,null,null,null,null,null,null,null,null,null,null,null,null,null,null,null,null,null,null,null,null,null,null,null,null,null,"種別"]
[null,null,null,null,null,null,null,null,null,null,null,null,null,null,null,null,null,null,null,null,null,null,null,null,null,null,null,null,null,null,null,null,"(氏名)",null,null,null,null,null,null,null,{"$f":"IF(ISTEXT(取得者情報入力!D46),取得者情報入力!D46,\"\")","v":""}]
[]
[]
[]
[]
[]
[null,null,null,null,null,5,null,null,null,null,null,null,"1.健保・厚年",null,null,null,null,null,null,null,null,null,null,null,6,null,null,null,null,null,null,null,{"$f":"IF(ISTEXT(取得者情報入力!D50),MID(取得者情報入力!D50,1,1),IF(ISTEXT(取得者情報入力!D51),MID(取得者情報入力!D51,1,1),\"\"))","v":""},null,null,null,{"$f":"IF(ISTEXT(取得者情報入力!D50),MID(取得者情報入力!D50,2,1),IF(ISTEXT(取得者情報入力!D51),MID(取得者情報入力!D51,2,1),\"\"))","v":""},null,null,null,{"$f":"IF(ISTEXT(取得者情報入力!D50),MID(取得者情報入力!D50,3,1),IF(ISTEXT(取得者情報入力!D51),MID(取得者情報入力!D51,3,1),\"\"))","v":""},null,null,null,{"$f":"IF(ISTEXT(取得者情報入力!D50),MID(取得者情報入力!D50,4,1),IF(ISTEXT(取得者情報入力!D51),MID(取得者情報入力!D51,4,1),\"\"))","v":""},null,null,null,{"$f":"IF(ISTEXT(取得者情報入力!D50),MID(取得者情報入力!D50,5,1),IF(ISTEXT(取得者情報入力!D51),MID(取得者情報入力!D51,5,1),\"\"))","v":""},null,null,null,{"$f":"IF(ISTEXT(取得者情報入力!D50),MID(取得者情報入力!D50,6,1),IF(ISTEXT(取得者情報入力!D51),MID(取得者情報入力!D51,6,1),\"\"))","v":""},null,null,null,{"$f":"IF(ISTEXT(取得者情報入力!D50),MID(取得者情報入力!D50,7,1),IF(ISTEXT(取得者情報入力!D51),MID(取得者情報入力!D51,7,1),\"\"))","v":""},null,null,null,{"$f":"IF(ISTEXT(取得者情報入力!D50),MID(取得者情報入力!D50,8,1),IF(ISTEXT(取得者情報入力!D51),MID(取得者情報入力!D51,8,1),\"\"))","v":""},null,null,null,{"$f":"IF(ISTEXT(取得者情報入力!D50),MID(取得者情報入力!D50,9,1),IF(ISTEXT(取得者情報入力!D51),MID(取得者情報入力!D51,9,1),\"\"))","v":""},null,null,null,{"$f":"IF(ISTEXT(取得者情報入力!D50),MID(取得者情報入力!D50,10,1),IF(ISTEXT(取得者情報入力!D51),MID(取得者情報入力!D51,10,1),\"\"))","v":""},null,null,null,{"$f":"IF(ISTEXT(取得者情報入力!D50),MID(取得者情報入力!D50,11,1),IF(ISTEXT(取得者情報入力!D51),MID(取得者情報入力!D51,11,1),\"\"))","v":""},null,null,null,{"$f":"IF(ISTEXT(取得者情報入力!D50),MID(取得者情報入力!D50,12,1),IF(ISTEXT(取得者情報入力!D51),MID(取得者情報入力!D51,12,1),\"\"))","v":""},null,null,null,7,null,null,null,null,null,null,null,{"$f":"IF(ISNUMBER(取得者情報入力!D52),取得者情報入力!D52,\"\")","v":""},null,null,null,null,null,null,null,null,null,null,null,null,null,null,null,null,null,null,null,null,null,null,null,null,null,null,null,null,null,null,8,null,null,null,null,null,null,null,{"$f":"IF(ISTEXT(取得者情報入力!D49),IF(取得者情報入力!D59=\"1\",\"有\",\"無\"),\"０無・１有\")","v":"０無・１有"}]
[]
[]
[null,null,null,null,null,"取得区分",null,null,null,null,null,null,null,null,null,null,null,null,null,null,null,null,null,null,"個人番号(基礎年金番号)",null,null,null,null,null,null,null,null,null,null,null,null,null,null,null,null,null,null,null,null,null,null,null,null,null,null,null,null,null,null,null,null,null,null,null,null,null,null,null,null,null,null,null,null,null,null,null,null,null,null,null,null,null,null,null,"取得\n(該当)\n年月日",null,null,null,null,null,null,null,null,null,null,null,null,null,null,null,null,null,null,null,null,null,null,null,null,null,null,null,null,null,null,null,null,null,null,null,null,null,null,"被扶\n養者"]
[]
[]
[]
[]
[]
[]
[null,null,null,null,null,9,null,null,null,null,null,null,"ｱ",null,null,null,"(通貨)",null,null,null,null,null,null,null,{"$f":"IF(ISNUMBER(取得者情報入力!D53),取得者情報入力!D53,\"\")","v":""},null,null,null,null,null,null,null,null,null,null,null,null,null,null,null,null,null,null,null,"円",null,null,null,"ｳ（合計ｱ+ｲ）",null,null,null,null,null,null,null,null,null,null,null,null,null,null,null,null,null,null,null,null,null,null,null,null,null,null,null,null,null,null,null,"標準\n報酬\n月額",null,null,null,null,null,null,null,"健保",null,null,null,null,null,null,null,{"$f":"IF(ISNUMBER(Y130),取得者情報入力!I46,\"\")","v":""},null,null,null,null,null,null,null,10,null,null,null,null,null,null,null,{"$f":"IF(ISNUMBER(取得者情報入力!D60),(取得者情報入力!D60),\"\")","v":""},null,{"$f":"IF(ISNUMBER(取得者情報入力!D60),(取得者情報入力!I55),\"\")","v":""}]
[]
[]
[null,null,null,null,null,"報酬月額",null,null,null,null,null,null,null,null,null,null,null,null,null,null,null,null,null,null,null,null,null,null,null,null,null,null,null,null,null,null,null,null,null,null,null,null,null,null,null,null,null,null,null,null,null,null,null,null,null,null,null,null,null,null,null,null,null,null,null,null,null,null,null,null,null,null,null,null,null,null,null,null,null,null,null,null,null,null,null,null,null,null,null,null,null,null,null,null,null,null,null,null,null,null,null,null,null,null,"備考",null,null,null,null,null,null,null,{"$f":"IF(ISNUMBER(取得者情報入力!D61),(取得者情報入力!D61),\"\")","v":""},null,{"$f":"IF(ISNUMBER(取得者情報入力!D61),(取得者情報入力!I56),\"\")","v":""}]
[]
[null,null,null,null,null,null,null,null,null,null,null,null,"ｲ",null,null,null,"(現物)",null,null,null,null,null,null,null,{"$f":"IF(ISNUMBER(取得者情報入力!D54),取得者情報入力!D54,\"\")","v":""},null,null,null,null,null,null,null,null,null,null,null,null,null,null,null,null,null,null,null,"円",null,null,null,{"$f":"IF(ISNUMBER(Y130),IF(Y135=\"\",Y130,Y130+Y135),\"\")","v":""},null,null,null,null,null,null,null,null,null,null,null,null,null,null,null,null,null,null,null,null,null,null,null,null,null,null,null,"円",null,null,null,null,null,null,null,null,null,null,null,"年金",null,null,null,null,null,null,null,{"$f":"IF(ISNUMBER(Y130),取得者情報入力!I47,\"\")","v":""}]
[null,null,null,null,null,null,null,null,null,null,null,null,null,null,null,null,null,null,null,null,null,null,null,null,null,null,null,null,null,null,null,null,null,null,null,null,null,null,null,null,null,null,null,null,null,null,null,null,null,null,null,null,null,null,null,null,null,null,null,null,null,null,null,null,null,null,null,null,null,null,null,null,null,null,null,null,null,null,null,null,null,null,null,null,null,null,null,null,null,null,null,null,null,null,null,null,null,null,null,null,null,null,null,null,null,null,null,null,null,null,null,null,{"$f":"IF(ISNUMBER(取得者情報入力!D62),(取得者情報入力!D62),\"\")","v":""},null,{"$f":"IF(ISNUMBER(取得者情報入力!D62),(取得者情報入力!I57),\"\")","v":""}]
[]
[]
[null,null,null,null,null,null,null,null,null,null,null,null,null,null,null,null,null,null,null,null,null,null,null,null,null,null,null,null,null,null,null,null,null,null,null,null,null,null,null,null,null,null,null,null,null,null,null,null,null,null,null,null,null,null,null,null,null,null,null,null,null,null,null,null,null,null,null,null,null,null,null,null,null,null,null,null,null,null,null,null,null,null,null,null,null,null,null,null,null,null,null,null,null,null,null,null,null,null,null,null,null,null,null,null,null,null,null,null,null,null,null,null,{"$f":"IF(ISNUMBER(取得者情報入力!D63),(取得者情報入力!D63),\"\")","v":""},null,{"$f":"IF(ISNUMBER(取得者情報入力!D63),(取得者情報入力!I58),\"\")","v":""}]
[null,null,null,null,null,11,null,null,null,null,null,null,"〒",null,null,null,{"$f":"IF(ISTEXT(取得者情報入力!D55),取得者情報入力!D55,\"\")","v":""},null,null,null,null,null,null,null,null,null,null,null,null,null,null,{"$f":"IF(ISTEXT(取得者情報入力!D56),取得者情報入力!D56,\"\")","v":""}]
[]
[null,null,null,null,null,null,null,null,null,null,null,null,null,null,null,null,null,null,null,null,null,null,null,null,null,null,null,null,null,null,null,null,null,null,null,null,null,null,null,null,null,null,null,null,null,null,null,null,null,null,null,null,null,null,null,null,null,null,null,null,null,null,null,null,null,null,null,null,null,null,null,null,null,null,null,null,null,null,null,null,null,null,null,null,null,null,null,null,null,null,null,null,null,null,null,null,null,null,null,null,null,null,null,null,null,null,null,null,null,null,null,null,{"$f":"IF(ISNUMBER(取得者情報入力!D64),(取得者情報入力!D64),\"\")","v":""},null,{"$f":"IF(ISNUMBER(取得者情報入力!D64),(取得者情報入力!I59),\"\")","v":""}]
[null,null,null,null,null,"住民票\n住所"]
[]
[null,null,null,null,null,null,null,null,null,null,null,null,null,null,null,null,null,null,null,null,null,null,null,null,null,null,null,null,null,null,null,null,null,null,null,null,null,null,null,null,null,null,null,null,null,null,null,null,null,null,null,null,null,null,null,null,null,null,null,null,null,null,null,null,null,null,null,null,null,null,null,null,null,null,null,null,null,null,null,null,null,null,null,null,null,null,null,null,null,null,null,null,null,null,null,null,null,null,null,null,null,null,null,null,"理由",null,null,null,null,null,null,null,{"$f":"IF(ISNUMBER(取得者情報入力!D57),(取得者情報入力!D57),\"\")","v":""},null,null,{"$f":"IF(ISNUMBER(取得者情報入力!D57),VLOOKUP(取得者情報入力!D57,取得者情報入力!H61:I63,2,0),\"\")","v":""}]
[]
[]
[]
[]
[]
[]
["被保険者３",null,null,null,null,1,null,null,null,null,null,null,{"$f":"IF(ISTEXT(取得者情報入力!D87),取得者情報入力!D87,\"\")","v":""},null,null,null,null,null,null,null,null,null,null,null,2,null,null,null,null,null,null,null,"(ﾌﾘｶﾞﾅ)",null,null,null,null,null,null,null,{"$f":"IF(ISTEXT(取得者情報入力!D89),取得者情報入力!D89,\"\")","v":""},null,null,null,null,null,null,null,null,null,null,null,null,null,null,null,null,null,null,null,null,null,null,null,null,null,null,null,null,null,null,null,null,null,null,null,null,null,null,null,3,null,null,null,null,null,null,null,{"$f":"IF(ISNUMBER(取得者情報入力!D90),取得者情報入力!D90,\"\")","v":""},null,null,null,null,null,null,null,null,null,null,null,null,null,null,null,null,null,null,null,null,null,null,null,null,null,null,null,null,null,null,4,null,null,null,null,null,null,null,{"$f":"IF(ISTEXT(取得者情報入力!D91),IF(取得者情報入力!D91=\"1\",\"男\",IF(取得者情報入力!D91=\"2\",\"女\",\"１男・２女\")),\"１男・２女\")","v":"１男・２女"}]
[]
[]
[null,null,null,null,null,"番号",null,null,null,null,null,null,null,null,null,null,null,null,null,null,null,null,null,null,"氏名",null,null,null,null,null,null,null,null,null,null,null,null,null,null,null,null,null,null,null,null,null,null,null,null,null,null,null,null,null,null,null,null,null,null,null,null,null,null,null,null,null,null,null,null,null,null,null,null,null,null,null,null,null,null,null,"生年\n月日",null,null,null,null,null,null,null,null,null,null,null,null,null,null,null,null,null,null,null,null,null,null,null,null,null,null,null,null,null,null,null,null,null,null,null,null,null,null,"種別"]
[null,null,null,null,null,null,null,null,null,null,null,null,null,null,null,null,null,null,null,null,null,null,null,null,null,null,null,null,null,null,null,null,"(氏名)",null,null,null,null,null,null,null,{"$f":"IF(ISTEXT(取得者情報入力!D88),取得者情報入力!D88,\"\")","v":""}]
[]
[]
[]
[]
[]
[null,null,null,null,null,5,null,null,null,null,null,null,"1.健保・厚年",null,null,null,null,null,null,null,null,null,null,null,6,null,null,null,null,null,null,null,{"$f":"IF(ISTEXT(取得者情報入力!D92),MID(取得者情報入力!D92,1,1),IF(ISTEXT(取得者情報入力!D93),MID(取得者情報入力!D93,1,1),\"\"))","v":""},null,null,null,{"$f":"IF(ISTEXT(取得者情報入力!D92),MID(取得者情報入力!D92,2,1),IF(ISTEXT(取得者情報入力!D93),MID(取得者情報入力!D93,2,1),\"\"))","v":""},null,null,null,{"$f":"IF(ISTEXT(取得者情報入力!D92),MID(取得者情報入力!D92,3,1),IF(ISTEXT(取得者情報入力!D93),MID(取得者情報入力!D93,3,1),\"\"))","v":""},null,null,null,{"$f":"IF(ISTEXT(取得者情報入力!D92),MID(取得者情報入力!D92,4,1),IF(ISTEXT(取得者情報入力!D93),MID(取得者情報入力!D93,4,1),\"\"))","v":""},null,null,null,{"$f":"IF(ISTEXT(取得者情報入力!D92),MID(取得者情報入力!D92,5,1),IF(ISTEXT(取得者情報入力!D93),MID(取得者情報入力!D93,5,1),\"\"))","v":""},null,null,null,{"$f":"IF(ISTEXT(取得者情報入力!D92),MID(取得者情報入力!D92,6,1),IF(ISTEXT(取得者情報入力!D93),MID(取得者情報入力!D93,6,1),\"\"))","v":""},null,null,null,{"$f":"IF(ISTEXT(取得者情報入力!D92),MID(取得者情報入力!D92,7,1),IF(ISTEXT(取得者情報入力!D93),MID(取得者情報入力!D93,7,1),\"\"))","v":""},null,null,null,{"$f":"IF(ISTEXT(取得者情報入力!D92),MID(取得者情報入力!D92,8,1),IF(ISTEXT(取得者情報入力!D93),MID(取得者情報入力!D93,8,1),\"\"))","v":""},null,null,null,{"$f":"IF(ISTEXT(取得者情報入力!D92),MID(取得者情報入力!D92,9,1),IF(ISTEXT(取得者情報入力!D93),MID(取得者情報入力!D93,9,1),\"\"))","v":""},null,null,null,{"$f":"IF(ISTEXT(取得者情報入力!D92),MID(取得者情報入力!D92,10,1),IF(ISTEXT(取得者情報入力!D93),MID(取得者情報入力!D93,10,1),\"\"))","v":""},null,null,null,{"$f":"IF(ISTEXT(取得者情報入力!D92),MID(取得者情報入力!D92,11,1),IF(ISTEXT(取得者情報入力!D93),MID(取得者情報入力!D93,11,1),\"\"))","v":""},null,null,null,{"$f":"IF(ISTEXT(取得者情報入力!D92),MID(取得者情報入力!D92,12,1),IF(ISTEXT(取得者情報入力!D93),MID(取得者情報入力!D93,12,1),\"\"))","v":""},null,null,null,7,null,null,null,null,null,null,null,{"$f":"IF(ISNUMBER(取得者情報入力!D94),取得者情報入力!D94,\"\")","v":""},null,null,null,null,null,null,null,null,null,null,null,null,null,null,null,null,null,null,null,null,null,null,null,null,null,null,null,null,null,null,8,null,null,null,null,null,null,null,{"$f":"IF(ISTEXT(取得者情報入力!D91),IF(取得者情報入力!D101=\"1\",\"有\",\"無\"),\"０無・１有\")","v":"０無・１有"}]
[]
[]
[null,null,null,null,null,"取得区分",null,null,null,null,null,null,null,null,null,null,null,null,null,null,null,null,null,null,"個人番号(基礎年金番号)",null,null,null,null,null,null,null,null,null,null,null,null,null,null,null,null,null,null,null,null,null,null,null,null,null,null,null,null,null,null,null,null,null,null,null,null,null,null,null,null,null,null,null,null,null,null,null,null,null,null,null,null,null,null,null,"取得\n(該当)\n年月日",null,null,null,null,null,null,null,null,null,null,null,null,null,null,null,null,null,null,null,null,null,null,null,null,null,null,null,null,null,null,null,null,null,null,null,null,null,null,"被扶\n養者"]
[]
[]
[]
[]
[]
[]
[null,null,null,null,null,9,null,null,null,null,null,null,"ｱ",null,null,null,"(通貨)",null,null,null,null,null,null,null,{"$f":"IF(ISNUMBER(取得者情報入力!D95),取得者情報入力!D95,\"\")","v":""},null,null,null,null,null,null,null,null,null,null,null,null,null,null,null,null,null,null,null,"円",null,null,null,"ｳ（合計ｱ+ｲ）",null,null,null,null,null,null,null,null,null,null,null,null,null,null,null,null,null,null,null,null,null,null,null,null,null,null,null,null,null,null,null,"標準\n報酬\n月額",null,null,null,null,null,null,null,"健保",null,null,null,null,null,null,null,{"$f":"IF(ISNUMBER(Y172),取得者情報入力!I88,\"\")","v":""},null,null,null,null,null,null,null,10,null,null,null,null,null,null,null,{"$f":"IF(ISNUMBER(取得者情報入力!D102),(取得者情報入力!D102),\"\")","v":""},null,{"$f":"IF(ISNUMBER(取得者情報入力!D102),(取得者情報入力!I97),\"\")","v":""}]
[]
[]
[null,null,null,null,null,"報酬月額",null,null,null,null,null,null,null,null,null,null,null,null,null,null,null,null,null,null,null,null,null,null,null,null,null,null,null,null,null,null,null,null,null,null,null,null,null,null,null,null,null,null,null,null,null,null,null,null,null,null,null,null,null,null,null,null,null,null,null,null,null,null,null,null,null,null,null,null,null,null,null,null,null,null,null,null,null,null,null,null,null,null,null,null,null,null,null,null,null,null,null,null,null,null,null,null,null,null,"備考",null,null,null,null,null,null,null,{"$f":"IF(ISNUMBER(取得者情報入力!D103),(取得者情報入力!D103),\"\")","v":""},null,{"$f":"IF(ISNUMBER(取得者情報入力!D103),(取得者情報入力!I98),\"\")","v":""}]
[]
[null,null,null,null,null,null,null,null,null,null,null,null,"ｲ",null,null,null,"(現物)",null,null,null,null,null,null,null,{"$f":"IF(ISNUMBER(取得者情報入力!D96),取得者情報入力!D96,\"\")","v":""},null,null,null,null,null,null,null,null,null,null,null,null,null,null,null,null,null,null,null,"円",null,null,null,{"$f":"IF(ISNUMBER(Y172),IF(Y177=\"\",Y172,Y172+Y177),\"\")","v":""},null,null,null,null,null,null,null,null,null,null,null,null,null,null,null,null,null,null,null,null,null,null,null,null,null,null,null,"円",null,null,null,null,null,null,null,null,null,null,null,"年金",null,null,null,null,null,null,null,{"$f":"IF(ISNUMBER(Y172),取得者情報入力!I89,\"\")","v":""}]
[null,null,null,null,null,null,null,null,null,null,null,null,null,null,null,null,null,null,null,null,null,null,null,null,null,null,null,null,null,null,null,null,null,null,null,null,null,null,null,null,null,null,null,null,null,null,null,null,null,null,null,null,null,null,null,null,null,null,null,null,null,null,null,null,null,null,null,null,null,null,null,null,null,null,null,null,null,null,null,null,null,null,null,null,null,null,null,null,null,null,null,null,null,null,null,null,null,null,null,null,null,null,null,null,null,null,null,null,null,null,null,null,{"$f":"IF(ISNUMBER(取得者情報入力!D104),(取得者情報入力!D104),\"\")","v":""},null,{"$f":"IF(ISNUMBER(取得者情報入力!D104),(取得者情報入力!I99),\"\")","v":""}]
[]
[]
[null,null,null,null,null,null,null,null,null,null,null,null,null,null,null,null,null,null,null,null,null,null,null,null,null,null,null,null,null,null,null,null,null,null,null,null,null,null,null,null,null,null,null,null,null,null,null,null,null,null,null,null,null,null,null,null,null,null,null,null,null,null,null,null,null,null,null,null,null,null,null,null,null,null,null,null,null,null,null,null,null,null,null,null,null,null,null,null,null,null,null,null,null,null,null,null,null,null,null,null,null,null,null,null,null,null,null,null,null,null,null,null,{"$f":"IF(ISNUMBER(取得者情報入力!D105),(取得者情報入力!D105),\"\")","v":""},null,{"$f":"IF(ISNUMBER(取得者情報入力!D105),(取得者情報入力!I100),\"\")","v":""}]
[null,null,null,null,null,11,null,null,null,null,null,null,"〒",null,null,null,{"$f":"IF(ISTEXT(取得者情報入力!D97),取得者情報入力!D97,\"\")","v":""},null,null,null,null,null,null,null,null,null,null,null,null,null,null,{"$f":"IF(ISTEXT(取得者情報入力!D98),取得者情報入力!D98,\"\")","v":""}]
[]
[null,null,null,null,null,null,null,null,null,null,null,null,null,null,null,null,null,null,null,null,null,null,null,null,null,null,null,null,null,null,null,null,null,null,null,null,null,null,null,null,null,null,null,null,null,null,null,null,null,null,null,null,null,null,null,null,null,null,null,null,null,null,null,null,null,null,null,null,null,null,null,null,null,null,null,null,null,null,null,null,null,null,null,null,null,null,null,null,null,null,null,null,null,null,null,null,null,null,null,null,null,null,null,null,null,null,null,null,null,null,null,null,{"$f":"IF(ISNUMBER(取得者情報入力!D106),(取得者情報入力!D106),\"\")","v":""},null,{"$f":"IF(ISNUMBER(取得者情報入力!D106),(取得者情報入力!I101),\"\")","v":""}]
[null,null,null,null,null,"住民票\n住所"]
[]
[null,null,null,null,null,null,null,null,null,null,null,null,null,null,null,null,null,null,null,null,null,null,null,null,null,null,null,null,null,null,null,null,null,null,null,null,null,null,null,null,null,null,null,null,null,null,null,null,null,null,null,null,null,null,null,null,null,null,null,null,null,null,null,null,null,null,null,null,null,null,null,null,null,null,null,null,null,null,null,null,null,null,null,null,null,null,null,null,null,null,null,null,null,null,null,null,null,null,null,null,null,null,null,null,"理由",null,null,null,null,null,null,null,{"$f":"IF(ISNUMBER(取得者情報入力!D99),(取得者情報入力!D99),\"\")","v":""},null,null,{"$f":"IF(ISNUMBER(取得者情報入力!D99),VLOOKUP(取得者情報入力!D99,取得者情報入力!H103:I105,2,0),\"\")","v":""}]
[]
[]
[]
[]
[]
[]
["被保険者４",null,null,null,null,1,null,null,null,null,null,null,{"$f":"IF(ISTEXT(取得者情報入力!D129),取得者情報入力!D129,\"\")","v":""},null,null,null,null,null,null,null,null,null,null,null,2,null,null,null,null,null,null,null,"(ﾌﾘｶﾞﾅ)",null,null,null,null,null,null,null,{"$f":"IF(ISTEXT(取得者情報入力!D131),取得者情報入力!D131,\"\")","v":""},null,null,null,null,null,null,null,null,null,null,null,null,null,null,null,null,null,null,null,null,null,null,null,null,null,null,null,null,null,null,null,null,null,null,null,null,null,null,null,3,null,null,null,null,null,null,null,{"$f":"IF(ISNUMBER(取得者情報入力!D132),取得者情報入力!D132,\"\")","v":""},null,null,null,null,null,null,null,null,null,null,null,null,null,null,null,null,null,null,null,null,null,null,null,null,null,null,null,null,null,null,4,null,null,null,null,null,null,null,{"$f":"IF(ISTEXT(取得者情報入力!D133),IF(取得者情報入力!D133=\"1\",\"男\",IF(取得者情報入力!D133=\"2\",\"女\",\"１男・２女\")),\"１男・２女\")","v":"１男・２女"}]
[]
[]
[null,null,null,null,null,"番号",null,null,null,null,null,null,null,null,null,null,null,null,null,null,null,null,null,null,"氏名",null,null,null,null,null,null,null,null,null,null,null,null,null,null,null,null,null,null,null,null,null,null,null,null,null,null,null,null,null,null,null,null,null,null,null,null,null,null,null,null,null,null,null,null,null,null,null,null,null,null,null,null,null,null,null,"生年\n月日",null,null,null,null,null,null,null,null,null,null,null,null,null,null,null,null,null,null,null,null,null,null,null,null,null,null,null,null,null,null,null,null,null,null,null,null,null,null,"種別"]
[null,null,null,null,null,null,null,null,null,null,null,null,null,null,null,null,null,null,null,null,null,null,null,null,null,null,null,null,null,null,null,null,"(氏名)",null,null,null,null,null,null,null,{"$f":"IF(ISTEXT(取得者情報入力!D130),取得者情報入力!D130,\"\")","v":""}]
[]
[]
[]
[]
[]
[null,null,null,null,null,5,null,null,null,null,null,null,"1.健保・厚年",null,null,null,null,null,null,null,null,null,null,null,6,null,null,null,null,null,null,null,{"$f":"IF(ISTEXT(取得者情報入力!D134),MID(取得者情報入力!D134,1,1),IF(ISTEXT(取得者情報入力!D135),MID(取得者情報入力!D135,1,1),\"\"))","v":""},null,null,null,{"$f":"IF(ISTEXT(取得者情報入力!D134),MID(取得者情報入力!D134,2,1),IF(ISTEXT(取得者情報入力!D135),MID(取得者情報入力!D135,2,1),\"\"))","v":""},null,null,null,{"$f":"IF(ISTEXT(取得者情報入力!D134),MID(取得者情報入力!D134,3,1),IF(ISTEXT(取得者情報入力!D135),MID(取得者情報入力!D135,3,1),\"\"))","v":""},null,null,null,{"$f":"IF(ISTEXT(取得者情報入力!D134),MID(取得者情報入力!D134,4,1),IF(ISTEXT(取得者情報入力!D135),MID(取得者情報入力!D135,4,1),\"\"))","v":""},null,null,null,{"$f":"IF(ISTEXT(取得者情報入力!D134),MID(取得者情報入力!D134,5,1),IF(ISTEXT(取得者情報入力!D135),MID(取得者情報入力!D135,5,1),\"\"))","v":""},null,null,null,{"$f":"IF(ISTEXT(取得者情報入力!D134),MID(取得者情報入力!D134,6,1),IF(ISTEXT(取得者情報入力!D135),MID(取得者情報入力!D135,6,1),\"\"))","v":""},null,null,null,{"$f":"IF(ISTEXT(取得者情報入力!D134),MID(取得者情報入力!D134,7,1),IF(ISTEXT(取得者情報入力!D135),MID(取得者情報入力!D135,7,1),\"\"))","v":""},null,null,null,{"$f":"IF(ISTEXT(取得者情報入力!D134),MID(取得者情報入力!D134,8,1),IF(ISTEXT(取得者情報入力!D135),MID(取得者情報入力!D135,8,1),\"\"))","v":""},null,null,null,{"$f":"IF(ISTEXT(取得者情報入力!D134),MID(取得者情報入力!D134,9,1),IF(ISTEXT(取得者情報入力!D135),MID(取得者情報入力!D135,9,1),\"\"))","v":""},null,null,null,{"$f":"IF(ISTEXT(取得者情報入力!D134),MID(取得者情報入力!D134,10,1),IF(ISTEXT(取得者情報入力!D135),MID(取得者情報入力!D135,10,1),\"\"))","v":""},null,null,null,{"$f":"IF(ISTEXT(取得者情報入力!D134),MID(取得者情報入力!D134,11,1),IF(ISTEXT(取得者情報入力!D135),MID(取得者情報入力!D135,11,1),\"\"))","v":""},null,null,null,{"$f":"IF(ISTEXT(取得者情報入力!D134),MID(取得者情報入力!D134,12,1),IF(ISTEXT(取得者情報入力!D135),MID(取得者情報入力!D135,12,1),\"\"))","v":""},null,null,null,7,null,null,null,null,null,null,null,{"$f":"IF(ISNUMBER(取得者情報入力!D136),取得者情報入力!D136,\"\")","v":""},null,null,null,null,null,null,null,null,null,null,null,null,null,null,null,null,null,null,null,null,null,null,null,null,null,null,null,null,null,null,8,null,null,null,null,null,null,null,{"$f":"IF(ISTEXT(取得者情報入力!D133),IF(取得者情報入力!D143=\"1\",\"有\",\"無\"),\"０無・１有\")","v":"０無・１有"}]
[]
[]
[null,null,null,null,null,"取得区分",null,null,null,null,null,null,null,null,null,null,null,null,null,null,null,null,null,null,"個人番号(基礎年金番号)",null,null,null,null,null,null,null,null,null,null,null,null,null,null,null,null,null,null,null,null,null,null,null,null,null,null,null,null,null,null,null,null,null,null,null,null,null,null,null,null,null,null,null,null,null,null,null,null,null,null,null,null,null,null,null,"取得\n(該当)\n年月日",null,null,null,null,null,null,null,null,null,null,null,null,null,null,null,null,null,null,null,null,null,null,null,null,null,null,null,null,null,null,null,null,null,null,null,null,null,null,"被扶\n養者"]
[]
[]
[]
[]
[]
[]
[null,null,null,null,null,9,null,null,null,null,null,null,"ｱ",null,null,null,"(通貨)",null,null,null,null,null,null,null,{"$f":"IF(ISNUMBER(取得者情報入力!D137),取得者情報入力!D137,\"\")","v":""},null,null,null,null,null,null,null,null,null,null,null,null,null,null,null,null,null,null,null,"円",null,null,null,"ｳ（合計ｱ+ｲ）",null,null,null,null,null,null,null,null,null,null,null,null,null,null,null,null,null,null,null,null,null,null,null,null,null,null,null,null,null,null,null,"標準\n報酬\n月額",null,null,null,null,null,null,null,"健保",null,null,null,null,null,null,null,{"$f":"IF(ISNUMBER(Y214),取得者情報入力!I130,\"\")","v":""},null,null,null,null,null,null,null,10,null,null,null,null,null,null,null,{"$f":"IF(ISNUMBER(取得者情報入力!D144),(取得者情報入力!D144),\"\")","v":""},null,{"$f":"IF(ISNUMBER(取得者情報入力!D144),(取得者情報入力!I139),\"\")","v":""}]
[]
[]
[null,null,null,null,null,"報酬月額",null,null,null,null,null,null,null,null,null,null,null,null,null,null,null,null,null,null,null,null,null,null,null,null,null,null,null,null,null,null,null,null,null,null,null,null,null,null,null,null,null,null,null,null,null,null,null,null,null,null,null,null,null,null,null,null,null,null,null,null,null,null,null,null,null,null,null,null,null,null,null,null,null,null,null,null,null,null,null,null,null,null,null,null,null,null,null,null,null,null,null,null,null,null,null,null,null,null,"備考",null,null,null,null,null,null,null,{"$f":"IF(ISNUMBER(取得者情報入力!D145),(取得者情報入力!D145),\"\")","v":""},null,{"$f":"IF(ISNUMBER(取得者情報入力!D145),(取得者情報入力!I140),\"\")","v":""}]
[]
[null,null,null,null,null,null,null,null,null,null,null,null,"ｲ",null,null,null,"(現物)",null,null,null,null,null,null,null,{"$f":"IF(ISNUMBER(取得者情報入力!D138),取得者情報入力!D138,\"\")","v":""},null,null,null,null,null,null,null,null,null,null,null,null,null,null,null,null,null,null,null,"円",null,null,null,{"$f":"IF(ISNUMBER(Y214),IF(Y219=\"\",Y214,Y214+Y219),\"\")","v":""},null,null,null,null,null,null,null,null,null,null,null,null,null,null,null,null,null,null,null,null,null,null,null,null,null,null,null,"円",null,null,null,null,null,null,null,null,null,null,null,"年金",null,null,null,null,null,null,null,{"$f":"IF(ISNUMBER(Y214),取得者情報入力!I131,\"\")","v":""}]
[null,null,null,null,null,null,null,null,null,null,null,null,null,null,null,null,null,null,null,null,null,null,null,null,null,null,null,null,null,null,null,null,null,null,null,null,null,null,null,null,null,null,null,null,null,null,null,null,null,null,null,null,null,null,null,null,null,null,null,null,null,null,null,null,null,null,null,null,null,null,null,null,null,null,null,null,null,null,null,null,null,null,null,null,null,null,null,null,null,null,null,null,null,null,null,null,null,null,null,null,null,null,null,null,null,null,null,null,null,null,null,null,{"$f":"IF(ISNUMBER(取得者情報入力!D146),(取得者情報入力!D146),\"\")","v":""},null,{"$f":"IF(ISNUMBER(取得者情報入力!D146),(取得者情報入力!I141),\"\")","v":""}]
[]
[]
[null,null,null,null,null,null,null,null,null,null,null,null,null,null,null,null,null,null,null,null,null,null,null,null,null,null,null,null,null,null,null,null,null,null,null,null,null,null,null,null,null,null,null,null,null,null,null,null,null,null,null,null,null,null,null,null,null,null,null,null,null,null,null,null,null,null,null,null,null,null,null,null,null,null,null,null,null,null,null,null,null,null,null,null,null,null,null,null,null,null,null,null,null,null,null,null,null,null,null,null,null,null,null,null,null,null,null,null,null,null,null,null,{"$f":"IF(ISNUMBER(取得者情報入力!D147),(取得者情報入力!D147),\"\")","v":""},null,{"$f":"IF(ISNUMBER(取得者情報入力!D147),(取得者情報入力!I142),\"\")","v":""}]
[null,null,null,null,null,11,null,null,null,null,null,null,"〒",null,null,null,{"$f":"IF(ISTEXT(取得者情報入力!D139),取得者情報入力!D139,\"\")","v":""},null,null,null,null,null,null,null,null,null,null,null,null,null,null,{"$f":"IF(ISTEXT(取得者情報入力!D140),取得者情報入力!D140,\"\")","v":""}]
[]
[null,null,null,null,null,null,null,null,null,null,null,null,null,null,null,null,null,null,null,null,null,null,null,null,null,null,null,null,null,null,null,null,null,null,null,null,null,null,null,null,null,null,null,null,null,null,null,null,null,null,null,null,null,null,null,null,null,null,null,null,null,null,null,null,null,null,null,null,null,null,null,null,null,null,null,null,null,null,null,null,null,null,null,null,null,null,null,null,null,null,null,null,null,null,null,null,null,null,null,null,null,null,null,null,null,null,null,null,null,null,null,null,{"$f":"IF(ISNUMBER(取得者情報入力!D148),(取得者情報入力!D148),\"\")","v":""},null,{"$f":"IF(ISNUMBER(取得者情報入力!D148),(取得者情報入力!I143),\"\")","v":""}]
[null,null,null,null,null,"住民票\n住所"]
[]
[null,null,null,null,null,null,null,null,null,null,null,null,null,null,null,null,null,null,null,null,null,null,null,null,null,null,null,null,null,null,null,null,null,null,null,null,null,null,null,null,null,null,null,null,null,null,null,null,null,null,null,null,null,null,null,null,null,null,null,null,null,null,null,null,null,null,null,null,null,null,null,null,null,null,null,null,null,null,null,null,null,null,null,null,null,null,null,null,null,null,null,null,null,null,null,null,null,null,null,null,null,null,null,null,"理由",null,null,null,null,null,null,null,{"$f":"IF(ISNUMBER(取得者情報入力!D141),(取得者情報入力!D141),\"\")","v":""},null,null,{"$f":"IF(ISNUMBER(取得者情報入力!D141),VLOOKUP(取得者情報入力!D141,取得者情報入力!H145:I147,2,0),\"\")","v":""}]
[]
[]
[]
[]
[null,null,null,null,null,null,null,null,null,null,null,null,null,null,null,null,null,null,null,null,null,null,null,null,null,null,null,null,null,null,null,null,null,null,null,null,null,null,null,null,null,null,null,null,null,null,null,null,null,null,null,null,null,null,null,null,null,null,null,null,null,null,null,null,null,null,null,null,null,null,null,null,null,null,null,null,null,null,null,null,null,null,null,null,null,null,null,null,null,null,null,null,null,null,null,null,null,null,null,null,null,null,null,null,null,null,null,null,"大阪自動車整備健康保険組合"]

{"sheet":"健保副","index":4,"n_rows":234,"n_cols":128,"rows_kept":234,"cut":false,"hidden":false,"merged":[[9,0,12,27],[15,0,53,4],[15,5,18,15],[15,16,18,23],[20,5,24,15],[20,16,22,69],[23,16,25,18],[23,19,25,31],[41,5,46,15],[41,16,46,61],[41,62,46,69],[47,5,47,15],[47,16,47,69],[48,5,53,15],[48,16,53,69],[23,32,25,69],[25,5,30,15],[26,16,32,69],[31,5,33,15],[33,16,33,69],[34,5,39,15],[34,16,39,69],[40,5,40,15],[40,16,40,69],[50,71,54,101],[55,71,64,130],[55,131,64,139],[67,0,106,4],[67,5,69,7],[67,8,69,11],[67,12,76,23],[67,24,69,26],[67,27,69,31],[67,32,70,39],[67,127,76,141],[70,5,76,11],[70,24,76,31],[70,80,76,87],[70,119,76,126],[71,32,76,39],[71,40,76,79],[67,40,70,79],[67,80,69,82],[67,83,69,87],[67,88,76,118],[67,119,69,121],[67,122,69,126],[77,83,79,87],[77,88,86,118],[77,119,79,121],[77,122,79,126],[77,127,86,141],[80,5,86,11],[80,24,86,31],[80,80,86,87],[80,119,86,126],[77,80,79,82],[77,5,79,7],[77,8,79,11],[77,12,86,23],[77,24,79,26],[77,27,79,31],[87,107,89,111],[87,112,89,113],[87,114,89,141],[90,5,96,11],[90,104,101,111],[90,112,92,113],[90,114,92,141],[92,12,96,15],[92,16,96,23],[92,24,96,43],[87,48,91,75],[87,76,91,79],[87,80,96,87],[87,88,91,95],[87,96,91,103],[87,104,89,106],[87,5,89,7],[87,8,89,11],[87,12,91,15],[87,16,91,23],[87,24,91,43],[87,44,91,47],[93,114,95,141],[96,112,98,113],[96,114,98,141],[97,5,99,11],[97,12,100,15],[97,16,100,27],[97,28,106,30],[97,31,106,103],[99,112,101,113],[99,114,101,141],[92,44,96,47],[92,48,96,75],[92,76,96,79],[92,88,96,95],[92,96,96,103],[93,112,95,113],[100,5,106,11],[101,12,106,27],[102,104,106,111],[102,112,106,114],[102,115,106,141],[109,0,148,4],[109,5,111,7],[109,8,111,11],[109,12,118,23],[109,24,111,26],[109,119,111,121],[109,122,111,126],[109,127,118,141],[112,5,118,11],[112,24,118,31],[112,80,118,87],[112,119,118,126],[113,32,118,39],[113,40,118,79],[109,27,111,31],[109,32,112,39],[109,40,112,79],[109,80,111,82],[109,83,111,87],[109,88,118,118],[119,83,121,87],[119,88,128,118],[119,119,121,121],[119,122,121,126],[119,127,128,141],[122,5,128,11],[122,24,128,31],[122,80,128,87],[122,119,128,126],[119,80,121,82],[119,5,121,7],[119,8,121,11],[119,12,128,23],[119,24,121,26],[119,27,121,31],[129,107,131,111],[129,112,131,113],[129,114,131,141],[132,5,138,11],[132,104,143,111],[132,112,134,113],[132,114,134,141],[134,12,138,15],[134,16,138,23],[134,24,138,43],[129,48,133,75],[129,76,133,79],[129,80,138,87],[129,88,133,95],[129,96,133,103],[129,104,131,106],[129,5,131,7],[129,8,131,11],[129,12,133,15],[129,16,133,23],[129,24,133,43],[129,44,133,47],[135,114,137,141],[138,112,140,113],[138,114,140,141],[139,5,141,11],[139,12,142,15],[139,16,142,27],[139,28,148,30],[139,31,148,103],[141,112,143,113],[141,114,143,141],[134,44,138,47],[134,48,138,75],[134,76,138,79],[134,88,138,95],[134,96,138,103],[135,112,137,113],[142,5,148,11],[143,12,148,27],[144,104,148,111],[144,112,148,114],[144,115,148,141],[151,0,190,4],[151,5,153,7],[151,8,153,11],[151,12,160,23],[151,24,153,26],[151,119,153,121],[151,122,153,126],[151,127,160,141],[154,5,160,11],[154,24,160,31],[154,80,160,87],[154,119,160,126],[155,32,160,39],[155,40,160,79],[151,27,153,31],[151,32,154,39],[151,40,154,79],[151,80,153,82],[151,83,153,87],[151,88,160,118],[161,83,163,87],[161,88,170,118],[161,119,163,121],[161,122,163,126],[161,127,170,141],[164,5,170,11],[164,24,170,31],[164,80,170,87],[164,119,170,126],[161,80,163,82],[161,5,163,7],[161,8,163,11],[161,12,170,23],[161,24,163,26],[161,27,163,31],[171,107,173,111],[171,112,173,113],[171,114,173,141],[174,5,180,11],[174,104,185,111],[174,112,176,113],[174,114,176,141],[176,12,180,15],[176,16,180,23],[176,24,180,43],[171,48,175,75],[171,76,175,79],[171,80,180,87],[171,88,175,95],[171,96,175,103],[171,104,173,106],[171,5,173,7],[171,8,173,11],[171,12,175,15],[171,16,175,23],[171,24,175,43],[171,44,175,47],[177,114,179,141],[180,112,182,113],[180,114,182,141],[181,5,183,11],[181,12,184,15],[181,16,184,27],[181,28,190,30],[181,31,190,103],[183,112,185,113],[183,114,185,141],[176,44,180,47],[176,48,180,75],[176,76,180,79],[176,88,180,95],[176,96,180,103],[177,112,179,113],[184,5,190,11],[185,12,190,27],[186,104,190,111],[186,112,190,114],[186,115,190,141],[193,0,232,4],[193,5,195,7],[193,8,195,11],[193,12,202,23],[193,24,195,26],[193,119,195,121],[193,122,195,126],[193,127,202,141],[196,5,202,11],[196,24,202,31],[196,80,202,87],[196,119,202,126],[197,32,202,39],[197,40,202,79],[193,27,195,31],[193,32,196,39],[193,40,196,79],[193,80,195,82],[193,83,195,87],[193,88,202,118],[213,16,217,23],[213,24,217,43],[213,44,217,47],[203,83,205,87],[203,88,212,118],[203,119,205,121],[203,122,205,126],[203,127,212,141],[206,5,212,11],[206,24,212,31],[206,80,212,87],[206,119,212,126],[203,80,205,82],[203,5,205,7],[203,8,205,11],[203,12,212,23],[203,24,205,26],[203,27,205,31],[1,14,7,116],[20,79,26,135],[219,114,221,141],[222,112,224,113],[222,114,224,141],[223,5,225,11],[223,12,226,15],[223,16,226,27],[223,28,232,30],[223,31,232,103],[225,112,227,113],[225,114,227,141],[218,44,222,47],[218,48,222,75],[218,76,222,79],[218,88,222,95],[218,96,222,103],[219,112,221,113],[213,107,215,111],[213,112,215,113],[213,114,215,141],[216,5,222,11],[216,104,227,111],[216,112,218,113],[37,79,41,135],[77,32,86,79],[119,32,128,79],[161,32,170,79],[203,32,212,79],[233,108,235,141],[226,5,232,11],[227,12,232,27],[228,104,232,111],[228,112,232,114],[228,115,232,141],[216,114,218,141],[218,12,222,15],[218,16,222,23],[218,24,222,43],[213,48,217,75],[213,76,217,79],[213,80,222,87],[213,88,217,95],[213,96,217,103],[213,104,215,106],[213,5,215,7],[213,8,215,11],[213,12,217,15]]}
[]
[null,null,null,null,null,null,null,null,null,null,null,null,null,null,"健康保険　被保険者資格取得確認および標準報酬決定通知書"]
[]
[]
[]
[]
[]
[]
[]
[{"$f":"基本情報登録!C2","v":"2023-12-06"}]
[]
[]
[]
[]
[]
["事業主記入欄",null,null,null,null,"記号",null,null,null,null,null,null,null,null,null,null,{"$f":"基本情報登録!C6","v":"532"}]
[]
[]
[]
[]
[null,null,null,null,null,null,null,null,null,null,null,null,null,null,null,null,null,null,null,null,null,null,null,null,null,null,null,null,null,null,null,null,null,null,null,null,null,null,null,null,null,null,null,null,null,null,null,null,null,null,null,null,null,null,null,null,null,null,null,null,null,null,null,null,null,null,null,null,null,null,null,null,null,null,null,null,null,null,null,"下記のとおり資格取得の確認および標準報酬の決定がなされたので通知します。"]
[]
[]
[null,null,null,null,null,null,null,null,null,null,null,null,null,null,null,null,"〒",null,null,{"$f":"基本情報登録!C7","v":"542-0066"}]
[]
[null,null,null,null,null,"事業所\n所在地"]
[null,null,null,null,null,null,null,null,null,null,null,null,null,null,null,null,{"$f":"基本情報登録!C8","v":"大阪府大阪市中央区瓦屋町2-3-1"}]
[]
[]
[]
[]
[]
[]
[]
[null,null,null,null,null,"事業所\n名称",null,null,null,null,null,null,null,null,null,null,{"$f":"基本情報登録!C9","v":"大阪自動車整備健康保険組合"}]
[]
[]
[null,null,null,null,null,null,null,null,null,null,null,null,null,null,null,null,null,null,null,null,null,null,null,null,null,null,null,null,null,null,null,null,null,null,null,null,null,null,null,null,null,null,null,null,null,null,null,null,null,null,null,null,null,null,null,null,null,null,null,null,null,null,null,null,null,null,null,null,null,null,null,null,null,null,null,null,null,null,null,"大阪自動車整備健康保険組合理事長"]
[]
[]
[]
[null,null,null,null,null,"事業主\n氏名",null,null,null,null,null,null,null,null,null,null,{"$f":"基本情報登録!C10","v":"理事長　健保　太郎"},null,null,null,null,null,null,null,null,null,null,null,null,null,null,null,null,null,null,null,null,null,null,null,null,null,null,null,null,null,null,null,null,null,null,null,null,null,null,null,null,null,null,null,null,null,"様"]
[]
[]
[]
[]
[]
[]
[null,null,null,null,null,"電話番号",null,null,null,null,null,null,null,null,null,null,{"$f":"基本情報登録!C11","v":"06-6762-6371"}]
[]
[null,null,null,null,null,null,null,null,null,null,null,null,null,null,null,null,null,null,null,null,null,null,null,null,null,null,null,null,null,null,null,null,null,null,null,null,null,null,null,null,null,null,null,null,null,null,null,null,null,null,null,null,null,null,null,null,null,null,null,null,null,null,null,null,null,null,null,null,null,null,null,"社会保険労務士記載欄"]
[]
[]
[]
[]
[]
[]
[]
[]
[]
[]
[]
[]
[]
[]
[]
[]
["被保険者１",null,null,null,null,1,null,null,null,null,null,null,{"$f":"IF(ISTEXT(取得者情報入力!D3),取得者情報入力!D3,\"\")","v":"551"},null,null,null,null,null,null,null,null,null,null,null,2,null,null,null,null,null,null,null,"(ﾌﾘｶﾞﾅ)",null,null,null,null,null,null,null,{"$f":"IF(ISTEXT(取得者情報入力!D5),取得者情報入力!D5,\"\")","v":"ケンポ　ハナコ"},null,null,null,null,null,null,null,null,null,null,null,null,null,null,null,null,null,null,null,null,null,null,null,null,null,null,null,null,null,null,null,null,null,null,null,null,null,null,null,3,null,null,null,null,null,null,null,{"$f":"IF(ISNUMBER(取得者情報入力!D6),取得者情報入力!D6,\"\")","v":"2003-12-25"},null,null,null,null,null,null,null,null,null,null,null,null,null,null,null,null,null,null,null,null,null,null,null,null,null,null,null,null,null,null,4,null,null,null,null,null,null,null,{"$f":"IF(ISTEXT(取得者情報入力!D7),IF(取得者情報入力!D7=\"1\",\"男\",IF(取得者情報入力!D7=\"2\",\"女\",\"１男・２女\")),\"１男・２女\")","v":"女"}]
[]
[]
[null,null,null,null,null,"番号",null,null,null,null,null,null,null,null,null,null,null,null,null,null,null,null,null,null,"氏名",null,null,null,null,null,null,null,null,null,null,null,null,null,null,null,null,null,null,null,null,null,null,null,null,null,null,null,null,null,null,null,null,null,null,null,null,null,null,null,null,null,null,null,null,null,null,null,null,null,null,null,null,null,null,null,"生年\n月日",null,null,null,null,null,null,null,null,null,null,null,null,null,null,null,null,null,null,null,null,null,null,null,null,null,null,null,null,null,null,null,null,null,null,null,null,null,null,"種別"]
[null,null,null,null,null,null,null,null,null,null,null,null,null,null,null,null,null,null,null,null,null,null,null,null,null,null,null,null,null,null,null,null,"(氏名)",null,null,null,null,null,null,null,{"$f":"IF(ISTEXT(取得者情報入力!D4),取得者情報入力!D4,\"\")","v":"健保　華子"}]
[]
[]
[]
[]
[]
[null,null,null,null,null,5,null,null,null,null,null,null,"1.健保・厚年",null,null,null,null,null,null,null,null,null,null,null,6,null,null,null,null,null,null,null,null,null,null,null,null,null,null,null,null,null,null,null,null,null,null,null,null,null,null,null,null,null,null,null,null,null,null,null,null,null,null,null,null,null,null,null,null,null,null,null,null,null,null,null,null,null,null,null,7,null,null,null,null,null,null,null,{"$f":"IF(ISNUMBER(取得者情報入力!D10),取得者情報入力!D10,\"\")","v":"2022-11-01"},null,null,null,null,null,null,null,null,null,null,null,null,null,null,null,null,null,null,null,null,null,null,null,null,null,null,null,null,null,null,8,null,null,null,null,null,null,null,{"$f":"IF(ISTEXT(取得者情報入力!D7),IF(取得者情報入力!D17=\"1\",\"有\",\"無\"),\"０無・１有\")","v":"有"}]
[]
[]
[null,null,null,null,null,"取得区分",null,null,null,null,null,null,null,null,null,null,null,null,null,null,null,null,null,null,"個人番号(基礎年金番号)",null,null,null,null,null,null,null,null,null,null,null,null,null,null,null,null,null,null,null,null,null,null,null,null,null,null,null,null,null,null,null,null,null,null,null,null,null,null,null,null,null,null,null,null,null,null,null,null,null,null,null,null,null,null,null,"取得\n(該当)\n年月日",null,null,null,null,null,null,null,null,null,null,null,null,null,null,null,null,null,null,null,null,null,null,null,null,null,null,null,null,null,null,null,null,null,null,null,null,null,null,"被扶\n養者"]
[]
[]
[]
[]
[]
[]
[null,null,null,null,null,9,null,null,null,null,null,null,"ｱ",null,null,null,"(通貨)",null,null,null,null,null,null,null,{"$f":"IF(ISNUMBER(取得者情報入力!D11),取得者情報入力!D11,\"\")","v":1500000},null,null,null,null,null,null,null,null,null,null,null,null,null,null,null,null,null,null,null,"円",null,null,null,"ｳ（合計ｱ+ｲ）",null,null,null,null,null,null,null,null,null,null,null,null,null,null,null,null,null,null,null,null,null,null,null,null,null,null,null,null,null,null,null,"標準\n報酬\n月額",null,null,null,null,null,null,null,"健保",null,null,null,null,null,null,null,{"$f":"IF(ISNUMBER(Y88),取得者情報入力!I4,\"\")","v":1390},null,null,null,null,null,null,null,10,null,null,null,null,null,null,null,{"$f":"IF(ISNUMBER(取得者情報入力!D18),(取得者情報入力!D18),\"\")","v":""},null,{"$f":"IF(ISNUMBER(取得者情報入力!D18),(取得者情報入力!I13),\"\")","v":""}]
[]
[]
[null,null,null,null,null,"報酬月額",null,null,null,null,null,null,null,null,null,null,null,null,null,null,null,null,null,null,null,null,null,null,null,null,null,null,null,null,null,null,null,null,null,null,null,null,null,null,null,null,null,null,null,null,null,null,null,null,null,null,null,null,null,null,null,null,null,null,null,null,null,null,null,null,null,null,null,null,null,null,null,null,null,null,null,null,null,null,null,null,null,null,null,null,null,null,null,null,null,null,null,null,null,null,null,null,null,null,"備考",null,null,null,null,null,null,null,{"$f":"IF(ISNUMBER(取得者情報入力!D19),(取得者情報入力!D19),\"\")","v":""},null,{"$f":"IF(ISNUMBER(取得者情報入力!D19),(取得者情報入力!I14),\"\")","v":""}]
[]
[null,null,null,null,null,null,null,null,null,null,null,null,"ｲ",null,null,null,"(現物)",null,null,null,null,null,null,null,{"$f":"IF(ISNUMBER(取得者情報入力!D12),取得者情報入力!D12,\"\")","v":300000},null,null,null,null,null,null,null,null,null,null,null,null,null,null,null,null,null,null,null,"円",null,null,null,{"$f":"IF(ISNUMBER(Y88),IF(Y93=\"\",Y88,Y88+Y93),\"\")","v":1800000},null,null,null,null,null,null,null,null,null,null,null,null,null,null,null,null,null,null,null,null,null,null,null,null,null,null,null,"円",null,null,null,null,null,null,null,null,null,null,null,"年金",null,null,null,null,null,null,null,{"$f":"IF(ISNUMBER(Y88),取得者情報入力!I5,\"\")","v":650}]
[null,null,null,null,null,null,null,null,null,null,null,null,null,null,null,null,null,null,null,null,null,null,null,null,null,null,null,null,null,null,null,null,null,null,null,null,null,null,null,null,null,null,null,null,null,null,null,null,null,null,null,null,null,null,null,null,null,null,null,null,null,null,null,null,null,null,null,null,null,null,null,null,null,null,null,null,null,null,null,null,null,null,null,null,null,null,null,null,null,null,null,null,null,null,null,null,null,null,null,null,null,null,null,null,null,null,null,null,null,null,null,null,{"$f":"IF(ISNUMBER(取得者情報入力!D20),(取得者情報入力!D20),\"\")","v":""},null,{"$f":"IF(ISNUMBER(取得者情報入力!D20),(取得者情報入力!I15),\"\")","v":""}]
[]
[]
[null,null,null,null,null,null,null,null,null,null,null,null,null,null,null,null,null,null,null,null,null,null,null,null,null,null,null,null,null,null,null,null,null,null,null,null,null,null,null,null,null,null,null,null,null,null,null,null,null,null,null,null,null,null,null,null,null,null,null,null,null,null,null,null,null,null,null,null,null,null,null,null,null,null,null,null,null,null,null,null,null,null,null,null,null,null,null,null,null,null,null,null,null,null,null,null,null,null,null,null,null,null,null,null,null,null,null,null,null,null,null,null,{"$f":"IF(ISNUMBER(取得者情報入力!D21),(取得者情報入力!D21),\"\")","v":""},null,{"$f":"IF(ISNUMBER(取得者情報入力!D21),(取得者情報入力!I16),\"\")","v":""}]
[null,null,null,null,null,11,null,null,null,null,null,null,"〒",null,null,null,{"$f":"IF(ISTEXT(取得者情報入力!D13),取得者情報入力!D13,\"\")","v":"542-0066"},null,null,null,null,null,null,null,null,null,null,null,null,null,null,{"$f":"IF(ISTEXT(取得者情報入力!D14),取得者情報入力!D14,\"\")","v":"大阪府大阪市中央区瓦屋町2-3-1"}]
[]
[null,null,null,null,null,null,null,null,null,null,null,null,null,null,null,null,null,null,null,null,null,null,null,null,null,null,null,null,null,null,null,null,null,null,null,null,null,null,null,null,null,null,null,null,null,null,null,null,null,null,null,null,null,null,null,null,null,null,null,null,null,null,null,null,null,null,null,null,null,null,null,null,null,null,null,null,null,null,null,null,null,null,null,null,null,null,null,null,null,null,null,null,null,null,null,null,null,null,null,null,null,null,null,null,null,null,null,null,null,null,null,null,{"$f":"IF(ISNUMBER(取得者情報入力!D22),(取得者情報入力!D22),\"\")","v":""},null,{"$f":"IF(ISNUMBER(取得者情報入力!D22),(取得者情報入力!I17),\"\")","v":""}]
[null,null,null,null,null,"住民票\n住所"]
[]
[null,null,null,null,null,null,null,null,null,null,null,null,null,null,null,null,null,null,null,null,null,null,null,null,null,null,null,null,null,null,null,null,null,null,null,null,null,null,null,null,null,null,null,null,null,null,null,null,null,null,null,null,null,null,null,null,null,null,null,null,null,null,null,null,null,null,null,null,null,null,null,null,null,null,null,null,null,null,null,null,null,null,null,null,null,null,null,null,null,null,null,null,null,null,null,null,null,null,null,null,null,null,null,null,"理由",null,null,null,null,null,null,null,{"$f":"IF(ISNUMBER(取得者情報入力!D15),(取得者情報入力!D15),\"\")","v":""},null,null,{"$f":"IF(ISNUMBER(取得者情報入力!D15),VLOOKUP(取得者情報入力!D15,取得者情報入力!H19:I21,2,0),\"\")","v":""}]
[]
[]
[]
[]
[]
[]
["被保険者２",null,null,null,null,1,null,null,null,null,null,null,{"$f":"IF(ISTEXT(取得者情報入力!D45),取得者情報入力!D45,\"\")","v":""},null,null,null,null,null,null,null,null,null,null,null,2,null,null,null,null,null,null,null,"(ﾌﾘｶﾞﾅ)",null,null,null,null,null,null,null,{"$f":"IF(ISTEXT(取得者情報入力!D47),取得者情報入力!D47,\"\")","v":""},null,null,null,null,null,null,null,null,null,null,null,null,null,null,null,null,null,null,null,null,null,null,null,null,null,null,null,null,null,null,null,null,null,null,null,null,null,null,null,3,null,null,null,null,null,null,null,{"$f":"IF(ISNUMBER(取得者情報入力!D48),取得者情報入力!D48,\"\")","v":""},null,null,null,null,null,null,null,null,null,null,null,null,null,null,null,null,null,null,null,null,null,null,null,null,null,null,null,null,null,null,4,null,null,null,null,null,null,null,{"$f":"IF(ISTEXT(取得者情報入力!D49),IF(取得者情報入力!D49=\"1\",\"男\",IF(取得者情報入力!D49=\"2\",\"女\",\"１男・２女\")),\"１男・２女\")","v":"１男・２女"}]
[]
[]
[null,null,null,null,null,"番号",null,null,null,null,null,null,null,null,null,null,null,null,null,null,null,null,null,null,"氏名",null,null,null,null,null,null,null,null,null,null,null,null,null,null,null,null,null,null,null,null,null,null,null,null,null,null,null,null,null,null,null,null,null,null,null,null,null,null,null,null,null,null,null,null,null,null,null,null,null,null,null,null,null,null,null,"生年\n月日",null,null,null,null,null,null,null,null,null,null,null,null,null,null,null,null,null,null,null,null,null,null,null,null,null,null,null,null,null,null,null,null,null,null,null,null,null,null,"種別"]
[null,null,null,null,null,null,null,null,null,null,null,null,null,null,null,null,null,null,null,null,null,null,null,null,null,null,null,null,null,null,null,null,"(氏名)",null,null,null,null,null,null,null,{"$f":"IF(ISTEXT(取得者情報入力!D46),取得者情報入力!D46,\"\")","v":""}]
[]
[]
[]
[]
[]
[null,null,null,null,null,5,null,null,null,null,null,null,"1.健保・厚年",null,null,null,null,null,null,null,null,null,null,null,6,null,null,null,null,null,null,null,null,null,null,null,null,null,null,null,null,null,null,null,null,null,null,null,null,null,null,null,null,null,null,null,null,null,null,null,null,null,null,null,null,null,null,null,null,null,null,null,null,null,null,null,null,null,null,null,7,null,null,null,null,null,null,null,{"$f":"IF(ISNUMBER(取得者情報入力!D52),取得者情報入力!D52,\"\")","v":""},null,null,null,null,null,null,null,null,null,null,null,null,null,null,null,null,null,null,null,null,null,null,null,null,null,null,null,null,null,null,8,null,null,null,null,null,null,null,{"$f":"IF(ISTEXT(取得者情報入力!D49),IF(取得者情報入力!D59=\"1\",\"有\",\"無\"),\"０無・１有\")","v":"０無・１有"}]
[]
[]
[null,null,null,null,null,"取得区分",null,null,null,null,null,null,null,null,null,null,null,null,null,null,null,null,null,null,"個人番号(基礎年金番号)",null,null,null,null,null,null,null,null,null,null,null,null,null,null,null,null,null,null,null,null,null,null,null,null,null,null,null,null,null,null,null,null,null,null,null,null,null,null,null,null,null,null,null,null,null,null,null,null,null,null,null,null,null,null,null,"取得\n(該当)\n年月日",null,null,null,null,null,null,null,null,null,null,null,null,null,null,null,null,null,null,null,null,null,null,null,null,null,null,null,null,null,null,null,null,null,null,null,null,null,null,"被扶\n養者"]
[]
[]
[]
[]
[]
[]
[null,null,null,null,null,9,null,null,null,null,null,null,"ｱ",null,null,null,"(通貨)",null,null,null,null,null,null,null,{"$f":"IF(ISNUMBER(取得者情報入力!D53),取得者情報入力!D53,\"\")","v":""},null,null,null,null,null,null,null,null,null,null,null,null,null,null,null,null,null,null,null,"円",null,null,null,"ｳ（合計ｱ+ｲ）",null,null,null,null,null,null,null,null,null,null,null,null,null,null,null,null,null,null,null,null,null,null,null,null,null,null,null,null,null,null,null,"標準\n報酬\n月額",null,null,null,null,null,null,null,"健保",null,null,null,null,null,null,null,{"$f":"IF(ISNUMBER(Y130),取得者情報入力!I46,\"\")","v":""},null,null,null,null,null,null,null,10,null,null,null,null,null,null,null,{"$f":"IF(ISNUMBER(取得者情報入力!D60),(取得者情報入力!D60),\"\")","v":""},null,{"$f":"IF(ISNUMBER(取得者情報入力!D60),(取得者情報入力!I55),\"\")","v":""}]
[]
[]
[null,null,null,null,null,"報酬月額",null,null,null,null,null,null,null,null,null,null,null,null,null,null,null,null,null,null,null,null,null,null,null,null,null,null,null,null,null,null,null,null,null,null,null,null,null,null,null,null,null,null,null,null,null,null,null,null,null,null,null,null,null,null,null,null,null,null,null,null,null,null,null,null,null,null,null,null,null,null,null,null,null,null,null,null,null,null,null,null,null,null,null,null,null,null,null,null,null,null,null,null,null,null,null,null,null,null,"備考",null,null,null,null,null,null,null,{"$f":"IF(ISNUMBER(取得者情報入力!D61),(取得者情報入力!D61),\"\")","v":""},null,{"$f":"IF(ISNUMBER(取得者情報入力!D61),(取得者情報入力!I56),\"\")","v":""}]
[]
[null,null,null,null,null,null,null,null,null,null,null,null,"ｲ",null,null,null,"(現物)",null,null,null,null,null,null,null,{"$f":"IF(ISNUMBER(取得者情報入力!D54),取得者情報入力!D54,\"\")","v":""},null,null,null,null,null,null,null,null,null,null,null,null,null,null,null,null,null,null,null,"円",null,null,null,{"$f":"IF(ISNUMBER(Y130),IF(Y135=\"\",Y130,Y130+Y135),\"\")","v":""},null,null,null,null,null,null,null,null,null,null,null,null,null,null,null,null,null,null,null,null,null,null,null,null,null,null,null,"円",null,null,null,null,null,null,null,null,null,null,null,"年金",null,null,null,null,null,null,null,{"$f":"IF(ISNUMBER(Y130),取得者情報入力!I47,\"\")","v":""}]
[null,null,null,null,null,null,null,null,null,null,null,null,null,null,null,null,null,null,null,null,null,null,null,null,null,null,null,null,null,null,null,null,null,null,null,null,null,null,null,null,null,null,null,null,null,null,null,null,null,null,null,null,null,null,null,null,null,null,null,null,null,null,null,null,null,null,null,null,null,null,null,null,null,null,null,null,null,null,null,null,null,null,null,null,null,null,null,null,null,null,null,null,null,null,null,null,null,null,null,null,null,null,null,null,null,null,null,null,null,null,null,null,{"$f":"IF(ISNUMBER(取得者情報入力!D62),(取得者情報入力!D62),\"\")","v":""},null,{"$f":"IF(ISNUMBER(取得者情報入力!D62),(取得者情報入力!I57),\"\")","v":""}]
[]
[]
[null,null,null,null,null,null,null,null,null,null,null,null,null,null,null,null,null,null,null,null,null,null,null,null,null,null,null,null,null,null,null,null,null,null,null,null,null,null,null,null,null,null,null,null,null,null,null,null,null,null,null,null,null,null,null,null,null,null,null,null,null,null,null,null,null,null,null,null,null,null,null,null,null,null,null,null,null,null,null,null,null,null,null,null,null,null,null,null,null,null,null,null,null,null,null,null,null,null,null,null,null,null,null,null,null,null,null,null,null,null,null,null,{"$f":"IF(ISNUMBER(取得者情報入力!D63),(取得者情報入力!D63),\"\")","v":""},null,{"$f":"IF(ISNUMBER(取得者情報入力!D63),(取得者情報入力!I58),\"\")","v":""}]
[null,null,null,null,null,11,null,null,null,null,null,null,"〒",null,null,null,{"$f":"IF(ISTEXT(取得者情報入力!D55),取得者情報入力!D55,\"\")","v":""},null,null,null,null,null,null,null,null,null,null,null,null,null,null,{"$f":"IF(ISTEXT(取得者情報入力!D56),取得者情報入力!D56,\"\")","v":""}]
[]
[null,null,null,null,null,null,null,null,null,null,null,null,null,null,null,null,null,null,null,null,null,null,null,null,null,null,null,null,null,null,null,null,null,null,null,null,null,null,null,null,null,null,null,null,null,null,null,null,null,null,null,null,null,null,null,null,null,null,null,null,null,null,null,null,null,null,null,null,null,null,null,null,null,null,null,null,null,null,null,null,null,null,null,null,null,null,null,null,null,null,null,null,null,null,null,null,null,null,null,null,null,null,null,null,null,null,null,null,null,null,null,null,{"$f":"IF(ISNUMBER(取得者情報入力!D64),(取得者情報入力!D64),\"\")","v":""},null,{"$f":"IF(ISNUMBER(取得者情報入力!D64),(取得者情報入力!I59),\"\")","v":""}]
[null,null,null,null,null,"住民票\n住所"]
[]
[null,null,null,null,null,null,null,null,null,null,null,null,null,null,null,null,null,null,null,null,null,null,null,null,null,null,null,null,null,null,null,null,null,null,null,null,null,null,null,null,null,null,null,null,null,null,null,null,null,null,null,null,null,null,null,null,null,null,null,null,null,null,null,null,null,null,null,null,null,null,null,null,null,null,null,null,null,null,null,null,null,null,null,null,null,null,null,null,null,null,null,null,null,null,null,null,null,null,null,null,null,null,null,null,"理由",null,null,null,null,null,null,null,{"$f":"IF(ISNUMBER(取得者情報入力!D57),(取得者情報入力!D57),\"\")","v":""},null,null,{"$f":"IF(ISNUMBER(取得者情報入力!D57),VLOOKUP(取得者情報入力!D57,取得者情報入力!H61:I63,2,0),\"\")","v":""}]
[]
[]
[]
[]
[]
[]
["被保険者３",null,null,null,null,1,null,null,null,null,null,null,{"$f":"IF(ISTEXT(取得者情報入力!D87),取得者情報入力!D87,\"\")","v":""},null,null,null,null,null,null,null,null,null,null,null,2,null,null,null,null,null,null,null,"(ﾌﾘｶﾞﾅ)",null,null,null,null,null,null,null,{"$f":"IF(ISTEXT(取得者情報入力!D89),取得者情報入力!D89,\"\")","v":""},null,null,null,null,null,null,null,null,null,null,null,null,null,null,null,null,null,null,null,null,null,null,null,null,null,null,null,null,null,null,null,null,null,null,null,null,null,null,null,3,null,null,null,null,null,null,null,{"$f":"IF(ISNUMBER(取得者情報入力!D90),取得者情報入力!D90,\"\")","v":""},null,null,null,null,null,null,null,null,null,null,null,null,null,null,null,null,null,null,null,null,null,null,null,null,null,null,null,null,null,null,4,null,null,null,null,null,null,null,{"$f":"IF(ISTEXT(取得者情報入力!D91),IF(取得者情報入力!D91=\"1\",\"男\",IF(取得者情報入力!D91=\"2\",\"女\",\"１男・２女\")),\"１男・２女\")","v":"１男・２女"}]
[]
[]
[null,null,null,null,null,"番号",null,null,null,null,null,null,null,null,null,null,null,null,null,null,null,null,null,null,"氏名",null,null,null,null,null,null,null,null,null,null,null,null,null,null,null,null,null,null,null,null,null,null,null,null,null,null,null,null,null,null,null,null,null,null,null,null,null,null,null,null,null,null,null,null,null,null,null,null,null,null,null,null,null,null,null,"生年\n月日",null,null,null,null,null,null,null,null,null,null,null,null,null,null,null,null,null,null,null,null,null,null,null,null,null,null,null,null,null,null,null,null,null,null,null,null,null,null,"種別"]
[null,null,null,null,null,null,null,null,null,null,null,null,null,null,null,null,null,null,null,null,null,null,null,null,null,null,null,null,null,null,null,null,"(氏名)",null,null,null,null,null,null,null,{"$f":"IF(ISTEXT(取得者情報入力!D88),取得者情報入力!D88,\"\")","v":""}]
[]
[]
[]
[]
[]
[null,null,null,null,null,5,null,null,null,null,null,null,"1.健保・厚年",null,null,null,null,null,null,null,null,null,null,null,6,null,null,null,null,null,null,null,null,null,null,null,null,null,null,null,null,null,null,null,null,null,null,null,null,null,null,null,null,null,null,null,null,null,null,null,null,null,null,null,null,null,null,null,null,null,null,null,null,null,null,null,null,null,null,null,7,null,null,null,null,null,null,null,{"$f":"IF(ISNUMBER(取得者情報入力!D94),取得者情報入力!D94,\"\")","v":""},null,null,null,null,null,null,null,null,null,null,null,null,null,null,null,null,null,null,null,null,null,null,null,null,null,null,null,null,null,null,8,null,null,null,null,null,null,null,{"$f":"IF(ISTEXT(取得者情報入力!D91),IF(取得者情報入力!D101=\"1\",\"有\",\"無\"),\"０無・１有\")","v":"０無・１有"}]
[]
[]
[null,null,null,null,null,"取得区分",null,null,null,null,null,null,null,null,null,null,null,null,null,null,null,null,null,null,"個人番号(基礎年金番号)",null,null,null,null,null,null,null,null,null,null,null,null,null,null,null,null,null,null,null,null,null,null,null,null,null,null,null,null,null,null,null,null,null,null,null,null,null,null,null,null,null,null,null,null,null,null,null,null,null,null,null,null,null,null,null,"取得\n(該当)\n年月日",null,null,null,null,null,null,null,null,null,null,null,null,null,null,null,null,null,null,null,null,null,null,null,null,null,null,null,null,null,null,null,null,null,null,null,null,null,null,"被扶\n養者"]
[]
[]
[]
[]
[]
[]
[null,null,null,null,null,9,null,null,null,null,null,null,"ｱ",null,null,null,"(通貨)",null,null,null,null,null,null,null,{"$f":"IF(ISNUMBER(取得者情報入力!D95),取得者情報入力!D95,\"\")","v":""},null,null,null,null,null,null,null,null,null,null,null,null,null,null,null,null,null,null,null,"円",null,null,null,"ｳ（合計ｱ+ｲ）",null,null,null,null,null,null,null,null,null,null,null,null,null,null,null,null,null,null,null,null,null,null,null,null,null,null,null,null,null,null,null,"標準\n報酬\n月額",null,null,null,null,null,null,null,"健保",null,null,null,null,null,null,null,{"$f":"IF(ISNUMBER(Y172),取得者情報入力!I88,\"\")","v":""},null,null,null,null,null,null,null,10,null,null,null,null,null,null,null,{"$f":"IF(ISNUMBER(取得者情報入力!D102),(取得者情報入力!D102),\"\")","v":""},null,{"$f":"IF(ISNUMBER(取得者情報入力!D102),(取得者情報入力!I97),\"\")","v":""}]
[]
[]
[null,null,null,null,null,"報酬月額",null,null,null,null,null,null,null,null,null,null,null,null,null,null,null,null,null,null,null,null,null,null,null,null,null,null,null,null,null,null,null,null,null,null,null,null,null,null,null,null,null,null,null,null,null,null,null,null,null,null,null,null,null,null,null,null,null,null,null,null,null,null,null,null,null,null,null,null,null,null,null,null,null,null,null,null,null,null,null,null,null,null,null,null,null,null,null,null,null,null,null,null,null,null,null,null,null,null,"備考",null,null,null,null,null,null,null,{"$f":"IF(ISNUMBER(取得者情報入力!D103),(取得者情報入力!D103),\"\")","v":""},null,{"$f":"IF(ISNUMBER(取得者情報入力!D103),(取得者情報入力!I98),\"\")","v":""}]
[]
[null,null,null,null,null,null,null,null,null,null,null,null,"ｲ",null,null,null,"(現物)",null,null,null,null,null,null,null,{"$f":"IF(ISNUMBER(取得者情報入力!D96),取得者情報入力!D96,\"\")","v":""},null,null,null,null,null,null,null,null,null,null,null,null,null,null,null,null,null,null,null,"円",null,null,null,{"$f":"IF(ISNUMBER(Y172),IF(Y177=\"\",Y172,Y172+Y177),\"\")","v":""},null,null,null,null,null,null,null,null,null,null,null,null,null,null,null,null,null,null,null,null,null,null,null,null,null,null,null,"円",null,null,null,null,null,null,null,null,null,null,null,"年金",null,null,null,null,null,null,null,{"$f":"IF(ISNUMBER(Y172),取得者情報入力!I89,\"\")","v":""}]
[null,null,null,null,null,null,null,null,null,null,null,null,null,null,null,null,null,null,null,null,null,null,null,null,null,null,null,null,null,null,null,null,null,null,null,null,null,null,null,null,null,null,null,null,null,null,null,null,null,null,null,null,null,null,null,null,null,null,null,null,null,null,null,null,null,null,null,null,null,null,null,null,null,null,null,null,null,null,null,null,null,null,null,null,null,null,null,null,null,null,null,null,null,null,null,null,null,null,null,null,null,null,null,null,null,null,null,null,null,null,null,null,{"$f":"IF(ISNUMBER(取得者情報入力!D104),(取得者情報入力!D104),\"\")","v":""},null,{"$f":"IF(ISNUMBER(取得者情報入力!D104),(取得者情報入力!I99),\"\")","v":""}]
[]
[]
[null,null,null,null,null,null,null,null,null,null,null,null,null,null,null,null,null,null,null,null,null,null,null,null,null,null,null,null,null,null,null,null,null,null,null,null,null,null,null,null,null,null,null,null,null,null,null,null,null,null,null,null,null,null,null,null,null,null,null,null,null,null,null,null,null,null,null,null,null,null,null,null,null,null,null,null,null,null,null,null,null,null,null,null,null,null,null,null,null,null,null,null,null,null,null,null,null,null,null,null,null,null,null,null,null,null,null,null,null,null,null,null,{"$f":"IF(ISNUMBER(取得者情報入力!D105),(取得者情報入力!D105),\"\")","v":""},null,{"$f":"IF(ISNUMBER(取得者情報入力!D105),(取得者情報入力!I100),\"\")","v":""}]
[null,null,null,null,null,11,null,null,null,null,null,null,"〒",null,null,null,{"$f":"IF(ISTEXT(取得者情報入力!D97),取得者情報入力!D97,\"\")","v":""},null,null,null,null,null,null,null,null,null,null,null,null,null,null,{"$f":"IF(ISTEXT(取得者情報入力!D98),取得者情報入力!D98,\"\")","v":""}]
[]
[null,null,null,null,null,null,null,null,null,null,null,null,null,null,null,null,null,null,null,null,null,null,null,null,null,null,null,null,null,null,null,null,null,null,null,null,null,null,null,null,null,null,null,null,null,null,null,null,null,null,null,null,null,null,null,null,null,null,null,null,null,null,null,null,null,null,null,null,null,null,null,null,null,null,null,null,null,null,null,null,null,null,null,null,null,null,null,null,null,null,null,null,null,null,null,null,null,null,null,null,null,null,null,null,null,null,null,null,null,null,null,null,{"$f":"IF(ISNUMBER(取得者情報入力!D106),(取得者情報入力!D106),\"\")","v":""},null,{"$f":"IF(ISNUMBER(取得者情報入力!D106),(取得者情報入力!I101),\"\")","v":""}]
[null,null,null,null,null,"住民票\n住所"]
[]
[null,null,null,null,null,null,null,null,null,null,null,null,null,null,null,null,null,null,null,null,null,null,null,null,null,null,null,null,null,null,null,null,null,null,null,null,null,null,null,null,null,null,null,null,null,null,null,null,null,null,null,null,null,null,null,null,null,null,null,null,null,null,null,null,null,null,null,null,null,null,null,null,null,null,null,null,null,null,null,null,null,null,null,null,null,null,null,null,null,null,null,null,null,null,null,null,null,null,null,null,null,null,null,null,"理由",null,null,null,null,null,null,null,{"$f":"IF(ISNUMBER(取得者情報入力!D99),(取得者情報入力!D99),\"\")","v":""},null,null,{"$f":"IF(ISNUMBER(取得者情報入力!D99),VLOOKUP(取得者情報入力!D99,取得者情報入力!H103:I105,2,0),\"\")","v":""}]
[]
[]
[]
[]
[]
[]
["被保険者４",null,null,null,null,1,null,null,null,null,null,null,{"$f":"IF(ISTEXT(取得者情報入力!D129),取得者情報入力!D129,\"\")","v":""},null,null,null,null,null,null,null,null,null,null,null,2,null,null,null,null,null,null,null,"(ﾌﾘｶﾞﾅ)",null,null,null,null,null,null,null,{"$f":"IF(ISTEXT(取得者情報入力!D131),取得者情報入力!D131,\"\")","v":""},null,null,null,null,null,null,null,null,null,null,null,null,null,null,null,null,null,null,null,null,null,null,null,null,null,null,null,null,null,null,null,null,null,null,null,null,null,null,null,3,null,null,null,null,null,null,null,{"$f":"IF(ISNUMBER(取得者情報入力!D132),取得者情報入力!D132,\"\")","v":""},null,null,null,null,null,null,null,null,null,null,null,null,null,null,null,null,null,null,null,null,null,null,null,null,null,null,null,null,null,null,4,null,null,null,null,null,null,null,{"$f":"IF(ISTEXT(取得者情報入力!D133),IF(取得者情報入力!D133=\"1\",\"男\",IF(取得者情報入力!D133=\"2\",\"女\",\"１男・２女\")),\"１男・２女\")","v":"１男・２女"}]
[]
[]
[null,null,null,null,null,"番号",null,null,null,null,null,null,null,null,null,null,null,null,null,null,null,null,null,null,"氏名",null,null,null,null,null,null,null,null,null,null,null,null,null,null,null,null,null,null,null,null,null,null,null,null,null,null,null,null,null,null,null,null,null,null,null,null,null,null,null,null,null,null,null,null,null,null,null,null,null,null,null,null,null,null,null,"生年\n月日",null,null,null,null,null,null,null,null,null,null,null,null,null,null,null,null,null,null,null,null,null,null,null,null,null,null,null,null,null,null,null,null,null,null,null,null,null,null,"種別"]
[null,null,null,null,null,null,null,null,null,null,null,null,null,null,null,null,null,null,null,null,null,null,null,null,null,null,null,null,null,null,null,null,"(氏名)",null,null,null,null,null,null,null,{"$f":"IF(ISTEXT(取得者情報入力!D130),取得者情報入力!D130,\"\")","v":""}]
[]
[]
[]
[]
[]
[null,null,null,null,null,5,null,null,null,null,null,null,"1.健保・厚年",null,null,null,null,null,null,null,null,null,null,null,6,null,null,null,null,null,null,null,null,null,null,null,null,null,null,null,null,null,null,null,null,null,null,null,null,null,null,null,null,null,null,null,null,null,null,null,null,null,null,null,null,null,null,null,null,null,null,null,null,null,null,null,null,null,null,null,7,null,null,null,null,null,null,null,{"$f":"IF(ISNUMBER(取得者情報入力!D136),取得者情報入力!D136,\"\")","v":""},null,null,null,null,null,null,null,null,null,null,null,null,null,null,null,null,null,null,null,null,null,null,null,null,null,null,null,null,null,null,8,null,null,null,null,null,null,null,{"$f":"IF(ISTEXT(取得者情報入力!D133),IF(取得者情報入力!D143=\"1\",\"有\",\"無\"),\"０無・１有\")","v":"０無・１有"}]
[]
[]
[null,null,null,null,null,"取得区分",null,null,null,null,null,null,null,null,null,null,null,null,null,null,null,null,null,null,"個人番号(基礎年金番号)",null,null,null,null,null,null,null,null,null,null,null,null,null,null,null,null,null,null,null,null,null,null,null,null,null,null,null,null,null,null,null,null,null,null,null,null,null,null,null,null,null,null,null,null,null,null,null,null,null,null,null,null,null,null,null,"取得\n(該当)\n年月日",null,null,null,null,null,null,null,null,null,null,null,null,null,null,null,null,null,null,null,null,null,null,null,null,null,null,null,null,null,null,null,null,null,null,null,null,null,null,"被扶\n養者"]
[]
[]
[]
[]
[]
[]
[null,null,null,null,null,9,null,null,null,null,null,null,"ｱ",null,null,null,"(通貨)",null,null,null,null,null,null,null,{"$f":"IF(ISNUMBER(取得者情報入力!D137),取得者情報入力!D137,\"\")","v":""},null,null,null,null,null,null,null,null,null,null,null,null,null,null,null,null,null,null,null,"円",null,null,null,"ｳ（合計ｱ+ｲ）",null,null,null,null,null,null,null,null,null,null,null,null,null,null,null,null,null,null,null,null,null,null,null,null,null,null,null,null,null,null,null,"標準\n報酬\n月額",null,null,null,null,null,null,null,"健保",null,null,null,null,null,null,null,{"$f":"IF(ISNUMBER(Y214),取得者情報入力!I130,\"\")","v":""},null,null,null,null,null,null,null,10,null,null,null,null,null,null,null,{"$f":"IF(ISNUMBER(取得者情報入力!D144),(取得者情報入力!D144),\"\")","v":""},null,{"$f":"IF(ISNUMBER(取得者情報入力!D144),(取得者情報入力!I139),\"\")","v":""}]
[]
[]
[null,null,null,null,null,"報酬月額",null,null,null,null,null,null,null,null,null,null,null,null,null,null,null,null,null,null,null,null,null,null,null,null,null,null,null,null,null,null,null,null,null,null,null,null,null,null,null,null,null,null,null,null,null,null,null,null,null,null,null,null,null,null,null,null,null,null,null,null,null,null,null,null,null,null,null,null,null,null,null,null,null,null,null,null,null,null,null,null,null,null,null,null,null,null,null,null,null,null,null,null,null,null,null,null,null,null,"備考",null,null,null,null,null,null,null,{"$f":"IF(ISNUMBER(取得者情報入力!D145),(取得者情報入力!D145),\"\")","v":""},null,{"$f":"IF(ISNUMBER(取得者情報入力!D145),(取得者情報入力!I140),\"\")","v":""}]
[]
[null,null,null,null,null,null,null,null,null,null,null,null,"ｲ",null,null,null,"(現物)",null,null,null,null,null,null,null,{"$f":"IF(ISNUMBER(取得者情報入力!D138),取得者情報入力!D138,\"\")","v":""},null,null,null,null,null,null,null,null,null,null,null,null,null,null,null,null,null,null,null,"円",null,null,null,{"$f":"IF(ISNUMBER(Y214),IF(Y219=\"\",Y214,Y214+Y219),\"\")","v":""},null,null,null,null,null,null,null,null,null,null,null,null,null,null,null,null,null,null,null,null,null,null,null,null,null,null,null,"円",null,null,null,null,null,null,null,null,null,null,null,"年金",null,null,null,null,null,null,null,{"$f":"IF(ISNUMBER(Y214),取得者情報入力!I131,\"\")","v":""}]
[null,null,null,null,null,null,null,null,null,null,null,null,null,null,null,null,null,null,null,null,null,null,null,null,null,null,null,null,null,null,null,null,null,null,null,null,null,null,null,null,null,null,null,null,null,null,null,null,null,null,null,null,null,null,null,null,null,null,null,null,null,null,null,null,null,null,null,null,null,null,null,null,null,null,null,null,null,null,null,null,null,null,null,null,null,null,null,null,null,null,null,null,null,null,null,null,null,null,null,null,null,null,null,null,null,null,null,null,null,null,null,null,{"$f":"IF(ISNUMBER(取得者情報入力!D146),(取得者情報入力!D146),\"\")","v":""},null,{"$f":"IF(ISNUMBER(取得者情報入力!D146),(取得者情報入力!I141),\"\")","v":""}]
[]
[]
[null,null,null,null,null,null,null,null,null,null,null,null,null,null,null,null,null,null,null,null,null,null,null,null,null,null,null,null,null,null,null,null,null,null,null,null,null,null,null,null,null,null,null,null,null,null,null,null,null,null,null,null,null,null,null,null,null,null,null,null,null,null,null,null,null,null,null,null,null,null,null,null,null,null,null,null,null,null,null,null,null,null,null,null,null,null,null,null,null,null,null,null,null,null,null,null,null,null,null,null,null,null,null,null,null,null,null,null,null,null,null,null,{"$f":"IF(ISNUMBER(取得者情報入力!D147),(取得者情報入力!D147),\"\")","v":""},null,{"$f":"IF(ISNUMBER(取得者情報入力!D147),(取得者情報入力!I142),\"\")","v":""}]
[null,null,null,null,null,11,null,null,null,null,null,null,"〒",null,null,null,{"$f":"IF(ISTEXT(取得者情報入力!D139),取得者情報入力!D139,\"\")","v":""},null,null,null,null,null,null,null,null,null,null,null,null,null,null,{"$f":"IF(ISTEXT(取得者情報入力!D140),取得者情報入力!D140,\"\")","v":""}]
[]
[null,null,null,null,null,null,null,null,null,null,null,null,null,null,null,null,null,null,null,null,null,null,null,null,null,null,null,null,null,null,null,null,null,null,null,null,null,null,null,null,null,null,null,null,null,null,null,null,null,null,null,null,null,null,null,null,null,null,null,null,null,null,null,null,null,null,null,null,null,null,null,null,null,null,null,null,null,null,null,null,null,null,null,null,null,null,null,null,null,null,null,null,null,null,null,null,null,null,null,null,null,null,null,null,null,null,null,null,null,null,null,null,{"$f":"IF(ISNUMBER(取得者情報入力!D148),(取得者情報入力!D148),\"\")","v":""},null,{"$f":"IF(ISNUMBER(取得者情報入力!D148),(取得者情報入力!I143),\"\")","v":""}]
[null,null,null,null,null,"住民票\n住所"]
[]
[null,null,null,null,null,null,null,null,null,null,null,null,null,null,null,null,null,null,null,null,null,null,null,null,null,null,null,null,null,null,null,null,null,null,null,null,null,null,null,null,null,null,null,null,null,null,null,null,null,null,null,null,null,null,null,null,null,null,null,null,null,null,null,null,null,null,null,null,null,null,null,null,null,null,null,null,null,null,null,null,null,null,null,null,null,null,null,null,null,null,null,null,null,null,null,null,null,null,null,null,null,null,null,null,"理由",null,null,null,null,null,null,null,{"$f":"IF(ISNUMBER(取得者情報入力!D141),(取得者情報入力!D141),\"\")","v":""},null,null,{"$f":"IF(ISNUMBER(取得者情報入力!D141),VLOOKUP(取得者情報入力!D141,取得者情報入力!H145:I147,2,0),\"\")","v":""}]
[]
[]
[]
[]
[null,null,null,null,null,null,null,null,null,null,null,null,null,null,null,null,null,null,null,null,null,null,null,null,null,null,null,null,null,null,null,null,null,null,null,null,null,null,null,null,null,null,null,null,null,null,null,null,null,null,null,null,null,null,null,null,null,null,null,null,null,null,null,null,null,null,null,null,null,null,null,null,null,null,null,null,null,null,null,null,null,null,null,null,null,null,null,null,null,null,null,null,null,null,null,null,null,null,null,null,null,null,null,null,null,null,null,null,"大阪自動車整備健康保険組合"]

{"sheet":"年金正","index":5,"n_rows":229,"n_cols":128,"rows_kept":229,"cut":false,"hidden":false,"merged":[[55,71,64,130],[77,83,79,87],[77,88,86,118],[77,119,79,121],[77,122,79,126],[77,127,86,141],[80,5,86,11],[80,24,86,31],[80,80,86,87],[55,131,64,139],[67,127,76,141],[70,80,76,87],[70,119,76,126],[71,40,76,79],[67,40,70,79],[67,80,69,82],[67,83,69,87],[67,88,76,118],[67,119,69,121],[67,122,69,126],[80,119,86,126],[77,60,86,63],[77,64,86,67],[77,68,86,71],[9,0,12,27],[15,0,53,4],[15,5,18,15],[20,5,24,15],[20,16,22,69],[47,5,47,15],[47,16,47,69],[48,5,53,15],[48,16,53,69],[20,105,23,139],[23,16,25,18],[23,19,25,31],[1,33,9,96],[15,16,18,25],[15,26,18,29],[41,5,46,15],[41,16,46,61],[41,62,46,69],[23,32,25,69],[24,105,52,139],[25,5,30,15],[26,16,32,69],[31,5,33,15],[33,16,33,69],[34,5,39,15],[34,16,39,69],[40,5,40,15],[40,16,40,69],[50,71,54,101],[0,0,3,15],[15,30,18,39],[15,40,18,52],[15,53,18,69],[67,0,106,4],[67,5,69,7],[67,8,69,11],[67,12,76,23],[67,24,69,26],[67,27,69,31],[67,32,70,39],[77,24,79,26],[77,27,79,31],[77,32,86,35],[70,5,76,11],[70,24,76,31],[71,32,76,39],[77,5,79,7],[77,8,79,11],[77,12,86,23],[97,16,100,27],[97,28,106,30],[90,5,96,11],[87,5,89,7],[87,8,89,11],[97,5,99,11],[97,31,99,103],[87,80,96,103],[87,107,89,111],[87,112,89,113],[87,114,89,141],[77,72,86,75],[77,76,86,79],[77,80,79,82],[77,36,86,39],[77,40,86,43],[77,44,86,47],[77,48,86,51],[77,52,86,55],[77,56,86,59],[96,114,98,141],[97,12,100,15],[99,112,101,113],[99,114,101,141],[92,44,96,47],[92,48,96,75],[92,76,96,79],[93,112,95,113],[100,31,106,103],[119,127,128,141],[100,5,106,11],[101,12,106,27],[102,104,106,111],[102,112,106,114],[102,115,106,141],[109,122,111,126],[109,127,118,141],[109,32,112,39],[90,104,101,111],[90,112,92,113],[90,114,92,141],[92,12,96,15],[92,16,96,23],[92,24,96,43],[87,48,91,75],[87,76,91,79],[87,104,89,106],[87,12,91,15],[87,16,91,23],[87,24,91,43],[87,44,91,47],[93,114,95,141],[96,112,98,113],[109,0,148,4],[109,5,111,7],[109,8,111,11],[109,12,118,23],[109,24,111,26],[119,24,121,26],[119,27,121,31],[119,32,128,35],[109,119,111,121],[112,5,118,11],[112,24,118,31],[112,80,118,87],[112,119,118,126],[113,32,118,39],[139,31,141,103],[142,31,148,103],[109,40,112,79],[109,80,111,82],[109,83,111,87],[109,88,118,118],[119,83,121,87],[119,88,128,118],[113,40,118,79],[109,27,111,31],[134,76,138,79],[135,112,137,113],[122,5,128,11],[122,24,128,31],[122,80,128,87],[122,119,128,126],[119,60,128,63],[119,64,128,67],[119,68,128,71],[119,72,128,75],[119,76,128,79],[119,80,121,82],[119,36,128,39],[119,40,128,43],[119,44,128,47],[119,48,128,51],[119,52,128,55],[119,56,128,59],[132,112,134,113],[119,5,121,7],[119,8,121,11],[119,12,128,23],[119,119,121,121],[119,122,121,126],[132,114,134,141],[134,12,138,15],[134,16,138,23],[134,24,138,43],[129,48,133,75],[129,76,133,79],[129,104,131,106],[129,5,131,7],[129,8,131,11],[129,12,133,15],[129,16,133,23],[129,24,133,43],[129,44,133,47],[129,107,131,111],[129,112,131,113],[129,114,131,141],[132,5,138,11],[132,104,143,111],[129,80,138,103],[139,28,148,30],[141,112,143,113],[141,114,143,141],[134,44,138,47],[134,48,138,75],[151,119,153,121],[151,122,153,126],[151,127,160,141],[154,5,160,11],[154,24,160,31],[154,80,160,87],[154,119,160,126],[155,32,160,39],[155,40,160,79],[151,27,153,31],[151,32,154,39],[151,40,154,79],[151,80,153,82],[151,83,153,87],[151,88,160,118],[151,5,153,7],[151,8,153,11],[151,12,160,23],[151,24,153,26],[161,64,170,67],[161,68,170,71],[161,72,170,75],[161,76,170,79],[161,80,163,82],[161,36,170,39],[161,40,170,43],[161,44,170,47],[161,48,170,51],[161,52,170,55],[161,56,170,59],[181,5,183,11],[181,12,184,15],[181,31,183,103],[184,31,190,103],[183,112,185,113],[183,114,185,141],[176,44,180,47],[176,48,180,75],[176,76,180,79],[177,112,179,113],[184,5,190,11],[185,12,190,27],[186,104,190,111],[186,112,190,114],[186,115,190,141],[171,80,180,103],[171,107,173,111],[171,112,173,113],[171,114,173,141],[174,5,180,11],[174,104,185,111],[174,112,176,113],[174,114,176,141],[176,12,180,15],[176,16,180,23],[176,24,180,43],[171,48,175,75],[171,76,175,79],[171,104,173,106],[171,5,173,7],[171,8,173,11],[171,12,175,15],[171,16,175,23],[171,24,175,43],[171,44,175,47],[177,114,179,141],[180,112,182,113],[180,114,182,141],[193,0,232,4],[193,5,195,7],[193,8,195,11],[193,12,202,23],[193,24,195,26],[151,0,190,4],[203,24,205,26],[203,27,205,31],[203,32,212,35],[216,5,222,11],[213,5,215,7],[213,8,215,11],[226,5,232,11],[223,5,225,11],[181,16,184,27],[181,28,190,30],[164,5,170,11],[164,24,170,31],[161,5,163,7],[161,8,163,11],[161,12,170,23],[161,24,163,26],[161,27,163,31],[223,31,225,103],[193,119,195,121],[193,122,195,126],[193,127,202,141],[196,5,202,11],[196,24,202,31],[196,80,202,87],[196,119,202,126],[197,32,202,39],[197,40,202,79],[193,27,195,31],[193,32,196,39],[193,40,196,79],[193,80,195,82],[193,83,195,87],[193,88,202,118],[203,83,205,87],[203,88,212,118],[203,119,205,121],[203,122,205,126],[203,127,212,141],[206,5,212,11],[206,24,212,31],[206,80,212,87],[206,119,212,126],[203,60,212,63],[203,64,212,67],[203,68,212,71],[203,72,212,75],[203,76,212,79],[203,80,205,82],[203,36,212,39],[203,40,212,43],[203,44,212,47],[203,48,212,51],[203,52,212,55],[203,56,212,59],[203,5,205,7],[203,8,205,11],[203,12,212,23],[222,112,224,113],[222,114,224,141],[223,12,226,15],[223,16,226,27],[223,28,232,30],[225,112,227,113],[226,31,232,103],[218,12,222,15],[218,16,222,23],[218,24,222,43],[213,48,217,75],[213,76,217,79],[213,104,215,106],[213,12,217,15],[213,16,217,23],[213,24,217,43],[213,44,217,47],[225,114,227,141],[218,44,222,47],[218,48,222,75],[218,76,222,79],[219,112,221,113],[213,80,222,103],[213,107,215,111],[213,112,215,113],[213,114,215,141],[216,104,227,111],[216,112,218,113],[216,114,218,141],[227,12,232,27],[228,104,232,111],[228,112,232,114],[228,115,232,141],[219,114,221,141],[4,0,7,3],[4,4,7,7],[4,8,7,11],[4,12,7,15],[161,83,163,87],[161,88,170,118],[161,32,170,35],[142,5,148,11],[143,12,148,27],[144,104,148,111],[144,112,148,114],[144,115,148,141],[135,114,137,141],[138,112,140,113],[138,114,140,141],[139,5,141,11],[139,12,142,15],[139,16,142,27],[161,119,163,121],[161,122,163,126],[161,127,170,141],[164,80,170,87],[164,119,170,126],[161,60,170,63]]}
["様式コード"]
[null,null,null,null,null,null,null,null,null,null,null,null,null,null,null,null,null,null,null,null,null,null,null,null,null,null,null,null,null,null,null,null,null,"厚生年金保険　被保険者資格取得届\n70歳以上被用者該当届"]
[]
[]
[2,null,null,null,2,null,null,null,0,null,null,null,0]
[]
[]
[]
[]
[{"$f":"基本情報登録!C2","v":"2023-12-06"}]
[]
[]
[]
[]
[]
["事業主記入欄",null,null,null,null,"事業所整理記号",null,null,null,null,null,null,null,null,null,null,{"$f":"基本情報登録!C3","v":"南"},null,null,null,null,null,null,null,null,null,"－",null,null,null,{"$f":"基本情報登録!C4","v":"ＷＥＤ"},null,null,null,null,null,null,null,null,null,"事業所番号",null,null,null,null,null,null,null,null,null,null,null,null,{"$f":"基本情報登録!C5","v":0}]
[]
[]
[]
[]
[null,null,null,null,null,null,null,null,null,null,null,null,null,null,null,null,"届書記入の個人番号に誤りがないことを確認しました。",null,null,null,null,null,null,null,null,null,null,null,null,null,null,null,null,null,null,null,null,null,null,null,null,null,null,null,null,null,null,null,null,null,null,null,null,null,null,null,null,null,null,null,null,null,null,null,null,null,null,null,null,null,null,null,null,null,null,null,null,null,null,null,null,null,null,null,null,null,null,null,null,null,null,null,null,null,null,null,null,null,null,null,null,null,null,null,null,"受付印"]
[]
[]
[null,null,null,null,null,null,null,null,null,null,null,null,null,null,null,null,"〒",null,null,{"$f":"基本情報登録!C7","v":"542-0066"}]
[]
[null,null,null,null,null,"事業所\n所在地"]
[null,null,null,null,null,null,null,null,null,null,null,null,null,null,null,null,{"$f":"基本情報登録!C8","v":"大阪府大阪市中央区瓦屋町2-3-1"}]
[]
[]
[]
[]
[]
[]
[]
[null,null,null,null,null,"事業所\n名称",null,null,null,null,null,null,null,null,null,null,{"$f":"基本情報登録!C9","v":"大阪自動車整備健康保険組合"}]
[]
[]
[]
[]
[]
[]
[null,null,null,null,null,"事業主\n氏名",null,null,null,null,null,null,null,null,null,null,{"$f":"基本情報登録!C10","v":"理事長　健保　太郎"}]
[]
[]
[]
[]
[]
[]
[null,null,null,null,null,"電話番号",null,null,null,null,null,null,null,null,null,null,{"$f":"基本情報登録!C11","v":"06-6762-6371"}]
[]
[null,null,null,null,null,null,null,null,null,null,null,null,null,null,null,null,null,null,null,null,null,null,null,null,null,null,null,null,null,null,null,null,null,null,null,null,null,null,null,null,null,null,null,null,null,null,null,null,null,null,null,null,null,null,null,null,null,null,null,null,null,null,null,null,null,null,null,null,null,null,null,"社会保険労務士記載欄"]
[]
[]
[]
[]
[]
[]
[]
[]
[]
[]
[]
[]
[]
[]
[]
[]
["被保険者１",null,null,null,null,1,null,null,null,null,null,null,{"$f":"IF(ISTEXT(取得者情報入力!D3),取得者情報入力!D3,\"\")","v":"551"},null,null,null,null,null,null,null,null,null,null,null,2,null,null,null,null,null,null,null,"(ﾌﾘｶﾞﾅ)",null,null,null,null,null,null,null,{"$f":"IF(ISTEXT(取得者情報入力!D5),取得者情報入力!D5,\"\")","v":"ケンポ　ハナコ"},null,null,null,null,null,null,null,null,null,null,null,null,null,null,null,null,null,null,null,null,null,null,null,null,null,null,null,null,null,null,null,null,null,null,null,null,null,null,null,3,null,null,null,null,null,null,null,{"$f":"IF(ISNUMBER(取得者情報入力!D6),取得者情報入力!D6,\"\")","v":"2003-12-25"},null,null,null,null,null,null,null,null,null,null,null,null,null,null,null,null,null,null,null,null,null,null,null,null,null,null,null,null,null,null,4,null,null,null,null,null,null,null,{"$f":"IF(ISTEXT(取得者情報入力!D7),IF(取得者情報入力!D7=\"1\",\"男\",IF(取得者情報入力!D7=\"2\",\"女\",\"１男・２女\")),\"１男・２女\")","v":"女"}]
[]
[]
[null,null,null,null,null,"整理\n番号",null,null,null,null,null,null,null,null,null,null,null,null,null,null,null,null,null,null,"氏名",null,null,null,null,null,null,null,null,null,null,null,null,null,null,null,null,null,null,null,null,null,null,null,null,null,null,null,null,null,null,null,null,null,null,null,null,null,null,null,null,null,null,null,null,null,null,null,null,null,null,null,null,null,null,null,"生年\n月日",null,null,null,null,null,null,null,null,null,null,null,null,null,null,null,null,null,null,null,null,null,null,null,null,null,null,null,null,null,null,null,null,null,null,null,null,null,null,"種別"]
[null,null,null,null,null,null,null,null,null,null,null,null,null,null,null,null,null,null,null,null,null,null,null,null,null,null,null,null,null,null,null,null,"(氏名)",null,null,null,null,null,null,null,{"$f":"IF(ISTEXT(取得者情報入力!D4),取得者情報入力!D4,\"\")","v":"健保　華子"}]
[]
[]
[]
[]
[]
[null,null,null,null,null,5,null,null,null,null,null,null,"1.健保・厚年",null,null,null,null,null,null,null,null,null,null,null,6,null,null,null,null,null,null,null,{"$f":"IF(ISTEXT(取得者情報入力!D8),MID(取得者情報入力!D8,1,1),IF(ISTEXT(取得者情報入力!D9),MID(取得者情報入力!D9,1,1),\"\"))","v":"1"},null,null,null,{"$f":"IF(ISTEXT(取得者情報入力!D8),MID(取得者情報入力!D8,2,1),IF(ISTEXT(取得者情報入力!D9),MID(取得者情報入力!D9,2,1),\"\"))","v":"2"},null,null,null,{"$f":"IF(ISTEXT(取得者情報入力!D8),MID(取得者情報入力!D8,3,1),IF(ISTEXT(取得者情報入力!D9),MID(取得者情報入力!D9,3,1),\"\"))","v":"3"},null,null,null,{"$f":"IF(ISTEXT(取得者情報入力!D8),MID(取得者情報入力!D8,4,1),IF(ISTEXT(取得者情報入力!D9),MID(取得者情報入力!D9,4,1),\"\"))","v":"4"},null,null,null,{"$f":"IF(ISTEXT(取得者情報入力!D8),MID(取得者情報入力!D8,5,1),IF(ISTEXT(取得者情報入力!D9),MID(取得者情報入力!D9,5,1),\"\"))","v":"5"},null,null,null,{"$f":"IF(ISTEXT(取得者情報入力!D8),MID(取得者情報入力!D8,6,1),IF(ISTEXT(取得者情報入力!D9),MID(取得者情報入力!D9,6,1),\"\"))","v":"6"},null,null,null,{"$f":"IF(ISTEXT(取得者情報入力!D8),MID(取得者情報入力!D8,7,1),IF(ISTEXT(取得者情報入力!D9),MID(取得者情報入力!D9,7,1),\"\"))","v":"7"},null,null,null,{"$f":"IF(ISTEXT(取得者情報入力!D8),MID(取得者情報入力!D8,8,1),IF(ISTEXT(取得者情報入力!D9),MID(取得者情報入力!D9,8,1),\"\"))","v":"8"},null,null,null,{"$f":"IF(ISTEXT(取得者情報入力!D8),MID(取得者情報入力!D8,9,1),IF(ISTEXT(取得者情報入力!D9),MID(取得者情報入力!D9,9,1),\"\"))","v":"9"},null,null,null,{"$f":"IF(ISTEXT(取得者情報入力!D8),MID(取得者情報入力!D8,10,1),IF(ISTEXT(取得者情報入力!D9),MID(取得者情報入力!D9,10,1),\"\"))","v":"0"},null,null,null,{"$f":"IF(ISTEXT(取得者情報入力!D8),MID(取得者情報入力!D8,11,1),IF(ISTEXT(取得者情報入力!D9),MID(取得者情報入力!D9,11,1),\"\"))","v":"1"},null,null,null,{"$f":"IF(ISTEXT(取得者情報入力!D8),MID(取得者情報入力!D8,12,1),IF(ISTEXT(取得者情報入力!D9),MID(取得者情報入力!D9,12,1),\"\"))","v":"2"},null,null,null,7,null,null,null,null,null,null,null,{"$f":"IF(ISNUMBER(取得者情報入力!D10),取得者情報入力!D10,\"\")","v":"2022-11-01"},null,null,null,null,null,null,null,null,null,null,null,null,null,null,null,null,null,null,null,null,null,null,null,null,null,null,null,null,null,null,8,null,null,null,null,null,null,null,{"$f":"IF(ISTEXT(取得者情報入力!D7),IF(取得者情報入力!D17=\"1\",\"有\",\"無\"),\"０無・１有\")","v":"有"}]
[]
[]
[null,null,null,null,null,"取得区分",null,null,null,null,null,null,null,null,null,null,null,null,null,null,null,null,null,null,"個人番号(基礎年金番号)",null,null,null,null,null,null,null,null,null,null,null,null,null,null,null,null,null,null,null,null,null,null,null,null,null,null,null,null,null,null,null,null,null,null,null,null,null,null,null,null,null,null,null,null,null,null,null,null,null,null,null,null,null,null,null,"取得\n(該当)\n年月日",null,null,null,null,null,null,null,null,null,null,null,null,null,null,null,null,null,null,null,null,null,null,null,null,null,null,null,null,null,null,null,null,null,null,null,null,null,null,"被扶\n養者"]
[]
[]
[]
[]
[]
[]
[null,null,null,null,null,9,null,null,null,null,null,null,"ｱ",null,null,null,"(通貨)",null,null,null,null,null,null,null,{"$f":"IF(ISNUMBER(取得者情報入力!D11),取得者情報入力!D11,\"\")","v":1500000},null,null,null,null,null,null,null,null,null,null,null,null,null,null,null,null,null,null,null,"円",null,null,null,"ｳ（合計ｱ+ｲ）",null,null,null,null,null,null,null,null,null,null,null,null,null,null,null,null,null,null,null,null,null,null,null,null,null,null,null,null,null,null,null,null,null,null,null,null,null,null,null,null,null,null,null,null,null,null,null,null,null,null,null,null,null,null,null,10,null,null,null,null,null,null,null,{"$f":"IF(ISNUMBER(取得者情報入力!D18),(取得者情報入力!D18),\"\")","v":""},null,{"$f":"IF(ISNUMBER(取得者情報入力!D18),(取得者情報入力!I13),\"\")","v":""}]
[]
[]
[null,null,null,null,null,"報酬月額",null,null,null,null,null,null,null,null,null,null,null,null,null,null,null,null,null,null,null,null,null,null,null,null,null,null,null,null,null,null,null,null,null,null,null,null,null,null,null,null,null,null,null,null,null,null,null,null,null,null,null,null,null,null,null,null,null,null,null,null,null,null,null,null,null,null,null,null,null,null,null,null,null,null,null,null,null,null,null,null,null,null,null,null,null,null,null,null,null,null,null,null,null,null,null,null,null,null,"備考",null,null,null,null,null,null,null,{"$f":"IF(ISNUMBER(取得者情報入力!D19),(取得者情報入力!D19),\"\")","v":""},null,{"$f":"IF(ISNUMBER(取得者情報入力!D19),(取得者情報入力!I14),\"\")","v":""}]
[]
[null,null,null,null,null,null,null,null,null,null,null,null,"ｲ",null,null,null,"(現物)",null,null,null,null,null,null,null,{"$f":"IF(ISNUMBER(取得者情報入力!D12),取得者情報入力!D12,\"\")","v":300000},null,null,null,null,null,null,null,null,null,null,null,null,null,null,null,null,null,null,null,"円",null,null,null,{"$f":"IF(ISNUMBER(Y88),IF(Y93=\"\",Y88,Y88+Y93),\"\")","v":1800000},null,null,null,null,null,null,null,null,null,null,null,null,null,null,null,null,null,null,null,null,null,null,null,null,null,null,null,"円"]
[null,null,null,null,null,null,null,null,null,null,null,null,null,null,null,null,null,null,null,null,null,null,null,null,null,null,null,null,null,null,null,null,null,null,null,null,null,null,null,null,null,null,null,null,null,null,null,null,null,null,null,null,null,null,null,null,null,null,null,null,null,null,null,null,null,null,null,null,null,null,null,null,null,null,null,null,null,null,null,null,null,null,null,null,null,null,null,null,null,null,null,null,null,null,null,null,null,null,null,null,null,null,null,null,null,null,null,null,null,null,null,null,{"$f":"IF(ISNUMBER(取得者情報入力!D20),(取得者情報入力!D20),\"\")","v":""},null,{"$f":"IF(ISNUMBER(取得者情報入力!D20),(取得者情報入力!I15),\"\")","v":""}]
[]
[]
[null,null,null,null,null,null,null,null,null,null,null,null,null,null,null,null,null,null,null,null,null,null,null,null,null,null,null,null,null,null,null,null,null,null,null,null,null,null,null,null,null,null,null,null,null,null,null,null,null,null,null,null,null,null,null,null,null,null,null,null,null,null,null,null,null,null,null,null,null,null,null,null,null,null,null,null,null,null,null,null,null,null,null,null,null,null,null,null,null,null,null,null,null,null,null,null,null,null,null,null,null,null,null,null,null,null,null,null,null,null,null,null,{"$f":"IF(ISNUMBER(取得者情報入力!D21),(取得者情報入力!D21),\"\")","v":""},null,{"$f":"IF(ISNUMBER(取得者情報入力!D21),(取得者情報入力!I16),\"\")","v":""}]
[null,null,null,null,null,11,null,null,null,null,null,null,"〒",null,null,null,{"$f":"IF(ISTEXT(取得者情報入力!D8),\"\",IF(ISTEXT(取得者情報入力!D13),取得者情報入力!D13,\"\"))","v":""},null,null,null,null,null,null,null,null,null,null,null,null,null,null,"日本年金機構に提出する際、個人番号を記入した場合は、住所記入は不要です。"]
[]
[null,null,null,null,null,null,null,null,null,null,null,null,null,null,null,null,null,null,null,null,null,null,null,null,null,null,null,null,null,null,null,null,null,null,null,null,null,null,null,null,null,null,null,null,null,null,null,null,null,null,null,null,null,null,null,null,null,null,null,null,null,null,null,null,null,null,null,null,null,null,null,null,null,null,null,null,null,null,null,null,null,null,null,null,null,null,null,null,null,null,null,null,null,null,null,null,null,null,null,null,null,null,null,null,null,null,null,null,null,null,null,null,{"$f":"IF(ISNUMBER(取得者情報入力!D22),(取得者情報入力!D22),\"\")","v":""},null,{"$f":"IF(ISNUMBER(取得者情報入力!D22),(取得者情報入力!I17),\"\")","v":""}]
[null,null,null,null,null,"住民票\n住所",null,null,null,null,null,null,null,null,null,null,null,null,null,null,null,null,null,null,null,null,null,null,null,null,null,{"$f":"IF(ISTEXT(取得者情報入力!D8),\"\",IF(ISTEXT(取得者情報入力!D14),取得者情報入力!D14,\"\"))","v":""}]
[]
[null,null,null,null,null,null,null,null,null,null,null,null,null,null,null,null,null,null,null,null,null,null,null,null,null,null,null,null,null,null,null,null,null,null,null,null,null,null,null,null,null,null,null,null,null,null,null,null,null,null,null,null,null,null,null,null,null,null,null,null,null,null,null,null,null,null,null,null,null,null,null,null,null,null,null,null,null,null,null,null,null,null,null,null,null,null,null,null,null,null,null,null,null,null,null,null,null,null,null,null,null,null,null,null,"理由",null,null,null,null,null,null,null,{"$f":"IF(ISNUMBER(取得者情報入力!D15),(取得者情報入力!D15),\"\")","v":""},null,null,{"$f":"IF(ISNUMBER(取得者情報入力!D15),VLOOKUP(取得者情報入力!D15,取得者情報入力!H19:I21,2,0),\"\")","v":""}]
[]
[]
[]
[]
[]
[]
["被保険者２",null,null,null,null,1,null,null,null,null,null,null,{"$f":"IF(ISTEXT(取得者情報入力!D45),取得者情報入力!D45,\"\")","v":""},null,null,null,null,null,null,null,null,null,null,null,2,null,null,null,null,null,null,null,"(ﾌﾘｶﾞﾅ)",null,null,null,null,null,null,null,{"$f":"IF(ISTEXT(取得者情報入力!D47),取得者情報入力!D47,\"\")","v":""},null,null,null,null,null,null,null,null,null,null,null,null,null,null,null,null,null,null,null,null,null,null,null,null,null,null,null,null,null,null,null,null,null,null,null,null,null,null,null,3,null,null,null,null,null,null,null,{"$f":"IF(ISNUMBER(取得者情報入力!D48),取得者情報入力!D48,\"\")","v":""},null,null,null,null,null,null,null,null,null,null,null,null,null,null,null,null,null,null,null,null,null,null,null,null,null,null,null,null,null,null,4,null,null,null,null,null,null,null,{"$f":"IF(ISTEXT(取得者情報入力!D49),IF(取得者情報入力!D49=\"1\",\"男\",IF(取得者情報入力!D49=\"2\",\"女\",\"１男・２女\")),\"１男・２女\")","v":"１男・２女"}]
[]
[]
[null,null,null,null,null,"整理\n番号",null,null,null,null,null,null,null,null,null,null,null,null,null,null,null,null,null,null,"氏名",null,null,null,null,null,null,null,null,null,null,null,null,null,null,null,null,null,null,null,null,null,null,null,null,null,null,null,null,null,null,null,null,null,null,null,null,null,null,null,null,null,null,null,null,null,null,null,null,null,null,null,null,null,null,null,"生年\n月日",null,null,null,null,null,null,null,null,null,null,null,null,null,null,null,null,null,null,null,null,null,null,null,null,null,null,null,null,null,null,null,null,null,null,null,null,null,null,"種別"]
[null,null,null,null,null,null,null,null,null,null,null,null,null,null,null,null,null,null,null,null,null,null,null,null,null,null,null,null,null,null,null,null,"(氏名)",null,null,null,null,null,null,null,{"$f":"IF(ISTEXT(取得者情報入力!D46),取得者情報入力!D46,\"\")","v":""}]
[]
[]
[]
[]
[]
[null,null,null,null,null,5,null,null,null,null,null,null,"1.健保・厚年",null,null,null,null,null,null,null,null,null,null,null,6,null,null,null,null,null,null,null,{"$f":"IF(ISTEXT(取得者情報入力!D50),MID(取得者情報入力!D50,1,1),IF(ISTEXT(取得者情報入力!D51),MID(取得者情報入力!D51,1,1),\"\"))","v":""},null,null,null,{"$f":"IF(ISTEXT(取得者情報入力!D50),MID(取得者情報入力!D50,2,1),IF(ISTEXT(取得者情報入力!D51),MID(取得者情報入力!D51,2,1),\"\"))","v":""},null,null,null,{"$f":"IF(ISTEXT(取得者情報入力!D50),MID(取得者情報入力!D50,3,1),IF(ISTEXT(取得者情報入力!D51),MID(取得者情報入力!D51,3,1),\"\"))","v":""},null,null,null,{"$f":"IF(ISTEXT(取得者情報入力!D50),MID(取得者情報入力!D50,4,1),IF(ISTEXT(取得者情報入力!D51),MID(取得者情報入力!D51,4,1),\"\"))","v":""},null,null,null,{"$f":"IF(ISTEXT(取得者情報入力!D50),MID(取得者情報入力!D50,5,1),IF(ISTEXT(取得者情報入力!D51),MID(取得者情報入力!D51,5,1),\"\"))","v":""},null,null,null,{"$f":"IF(ISTEXT(取得者情報入力!D50),MID(取得者情報入力!D50,6,1),IF(ISTEXT(取得者情報入力!D51),MID(取得者情報入力!D51,6,1),\"\"))","v":""},null,null,null,{"$f":"IF(ISTEXT(取得者情報入力!D50),MID(取得者情報入力!D50,7,1),IF(ISTEXT(取得者情報入力!D51),MID(取得者情報入力!D51,7,1),\"\"))","v":""},null,null,null,{"$f":"IF(ISTEXT(取得者情報入力!D50),MID(取得者情報入力!D50,8,1),IF(ISTEXT(取得者情報入力!D51),MID(取得者情報入力!D51,8,1),\"\"))","v":""},null,null,null,{"$f":"IF(ISTEXT(取得者情報入力!D50),MID(取得者情報入力!D50,9,1),IF(ISTEXT(取得者情報入力!D51),MID(取得者情報入力!D51,9,1),\"\"))","v":""},null,null,null,{"$f":"IF(ISTEXT(取得者情報入力!D50),MID(取得者情報入力!D50,10,1),IF(ISTEXT(取得者情報入力!D51),MID(取得者情報入力!D51,10,1),\"\"))","v":""},null,null,null,{"$f":"IF(ISTEXT(取得者情報入力!D50),MID(取得者情報入力!D50,11,1),IF(ISTEXT(取得者情報入力!D51),MID(取得者情報入力!D51,11,1),\"\"))","v":""},null,null,null,{"$f":"IF(ISTEXT(取得者情報入力!D50),MID(取得者情報入力!D50,12,1),IF(ISTEXT(取得者情報入力!D51),MID(取得者情報入力!D51,12,1),\"\"))","v":""},null,null,null,7,null,null,null,null,null,null,null,{"$f":"IF(ISNUMBER(取得者情報入力!D52),取得者情報入力!D52,\"\")","v":""},null,null,null,null,null,null,null,null,null,null,null,null,null,null,null,null,null,null,null,null,null,null,null,null,null,null,null,null,null,null,8,null,null,null,null,null,null,null,{"$f":"IF(ISTEXT(取得者情報入力!D49),IF(取得者情報入力!D59=\"1\",\"有\",\"無\"),\"０無・１有\")","v":"０無・１有"}]
[]
[]
[null,null,null,null,null,"取得区分",null,null,null,null,null,null,null,null,null,null,null,null,null,null,null,null,null,null,"個人番号(基礎年金番号)",null,null,null,null,null,null,null,null,null,null,null,null,null,null,null,null,null,null,null,null,null,null,null,null,null,null,null,null,null,null,null,null,null,null,null,null,null,null,null,null,null,null,null,null,null,null,null,null,null,null,null,null,null,null,null,"取得\n(該当)\n年月日",null,null,null,null,null,null,null,null,null,null,null,null,null,null,null,null,null,null,null,null,null,null,null,null,null,null,null,null,null,null,null,null,null,null,null,null,null,null,"被扶\n養者"]
[]
[]
[]
[]
[]
[]
[null,null,null,null,null,9,null,null,null,null,null,null,"ｱ",null,null,null,"(通貨)",null,null,null,null,null,null,null,{"$f":"IF(ISNUMBER(取得者情報入力!D53),取得者情報入力!D53,\"\")","v":""},null,null,null,null,null,null,null,null,null,null,null,null,null,null,null,null,null,null,null,"円",null,null,null,"ｳ（合計ｱ+ｲ）",null,null,null,null,null,null,null,null,null,null,null,null,null,null,null,null,null,null,null,null,null,null,null,null,null,null,null,null,null,null,null,null,null,null,null,null,null,null,null,null,null,null,null,null,null,null,null,null,null,null,null,null,null,null,null,10,null,null,null,null,null,null,null,{"$f":"IF(ISNUMBER(取得者情報入力!D60),(取得者情報入力!D60),\"\")","v":""},null,{"$f":"IF(ISNUMBER(取得者情報入力!D60),(取得者情報入力!I55),\"\")","v":""}]
[]
[]
[null,null,null,null,null,"報酬月額",null,null,null,null,null,null,null,null,null,null,null,null,null,null,null,null,null,null,null,null,null,null,null,null,null,null,null,null,null,null,null,null,null,null,null,null,null,null,null,null,null,null,null,null,null,null,null,null,null,null,null,null,null,null,null,null,null,null,null,null,null,null,null,null,null,null,null,null,null,null,null,null,null,null,null,null,null,null,null,null,null,null,null,null,null,null,null,null,null,null,null,null,null,null,null,null,null,null,"備考",null,null,null,null,null,null,null,{"$f":"IF(ISNUMBER(取得者情報入力!D61),(取得者情報入力!D61),\"\")","v":""},null,{"$f":"IF(ISNUMBER(取得者情報入力!D61),(取得者情報入力!I56),\"\")","v":""}]
[]
[null,null,null,null,null,null,null,null,null,null,null,null,"ｲ",null,null,null,"(現物)",null,null,null,null,null,null,null,{"$f":"IF(ISNUMBER(取得者情報入力!D54),取得者情報入力!D54,\"\")","v":""},null,null,null,null,null,null,null,null,null,null,null,null,null,null,null,null,null,null,null,"円",null,null,null,{"$f":"IF(ISNUMBER(Y130),IF(Y135=\"\",Y130,Y130+Y135),\"\")","v":""},null,null,null,null,null,null,null,null,null,null,null,null,null,null,null,null,null,null,null,null,null,null,null,null,null,null,null,"円"]
[null,null,null,null,null,null,null,null,null,null,null,null,null,null,null,null,null,null,null,null,null,null,null,null,null,null,null,null,null,null,null,null,null,null,null,null,null,null,null,null,null,null,null,null,null,null,null,null,null,null,null,null,null,null,null,null,null,null,null,null,null,null,null,null,null,null,null,null,null,null,null,null,null,null,null,null,null,null,null,null,null,null,null,null,null,null,null,null,null,null,null,null,null,null,null,null,null,null,null,null,null,null,null,null,null,null,null,null,null,null,null,null,{"$f":"IF(ISNUMBER(取得者情報入力!D62),(取得者情報入力!D62),\"\")","v":""},null,{"$f":"IF(ISNUMBER(取得者情報入力!D62),(取得者情報入力!I57),\"\")","v":""}]
[]
[]
[null,null,null,null,null,null,null,null,null,null,null,null,null,null,null,null,null,null,null,null,null,null,null,null,null,null,null,null,null,null,null,null,null,null,null,null,null,null,null,null,null,null,null,null,null,null,null,null,null,null,null,null,null,null,null,null,null,null,null,null,null,null,null,null,null,null,null,null,null,null,null,null,null,null,null,null,null,null,null,null,null,null,null,null,null,null,null,null,null,null,null,null,null,null,null,null,null,null,null,null,null,null,null,null,null,null,null,null,null,null,null,null,{"$f":"IF(ISNUMBER(取得者情報入力!D63),(取得者情報入力!D63),\"\")","v":""},null,{"$f":"IF(ISNUMBER(取得者情報入力!D63),(取得者情報入力!I58),\"\")","v":""}]
[null,null,null,null,null,11,null,null,null,null,null,null,"〒",null,null,null,{"$f":"IF(ISTEXT(取得者情報入力!D50),\"\",IF(ISTEXT(取得者情報入力!D55),取得者情報入力!D55,\"\"))","v":""},null,null,null,null,null,null,null,null,null,null,null,null,null,null,"日本年金機構に提出する際、個人番号を記入した場合は、住所記入は不要です。"]
[]
[null,null,null,null,null,null,null,null,null,null,null,null,null,null,null,null,null,null,null,null,null,null,null,null,null,null,null,null,null,null,null,null,null,null,null,null,null,null,null,null,null,null,null,null,null,null,null,null,null,null,null,null,null,null,null,null,null,null,null,null,null,null,null,null,null,null,null,null,null,null,null,null,null,null,null,null,null,null,null,null,null,null,null,null,null,null,null,null,null,null,null,null,null,null,null,null,null,null,null,null,null,null,null,null,null,null,null,null,null,null,null,null,{"$f":"IF(ISNUMBER(取得者情報入力!D64),(取得者情報入力!D64),\"\")","v":""},null,{"$f":"IF(ISNUMBER(取得者情報入力!D64),(取得者情報入力!I59),\"\")","v":""}]
[null,null,null,null,null,"住民票\n住所",null,null,null,null,null,null,null,null,null,null,null,null,null,null,null,null,null,null,null,null,null,null,null,null,null,{"$f":"IF(ISTEXT(取得者情報入力!D50),\"\",IF(ISTEXT(取得者情報入力!D56),取得者情報入力!D56,\"\"))","v":""}]
[]
[null,null,null,null,null,null,null,null,null,null,null,null,null,null,null,null,null,null,null,null,null,null,null,null,null,null,null,null,null,null,null,null,null,null,null,null,null,null,null,null,null,null,null,null,null,null,null,null,null,null,null,null,null,null,null,null,null,null,null,null,null,null,null,null,null,null,null,null,null,null,null,null,null,null,null,null,null,null,null,null,null,null,null,null,null,null,null,null,null,null,null,null,null,null,null,null,null,null,null,null,null,null,null,null,"理由",null,null,null,null,null,null,null,{"$f":"IF(ISNUMBER(取得者情報入力!D57),(取得者情報入力!D57),\"\")","v":""},null,null,{"$f":"IF(ISNUMBER(取得者情報入力!D57),VLOOKUP(取得者情報入力!D57,取得者情報入力!H61:I63,2,0),\"\")","v":""}]
[]
[]
[]
[]
[]
[]
["被保険者３",null,null,null,null,1,null,null,null,null,null,null,{"$f":"IF(ISTEXT(取得者情報入力!D87),取得者情報入力!D87,\"\")","v":""},null,null,null,null,null,null,null,null,null,null,null,2,null,null,null,null,null,null,null,"(ﾌﾘｶﾞﾅ)",null,null,null,null,null,null,null,{"$f":"IF(ISTEXT(取得者情報入力!D89),取得者情報入力!D89,\"\")","v":""},null,null,null,null,null,null,null,null,null,null,null,null,null,null,null,null,null,null,null,null,null,null,null,null,null,null,null,null,null,null,null,null,null,null,null,null,null,null,null,3,null,null,null,null,null,null,null,{"$f":"IF(ISNUMBER(取得者情報入力!D90),取得者情報入力!D90,\"\")","v":""},null,null,null,null,null,null,null,null,null,null,null,null,null,null,null,null,null,null,null,null,null,null,null,null,null,null,null,null,null,null,4,null,null,null,null,null,null,null,{"$f":"IF(ISTEXT(取得者情報入力!D91),IF(取得者情報入力!D91=\"1\",\"男\",IF(取得者情報入力!D91=\"2\",\"女\",\"１男・２女\")),\"１男・２女\")","v":"１男・２女"}]
[]
[]
[null,null,null,null,null,"整理\n番号",null,null,null,null,null,null,null,null,null,null,null,null,null,null,null,null,null,null,"氏名",null,null,null,null,null,null,null,null,null,null,null,null,null,null,null,null,null,null,null,null,null,null,null,null,null,null,null,null,null,null,null,null,null,null,null,null,null,null,null,null,null,null,null,null,null,null,null,null,null,null,null,null,null,null,null,"生年\n月日",null,null,null,null,null,null,null,null,null,null,null,null,null,null,null,null,null,null,null,null,null,null,null,null,null,null,null,null,null,null,null,null,null,null,null,null,null,null,"種別"]
[null,null,null,null,null,null,null,null,null,null,null,null,null,null,null,null,null,null,null,null,null,null,null,null,null,null,null,null,null,null,null,null,"(氏名)",null,null,null,null,null,null,null,{"$f":"IF(ISTEXT(取得者情報入力!D88),取得者情報入力!D88,\"\")","v":""}]
[]
[]
[]
[]
[]
[null,null,null,null,null,5,null,null,null,null,null,null,"1.健保・厚年",null,null,null,null,null,null,null,null,null,null,null,6,null,null,null,null,null,null,null,{"$f":"IF(ISTEXT(取得者情報入力!D92),MID(取得者情報入力!D92,1,1),IF(ISTEXT(取得者情報入力!D93),MID(取得者情報入力!D93,1,1),\"\"))","v":""},null,null,null,{"$f":"IF(ISTEXT(取得者情報入力!D92),MID(取得者情報入力!D92,2,1),IF(ISTEXT(取得者情報入力!D93),MID(取得者情報入力!D93,2,1),\"\"))","v":""},null,null,null,{"$f":"IF(ISTEXT(取得者情報入力!D92),MID(取得者情報入力!D92,3,1),IF(ISTEXT(取得者情報入力!D93),MID(取得者情報入力!D93,3,1),\"\"))","v":""},null,null,null,{"$f":"IF(ISTEXT(取得者情報入力!D92),MID(取得者情報入力!D92,4,1),IF(ISTEXT(取得者情報入力!D93),MID(取得者情報入力!D93,4,1),\"\"))","v":""},null,null,null,{"$f":"IF(ISTEXT(取得者情報入力!D92),MID(取得者情報入力!D92,5,1),IF(ISTEXT(取得者情報入力!D93),MID(取得者情報入力!D93,5,1),\"\"))","v":""},null,null,null,{"$f":"IF(ISTEXT(取得者情報入力!D92),MID(取得者情報入力!D92,6,1),IF(ISTEXT(取得者情報入力!D93),MID(取得者情報入力!D93,6,1),\"\"))","v":""},null,null,null,{"$f":"IF(ISTEXT(取得者情報入力!D92),MID(取得者情報入力!D92,7,1),IF(ISTEXT(取得者情報入力!D93),MID(取得者情報入力!D93,7,1),\"\"))","v":""},null,null,null,{"$f":"IF(ISTEXT(取得者情報入力!D92),MID(取得者情報入力!D92,8,1),IF(ISTEXT(取得者情報入力!D93),MID(取得者情報入力!D93,8,1),\"\"))","v":""},null,null,null,{"$f":"IF(ISTEXT(取得者情報入力!D92),MID(取得者情報入力!D92,9,1),IF(ISTEXT(取得者情報入力!D93),MID(取得者情報入力!D93,9,1),\"\"))","v":""},null,null,null,{"$f":"IF(ISTEXT(取得者情報入力!D92),MID(取得者情報入力!D92,10,1),IF(ISTEXT(取得者情報入力!D93),MID(取得者情報入力!D93,10,1),\"\"))","v":""},null,null,null,{"$f":"IF(ISTEXT(取得者情報入力!D92),MID(取得者情報入力!D92,11,1),IF(ISTEXT(取得者情報入力!D93),MID(取得者情報入力!D93,11,1),\"\"))","v":""},null,null,null,{"$f":"IF(ISTEXT(取得者情報入力!D92),MID(取得者情報入力!D92,12,1),IF(ISTEXT(取得者情報入力!D93),MID(取得者情報入力!D93,12,1),\"\"))","v":""},null,null,null,7,null,null,null,null,null,null,null,{"$f":"IF(ISNUMBER(取得者情報入力!D94),取得者情報入力!D94,\"\")","v":""},null,null,null,null,null,null,null,null,null,null,null,null,null,null,null,null,null,null,null,null,null,null,null,null,null,null,null,null,null,null,8,null,null,null,null,null,null,null,{"$f":"IF(ISTEXT(取得者情報入力!D91),IF(取得者情報入力!D101=\"1\",\"有\",\"無\"),\"０無・１有\")","v":"０無・１有"}]
[]
[]
[null,null,null,null,null,"取得区分",null,null,null,null,null,null,null,null,null,null,null,null,null,null,null,null,null,null,"個人番号(基礎年金番号)",null,null,null,null,null,null,null,null,null,null,null,null,null,null,null,null,null,null,null,null,null,null,null,null,null,null,null,null,null,null,null,null,null,null,null,null,null,null,null,null,null,null,null,null,null,null,null,null,null,null,null,null,null,null,null,"取得\n(該当)\n年月日",null,null,null,null,null,null,null,null,null,null,null,null,null,null,null,null,null,null,null,null,null,null,null,null,null,null,null,null,null,null,null,null,null,null,null,null,null,null,"被扶\n養者"]
[]
[]
[]
[]
[]
[]
[null,null,null,null,null,9,null,null,null,null,null,null,"ｱ",null,null,null,"(通貨)",null,null,null,null,null,null,null,{"$f":"IF(ISNUMBER(取得者情報入力!D95),取得者情報入力!D95,\"\")","v":""},null,null,null,null,null,null,null,null,null,null,null,null,null,null,null,null,null,null,null,"円",null,null,null,"ｳ（合計ｱ+ｲ）",null,null,null,null,null,null,null,null,null,null,null,null,null,null,null,null,null,null,null,null,null,null,null,null,null,null,null,null,null,null,null,null,null,null,null,null,null,null,null,null,null,null,null,null,null,null,null,null,null,null,null,null,null,null,null,10,null,null,null,null,null,null,null,{"$f":"IF(ISNUMBER(取得者情報入力!D102),(取得者情報入力!D102),\"\")","v":""},null,{"$f":"IF(ISNUMBER(取得者情報入力!D102),(取得者情報入力!I97),\"\")","v":""}]
[]
[]
[null,null,null,null,null,"報酬月額",null,null,null,null,null,null,null,null,null,null,null,null,null,null,null,null,null,null,null,null,null,null,null,null,null,null,null,null,null,null,null,null,null,null,null,null,null,null,null,null,null,null,null,null,null,null,null,null,null,null,null,null,null,null,null,null,null,null,null,null,null,null,null,null,null,null,null,null,null,null,null,null,null,null,null,null,null,null,null,null,null,null,null,null,null,null,null,null,null,null,null,null,null,null,null,null,null,null,"備考",null,null,null,null,null,null,null,{"$f":"IF(ISNUMBER(取得者情報入力!D103),(取得者情報入力!D103),\"\")","v":""},null,{"$f":"IF(ISNUMBER(取得者情報入力!D103),(取得者情報入力!I98),\"\")","v":""}]
[]
[null,null,null,null,null,null,null,null,null,null,null,null,"ｲ",null,null,null,"(現物)",null,null,null,null,null,null,null,{"$f":"IF(ISNUMBER(取得者情報入力!D96),取得者情報入力!D96,\"\")","v":""},null,null,null,null,null,null,null,null,null,null,null,null,null,null,null,null,null,null,null,"円",null,null,null,{"$f":"IF(ISNUMBER(Y172),IF(Y177=\"\",Y172,Y172+Y177),\"\")","v":""},null,null,null,null,null,null,null,null,null,null,null,null,null,null,null,null,null,null,null,null,null,null,null,null,null,null,null,"円"]
[null,null,null,null,null,null,null,null,null,null,null,null,null,null,null,null,null,null,null,null,null,null,null,null,null,null,null,null,null,null,null,null,null,null,null,null,null,null,null,null,null,null,null,null,null,null,null,null,null,null,null,null,null,null,null,null,null,null,null,null,null,null,null,null,null,null,null,null,null,null,null,null,null,null,null,null,null,null,null,null,null,null,null,null,null,null,null,null,null,null,null,null,null,null,null,null,null,null,null,null,null,null,null,null,null,null,null,null,null,null,null,null,{"$f":"IF(ISNUMBER(取得者情報入力!D104),(取得者情報入力!D104),\"\")","v":""},null,{"$f":"IF(ISNUMBER(取得者情報入力!D104),(取得者情報入力!I99),\"\")","v":""}]
[]
[]
[null,null,null,null,null,null,null,null,null,null,null,null,null,null,null,null,null,null,null,null,null,null,null,null,null,null,null,null,null,null,null,null,null,null,null,null,null,null,null,null,null,null,null,null,null,null,null,null,null,null,null,null,null,null,null,null,null,null,null,null,null,null,null,null,null,null,null,null,null,null,null,null,null,null,null,null,null,null,null,null,null,null,null,null,null,null,null,null,null,null,null,null,null,null,null,null,null,null,null,null,null,null,null,null,null,null,null,null,null,null,null,null,{"$f":"IF(ISNUMBER(取得者情報入力!D105),(取得者情報入力!D105),\"\")","v":""},null,{"$f":"IF(ISNUMBER(取得者情報入力!D105),(取得者情報入力!I100),\"\")","v":""}]
[null,null,null,null,null,11,null,null,null,null,null,null,"〒",null,null,null,{"$f":"IF(ISTEXT(取得者情報入力!D92),\"\",IF(ISTEXT(取得者情報入力!D97),取得者情報入力!D97,\"\"))","v":""},null,null,null,null,null,null,null,null,null,null,null,null,null,null,"日本年金機構に提出する際、個人番号を記入した場合は、住所記入は不要です。"]
[]
[null,null,null,null,null,null,null,null,null,null,null,null,null,null,null,null,null,null,null,null,null,null,null,null,null,null,null,null,null,null,null,null,null,null,null,null,null,null,null,null,null,null,null,null,null,null,null,null,null,null,null,null,null,null,null,null,null,null,null,null,null,null,null,null,null,null,null,null,null,null,null,null,null,null,null,null,null,null,null,null,null,null,null,null,null,null,null,null,null,null,null,null,null,null,null,null,null,null,null,null,null,null,null,null,null,null,null,null,null,null,null,null,{"$f":"IF(ISNUMBER(取得者情報入力!D106),(取得者情報入力!D106),\"\")","v":""},null,{"$f":"IF(ISNUMBER(取得者情報入力!D106),(取得者情報入力!I101),\"\")","v":""}]
[null,null,null,null,null,"住民票\n住所",null,null,null,null,null,null,null,null,null,null,null,null,null,null,null,null,null,null,null,null,null,null,null,null,null,{"$f":"IF(ISTEXT(取得者情報入力!D92),\"\",IF(ISTEXT(取得者情報入力!D98),取得者情報入力!D98,\"\"))","v":""}]
[]
[null,null,null,null,null,null,null,null,null,null,null,null,null,null,null,null,null,null,null,null,null,null,null,null,null,null,null,null,null,null,null,null,null,null,null,null,null,null,null,null,null,null,null,null,null,null,null,null,null,null,null,null,null,null,null,null,null,null,null,null,null,null,null,null,null,null,null,null,null,null,null,null,null,null,null,null,null,null,null,null,null,null,null,null,null,null,null,null,null,null,null,null,null,null,null,null,null,null,null,null,null,null,null,null,"理由",null,null,null,null,null,null,null,{"$f":"IF(ISNUMBER(取得者情報入力!D99),(取得者情報入力!D99),\"\")","v":""},null,null,{"$f":"IF(ISNUMBER(取得者情報入力!D99),VLOOKUP(取得者情報入力!D99,取得者情報入力!H103:I105,2,0),\"\")","v":""}]
[]
[]
[]
[]
[]
[]
["被保険者４",null,null,null,null,1,null,null,null,null,null,null,{"$f":"IF(ISTEXT(取得者情報入力!D129),取得者情報入力!D129,\"\")","v":""},null,null,null,null,null,null,null,null,null,null,null,2,null,null,null,null,null,null,null,"(ﾌﾘｶﾞﾅ)",null,null,null,null,null,null,null,{"$f":"IF(ISTEXT(取得者情報入力!D131),取得者情報入力!D131,\"\")","v":""},null,null,null,null,null,null,null,null,null,null,null,null,null,null,null,null,null,null,null,null,null,null,null,null,null,null,null,null,null,null,null,null,null,null,null,null,null,null,null,3,null,null,null,null,null,null,null,{"$f":"IF(ISNUMBER(取得者情報入力!D132),取得者情報入力!D132,\"\")","v":""},null,null,null,null,null,null,null,null,null,null,null,null,null,null,null,null,null,null,null,null,null,null,null,null,null,null,null,null,null,null,4,null,null,null,null,null,null,null,{"$f":"IF(ISTEXT(取得者情報入力!D133),IF(取得者情報入力!D133=\"1\",\"男\",IF(取得者情報入力!D133=\"2\",\"女\",\"１男・２女\")),\"１男・２女\")","v":"１男・２女"}]
[]
[]
[null,null,null,null,null,"整理\n番号",null,null,null,null,null,null,null,null,null,null,null,null,null,null,null,null,null,null,"氏名",null,null,null,null,null,null,null,null,null,null,null,null,null,null,null,null,null,null,null,null,null,null,null,null,null,null,null,null,null,null,null,null,null,null,null,null,null,null,null,null,null,null,null,null,null,null,null,null,null,null,null,null,null,null,null,"生年\n月日",null,null,null,null,null,null,null,null,null,null,null,null,null,null,null,null,null,null,null,null,null,null,null,null,null,null,null,null,null,null,null,null,null,null,null,null,null,null,"種別"]
[null,null,null,null,null,null,null,null,null,null,null,null,null,null,null,null,null,null,null,null,null,null,null,null,null,null,null,null,null,null,null,null,"(氏名)",null,null,null,null,null,null,null,{"$f":"IF(ISTEXT(取得者情報入力!D130),取得者情報入力!D130,\"\")","v":""}]
[]
[]
[]
[]
[]
[null,null,null,null,null,5,null,null,null,null,null,null,"1.健保・厚年",null,null,null,null,null,null,null,null,null,null,null,6,null,null,null,null,null,null,null,{"$f":"IF(ISTEXT(取得者情報入力!D134),MID(取得者情報入力!D134,1,1),IF(ISTEXT(取得者情報入力!D135),MID(取得者情報入力!D135,1,1),\"\"))","v":""},null,null,null,{"$f":"IF(ISTEXT(取得者情報入力!D134),MID(取得者情報入力!D134,2,1),IF(ISTEXT(取得者情報入力!D135),MID(取得者情報入力!D135,2,1),\"\"))","v":""},null,null,null,{"$f":"IF(ISTEXT(取得者情報入力!D134),MID(取得者情報入力!D134,3,1),IF(ISTEXT(取得者情報入力!D135),MID(取得者情報入力!D135,3,1),\"\"))","v":""},null,null,null,{"$f":"IF(ISTEXT(取得者情報入力!D134),MID(取得者情報入力!D134,4,1),IF(ISTEXT(取得者情報入力!D135),MID(取得者情報入力!D135,4,1),\"\"))","v":""},null,null,null,{"$f":"IF(ISTEXT(取得者情報入力!D134),MID(取得者情報入力!D134,5,1),IF(ISTEXT(取得者情報入力!D135),MID(取得者情報入力!D135,5,1),\"\"))","v":""},null,null,null,{"$f":"IF(ISTEXT(取得者情報入力!D134),MID(取得者情報入力!D134,6,1),IF(ISTEXT(取得者情報入力!D135),MID(取得者情報入力!D135,6,1),\"\"))","v":""},null,null,null,{"$f":"IF(ISTEXT(取得者情報入力!D134),MID(取得者情報入力!D134,7,1),IF(ISTEXT(取得者情報入力!D135),MID(取得者情報入力!D135,7,1),\"\"))","v":""},null,null,null,{"$f":"IF(ISTEXT(取得者情報入力!D134),MID(取得者情報入力!D134,8,1),IF(ISTEXT(取得者情報入力!D135),MID(取得者情報入力!D135,8,1),\"\"))","v":""},null,null,null,{"$f":"IF(ISTEXT(取得者情報入力!D134),MID(取得者情報入力!D134,9,1),IF(ISTEXT(取得者情報入力!D135),MID(取得者情報入力!D135,9,1),\"\"))","v":""},null,null,null,{"$f":"IF(ISTEXT(取得者情報入力!D134),MID(取得者情報入力!D134,10,1),IF(ISTEXT(取得者情報入力!D135),MID(取得者情報入力!D135,10,1),\"\"))","v":""},null,null,null,{"$f":"IF(ISTEXT(取得者情報入力!D134),MID(取得者情報入力!D134,11,1),IF(ISTEXT(取得者情報入力!D135),MID(取得者情報入力!D135,11,1),\"\"))","v":""},null,null,null,{"$f":"IF(ISTEXT(取得者情報入力!D134),MID(取得者情報入力!D134,12,1),IF(ISTEXT(取得者情報入力!D135),MID(取得者情報入力!D135,12,1),\"\"))","v":""},null,null,null,7,null,null,null,null,null,null,null,{"$f":"IF(ISNUMBER(取得者情報入力!D136),取得者情報入力!D136,\"\")","v":""},null,null,null,null,null,null,null,null,null,null,null,null,null,null,null,null,null,null,null,null,null,null,null,null,null,null,null,null,null,null,8,null,null,null,null,null,null,null,{"$f":"IF(ISTEXT(取得者情報入力!D133),IF(取得者情報入力!D143=\"1\",\"有\",\"無\"),\"０無・１有\")","v":"０無・１有"}]
[]
[]
[null,null,null,null,null,"取得区分",null,null,null,null,null,null,null,null,null,null,null,null,null,null,null,null,null,null,"個人番号(基礎年金番号)",null,null,null,null,null,null,null,null,null,null,null,null,null,null,null,null,null,null,null,null,null,null,null,null,null,null,null,null,null,null,null,null,null,null,null,null,null,null,null,null,null,null,null,null,null,null,null,null,null,null,null,null,null,null,null,"取得\n(該当)\n年月日",null,null,null,null,null,null,null,null,null,null,null,null,null,null,null,null,null,null,null,null,null,null,null,null,null,null,null,null,null,null,null,null,null,null,null,null,null,null,"被扶\n養者"]
[]
[]
[]
[]
[]
[]
[null,null,null,null,null,9,null,null,null,null,null,null,"ｱ",null,null,null,"(通貨)",null,null,null,null,null,null,null,{"$f":"IF(ISNUMBER(取得者情報入力!D137),取得者情報入力!D137,\"\")","v":""},null,null,null,null,null,null,null,null,null,null,null,null,null,null,null,null,null,null,null,"円",null,null,null,"ｳ（合計ｱ+ｲ）",null,null,null,null,null,null,null,null,null,null,null,null,null,null,null,null,null,null,null,null,null,null,null,null,null,null,null,null,null,null,null,null,null,null,null,null,null,null,null,null,null,null,null,null,null,null,null,null,null,null,null,null,null,null,null,10,null,null,null,null,null,null,null,{"$f":"IF(ISNUMBER(取得者情報入力!D144),(取得者情報入力!D144),\"\")","v":""},null,{"$f":"IF(ISNUMBER(取得者情報入力!D144),(取得者情報入力!I139),\"\")","v":""}]
[]
[]
[null,null,null,null,null,"報酬月額",null,null,null,null,null,null,null,null,null,null,null,null,null,null,null,null,null,null,null,null,null,null,null,null,null,null,null,null,null,null,null,null,null,null,null,null,null,null,null,null,null,null,null,null,null,null,null,null,null,null,null,null,null,null,null,null,null,null,null,null,null,null,null,null,null,null,null,null,null,null,null,null,null,null,null,null,null,null,null,null,null,null,null,null,null,null,null,null,null,null,null,null,null,null,null,null,null,null,"備考",null,null,null,null,null,null,null,{"$f":"IF(ISNUMBER(取得者情報入力!D145),(取得者情報入力!D145),\"\")","v":""},null,{"$f":"IF(ISNUMBER(取得者情報入力!D145),(取得者情報入力!I140),\"\")","v":""}]
[]
[null,null,null,null,null,null,null,null,null,null,null,null,"ｲ",null,null,null,"(現物)",null,null,null,null,null,null,null,{"$f":"IF(ISNUMBER(取得者情報入力!D138),取得者情報入力!D138,\"\")","v":""},null,null,null,null,null,null,null,null,null,null,null,null,null,null,null,null,null,null,null,"円",null,null,null,{"$f":"IF(ISNUMBER(Y214),IF(Y219=\"\",Y214,Y214+Y219),\"\")","v":""},null,null,null,null,null,null,null,null,null,null,null,null,null,null,null,null,null,null,null,null,null,null,null,null,null,null,null,"円"]
[null,null,null,null,null,null,null,null,null,null,null,null,null,null,null,null,null,null,null,null,null,null,null,null,null,null,null,null,null,null,null,null,null,null,null,null,null,null,null,null,null,null,null,null,null,null,null,null,null,null,null,null,null,null,null,null,null,null,null,null,null,null,null,null,null,null,null,null,null,null,null,null,null,null,null,null,null,null,null,null,null,null,null,null,null,null,null,null,null,null,null,null,null,null,null,null,null,null,null,null,null,null,null,null,null,null,null,null,null,null,null,null,{"$f":"IF(ISNUMBER(取得者情報入力!D146),(取得者情報入力!D146),\"\")","v":""},null,{"$f":"IF(ISNUMBER(取得者情報入力!D146),(取得者情報入力!I141),\"\")","v":""}]
[]
[]
[null,null,null,null,null,null,null,null,null,null,null,null,null,null,null,null,null,null,null,null,null,null,null,null,null,null,null,null,null,null,null,null,null,null,null,null,null,null,null,null,null,null,null,null,null,null,null,null,null,null,null,null,null,null,null,null,null,null,null,null,null,null,null,null,null,null,null,null,null,null,null,null,null,null,null,null,null,null,null,null,null,null,null,null,null,null,null,null,null,null,null,null,null,null,null,null,null,null,null,null,null,null,null,null,null,null,null,null,null,null,null,null,{"$f":"IF(ISNUMBER(取得者情報入力!D147),(取得者情報入力!D147),\"\")","v":""},null,{"$f":"IF(ISNUMBER(取得者情報入力!D147),(取得者情報入力!I142),\"\")","v":""}]
[null,null,null,null,null,11,null,null,null,null,null,null,"〒",null,null,null,{"$f":"IF(ISTEXT(取得者情報入力!D134),\"\",IF(ISTEXT(取得者情報入力!D139),取得者情報入力!D139,\"\"))","v":""},null,null,null,null,null,null,null,null,null,null,null,null,null,null,"日本年金機構に提出する際、個人番号を記入した場合は、住所記入は不要です。"]
[]
[null,null,null,null,null,null,null,null,null,null,null,null,null,null,null,null,null,null,null,null,null,null,null,null,null,null,null,null,null,null,null,null,null,null,null,null,null,null,null,null,null,null,null,null,null,null,null,null,null,null,null,null,null,null,null,null,null,null,null,null,null,null,null,null,null,null,null,null,null,null,null,null,null,null,null,null,null,null,null,null,null,null,null,null,null,null,null,null,null,null,null,null,null,null,null,null,null,null,null,null,null,null,null,null,null,null,null,null,null,null,null,null,{"$f":"IF(ISNUMBER(取得者情報入力!D148),(取得者情報入力!D148),\"\")","v":""},null,{"$f":"IF(ISNUMBER(取得者情報入力!D148),(取得者情報入力!I143),\"\")","v":""}]
[null,null,null,null,null,"住民票\n住所",null,null,null,null,null,null,null,null,null,null,null,null,null,null,null,null,null,null,null,null,null,null,null,null,null,{"$f":"IF(ISTEXT(取得者情報入力!D134),\"\",IF(ISTEXT(取得者情報入力!D140),取得者情報入力!D140,\"\"))","v":""}]
[]
[null,null,null,null,null,null,null,null,null,null,null,null,null,null,null,null,null,null,null,null,null,null,null,null,null,null,null,null,null,null,null,null,null,null,null,null,null,null,null,null,null,null,null,null,null,null,null,null,null,null,null,null,null,null,null,null,null,null,null,null,null,null,null,null,null,null,null,null,null,null,null,null,null,null,null,null,null,null,null,null,null,null,null,null,null,null,null,null,null,null,null,null,null,null,null,null,null,null,null,null,null,null,null,null,"理由",null,null,null,null,null,null,null,{"$f":"IF(ISNUMBER(取得者情報入力!D141),(取得者情報入力!D141),\"\")","v":""},null,null,{"$f":"IF(ISNUMBER(取得者情報入力!D141),VLOOKUP(取得者情報入力!D141,取得者情報入力!H145:I147,2,0),\"\")","v":""}]